Workbook

Sheet ACCUEIL

Sheet Suivi activité (hidden)
A1: Tableau de suivi d'activité commerciale année 2023
A3: PROSPECT | M3: ESTIMATION | Q3: PROJET SIGNES | V3: PROJET PERDU / SUSPENDU
A4: Statut actuel | B4: Nom | C4: Prénom | D4: Adresse | E4: Code Postal | F4: Ville | G4: Tél | H4: Mail | I4: Source du prospect | J4: Date de 1er Contact | K4: Mois | L4: Négo | M4: R1 | N4: Mois2 | O4: R2 | P4: Mois3 | Q4: Date de Mandat | R4: Compromis | S4: Mois de signature | T4: Acte Vente | U4: Mois de signature4 | V4: Mois5 | W4: Commentaires
A5: Vente annulée | B5: DURAND | C5: Henri | D5: chemin du puits | E5: 74140 | F5: SCIEZ | I5: Appel direct | J5: 2022-12-12 | K5: DÉCEMBRE | L5: Lionel | M5: Oui | N5: Décembre | P5: DÉCEMBRE | Q5: 2022-12-01 | R5: 300000 | S5: Décembre
A6: TEL, SMS | B6: JACOB | C6: Michel | E6: 74140 | F6: BONS | I6: Prospection | J6: 2022-09-09 | K6: SEPTEMBRE | L6: Tiphaine | M6: Oui | O6: Oui | P6: OCTOBRE | Q6: 2022-10-27
A7: Vendu | B7: THABUIS | C7: Sandra | D7: 34 route de conches | E7: 74140 | F7: MASSONGY | I7: Appel agence | K7: FÉVRIER | L7: Cléa | M7: Oui | Q7: 2022-01-01 | R7: 650000 | S7: Avril | T7: 650000 | U7: Juillet
A8: Abandonné | B8: AAAAA | C8: eeee | I8: e-mail | K8: FÉVRIER | L8: Lionel | M8: non
A9: Mandat | B9: CCCC | C9: ffff | I9: Site Internet | K9: FÉVRIER | L9: Lionel
A10: Vente annulée | B10: BBB | C10: iiii | I10: Appel direct | K10: JANVIER | L10: Marc
A11: Mandat | B11: ZZZZ | C11: oooo | I11: Prospection | K11: DÉCEMBRE | L11: Vanessa
A12: Stand-by | I12: e-mail | K12: FÉVRIER | L12: Team Duo de Choc
A13: Sous compromis | B13: rrr | C13: rrr | I13: Prospection | K13: DÉCEMBRE | L13: Lionel | R13: 250000 | S13: SEPTEMBRE | T13: 250000 | U13: DÉCEMBRE

Sheet Analyse globale (hidden)
A1: Analyse Globale
B5: Analyse de l'origine des prospects (global)
A6: Origine | B6: JANVIER | C6: FÉVRIER | D6: MARS | E6: AVRIL | F6: MAI | G6: JUIN | H6: JUILLET | I6: AOÛT | J6: SEPTEMBRE | K6: OCTOBRE | L6: NOVEMBRE | M6: DÉCEMBRE | N6: TOTAL
A7: =IF(ISBLANK(paramètres!A5),"",paramètres!A5) -> Appel direct | B7: =COUNTIFS(Tableau3[Source du prospect],$A$7,Tableau3[Mois],$B$6) -> 1 | C7: =COUNTIFS(Tableau3[Source du prospect],$A$7,Tableau3[Mois],$C$6) -> 0 | D7: =COUNTIFS(Tableau3[Source du prospect],$A$7,Tableau3[Mois],$D$6) -> 0 | E7: =COUNTIFS(Tableau3[Source du prospect],$A$7,Tableau3[Mois],$E$6) -> 0 | F7: =COUNTIFS(Tableau3[Source du prospect],$A$7,Tableau3[Mois],$F$6) -> 0 | G7: =COUNTIFS(Tableau3[Source du prospect],$A$7,Tableau3[Mois],$G$6) -> 0 | H7: =COUNTIFS(Tableau3[Source du prospect],$A$7,Tableau3[Mois],$H$6) -> 0 | I7: =COUNTIFS(Tableau3[Source du prospect],$A$7,Tableau3[Mois],$I$6) -> 0 | J7: =COUNTIFS(Tableau3[Source du prospect],$A$7,Tableau3[Mois],$J$6) -> 0 | K7: =COUNTIFS(Tableau3[Source du prospect],$A$7,Tableau3[Mois],$K$6) -> 0 | L7: =COUNTIFS(Tableau3[Source du prospect],$A$7,Tableau3[Mois],$L$6) -> 0 | M7: =COUNTIFS(Tableau3[Source du prospect],$A$7,Tableau3[Mois],$M$6) -> 1 | N7: =SUM(B7:M7) -> 2
A8: =IF(ISBLANK(paramètres!A6),"",paramètres!A6) -> e-mail | B8: =COUNTIFS(Tableau3[Source du prospect],$A$8,Tableau3[Mois],$B$6) -> 0 | C8: =COUNTIFS(Tableau3[Source du prospect],$A$8,Tableau3[Mois],$C$6) -> 2 | D8: =COUNTIFS(Tableau3[Source du prospect],$A$8,Tableau3[Mois],$D$6) -> 0 | E8: =COUNTIFS(Tableau3[Source du prospect],$A$8,Tableau3[Mois],$E$6) -> 0 | F8: =COUNTIFS(Tableau3[Source du prospect],$A$8,Tableau3[Mois],$F$6) -> 0 | G8: =COUNTIFS(Tableau3[Source du prospect],$A$8,Tableau3[Mois],$G$6) -> 0 | H8: =COUNTIFS(Tableau3[Source du prospect],$A$8,Tableau3[Mois],$H$6) -> 0 | I8: =COUNTIFS(Tableau3[Source du prospect],$A$8,Tableau3[Mois],$I$6) -> 0 | J8: =COUNTIFS(Tableau3[Source du prospect],$A$8,Tableau3[Mois],$J$6) -> 0 | K8: =COUNTIFS(Tableau3[Source du prospect],$A$8,Tableau3[Mois],$K$6) -> 0 | L8: =COUNTIFS(Tableau3[Source du prospect],$A$8,Tableau3[Mois],$L$6) -> 0 | M8: =COUNTIFS(Tableau3[Source du prospect],$A$8,Tableau3[Mois],$M$6) -> 0 | N8: =SUM(B8:M8) -> 2
A9: =IF(ISBLANK(paramètres!A7),"",paramètres!A7) -> Prospection | B9: =COUNTIFS(Tableau3[Source du prospect],$A$9,Tableau3[Mois],$B$6) -> 0 | C9: =COUNTIFS(Tableau3[Source du prospect],$A$9,Tableau3[Mois],$C$6) -> 0 | D9: =COUNTIFS(Tableau3[Source du prospect],$A$9,Tableau3[Mois],$D$6) -> 0 | E9: =COUNTIFS(Tableau3[Source du prospect],$A$9,Tableau3[Mois],$E$6) -> 0 | F9: =COUNTIFS(Tableau3[Source du prospect],$A$9,Tableau3[Mois],$F$6) -> 0 | G9: =COUNTIFS(Tableau3[Source du prospect],$A$9,Tableau3[Mois],$G$6) -> 0 | H9: =COUNTIFS(Tableau3[Source du prospect],$A$9,Tableau3[Mois],$H$6) -> 0 | I9: =COUNTIFS(Tableau3[Source du prospect],$A$9,Tableau3[Mois],$I$6) -> 0 | J9: =COUNTIFS(Tableau3[Source du prospect],$A$9,Tableau3[Mois],$J$6) -> 1 | K9: =COUNTIFS(Tableau3[Source du prospect],$A$9,Tableau3[Mois],$K$6) -> 0 | L9: =COUNTIFS(Tableau3[Source du prospect],$A$9,Tableau3[Mois],$L$6) -> 0 | M9: =COUNTIFS(Tableau3[Source du prospect],$A$9,Tableau3[Mois],$M$6) -> 2 | N9: 3
A10: =IF(ISBLANK(paramètres!A8),"",paramètres!A8) -> Site Internet | B10: =COUNTIFS(Tableau3[Source du prospect],$A$10,Tableau3[Mois],$B$6) -> 0 | C10: =COUNTIFS(Tableau3[Source du prospect],$A$10,Tableau3[Mois],$C$6) -> 1 | D10: =COUNTIFS(Tableau3[Source du prospect],$A$10,Tableau3[Mois],$D$6) -> 0 | E10: =COUNTIFS(Tableau3[Source du prospect],$A$10,Tableau3[Mois],$E$6) -> 0 | F10: =COUNTIFS(Tableau3[Source du prospect],$A$10,Tableau3[Mois],$F$6) -> 0 | G10: =COUNTIFS(Tableau3[Source du prospect],$A$10,Tableau3[Mois],$G$6) -> 0 | H10: =COUNTIFS(Tableau3[Source du prospect],$A$10,Tableau3[Mois],$H$6) -> 0 | I10: =COUNTIFS(Tableau3[Source du prospect],$A$10,Tableau3[Mois],$I$6) -> 0 | J10: =COUNTIFS(Tableau3[Source du prospect],$A$10,Tableau3[Mois],$J$6) -> 0 | K10: =COUNTIFS(Tableau3[Source du prospect],$A$10,Tableau3[Mois],$K$6) -> 0 | L10: =COUNTIFS(Tableau3[Source du prospect],$A$10,Tableau3[Mois],$L$6) -> 0 | M10: =COUNTIFS(Tableau3[Source du prospect],$A$10,Tableau3[Mois],$M$6) -> 0 | N10: 1
A11: =IF(ISBLANK(paramètres!A9),"",paramètres!A9) -> Appel agence | B11: =COUNTIFS(Tableau3[Source du prospect],$A$11,Tableau3[Mois],$B$6) -> 0 | C11: =COUNTIFS(Tableau3[Source du prospect],$A$11,Tableau3[Mois],$C$6) -> 1 | D11: =COUNTIFS(Tableau3[Source du prospect],$A$11,Tableau3[Mois],$D$6) -> 0 | E11: =COUNTIFS(Tableau3[Source du prospect],$A$11,Tableau3[Mois],$E$6) -> 0 | F11: =COUNTIFS(Tableau3[Source du prospect],$A$11,Tableau3[Mois],$F$6) -> 0 | G11: =COUNTIFS(Tableau3[Source du prospect],$A$11,Tableau3[Mois],$G$6) -> 0 | H11: =COUNTIFS(Tableau3[Source du prospect],$A$11,Tableau3[Mois],$H$6) -> 0 | I11: =COUNTIFS(Tableau3[Source du prospect],$A$11,Tableau3[Mois],$I$6) -> 0 | J11: =COUNTIFS(Tableau3[Source du prospect],$A$11,Tableau3[Mois],$J$6) -> 0 | K11: =COUNTIFS(Tableau3[Source du prospect],$A$11,Tableau3[Mois],$K$6) -> 0 | L11: =COUNTIFS(Tableau3[Source du prospect],$A$11,Tableau3[Mois],$L$6) -> 0 | M11: =COUNTIFS(Tableau3[Source du prospect],$A$11,Tableau3[Mois],$M$6) -> 0 | N11: 1
A12: =IF(ISBLANK(paramètres!A10),"",paramètres!A10) ->  | N12: 0
A13: =IF(ISBLANK(paramètres!A11),"",paramètres!A11) ->  | N13: 0
A14: =IF(ISBLANK(paramètres!A12),"",paramètres!A12) ->  | N14: 0
A15: =IF(ISBLANK(paramètres!A13),"",paramètres!A15) ->  | N15: 0
A16: =IF(ISBLANK(paramètres!A14),"",paramètres!A16) ->  | N16: 0
A17: =IF(ISBLANK(paramètres!A15),"",paramètres!A17) ->  | N17: 0
A18: =IF(ISBLANK(paramètres!A16),"",paramètres!A18) ->  | N18: 0
A19: TOTAL | B19: =SUM(B7:B18) -> 1 | C19: =SUM(C7:C18) -> 4 | D19: 0 | E19: 0 | F19: 0 | G19: 0 | H19: 0 | I19: 0 | J19: 1 | K19: 0 | L19: 0 | M19: 3 | N19: =SUM(N7:N18) -> 9
A21: Statut des dossiers (global)
A22: Statuts | B22: Nombre | C22: Pourcentage
A23: =IF(ISBLANK(paramètres!C5),"",paramètres!C5) -> TEL, SMS | B23: =COUNTIF(Tableau3[Statut actuel],A23) -> 1 | C23: =IF(ISERROR(B23/$B$35),"",B23/$B$35) -> 0.1111111111
A24: =IF(ISBLANK(paramètres!C6),"",paramètres!C6) -> Porte à porte | B24: =COUNTIF(Tableau3[Statut actuel],A24) -> 0 | C24: =IF(ISERROR(B24/$B$35),"",B24/$B$35) -> 0
A25: =IF(ISBLANK(paramètres!C7),"",paramètres!C7) -> R1 | B25: =COUNTIF(Tableau3[Statut actuel],A25) -> 0 | C25: 0
A26: =IF(ISBLANK(paramètres!C8),"",paramètres!C8) -> R2 | B26: =COUNTIF(Tableau3[Statut actuel],A26) -> 0 | C26: 0
A27: =IF(ISBLANK(paramètres!C9),"",paramètres!C9) -> Estimation faite | B27: =COUNTIF(Tableau3[Statut actuel],A27) -> 0 | C27: 0
A28: =IF(ISBLANK(paramètres!C10),"",paramètres!C10) -> Sous compromis | B28: =COUNTIF(Tableau3[Statut actuel],A28) -> 1 | C28: 0.1111111111
A29: =IF(ISBLANK(paramètres!C11),"",paramètres!C11) -> Vendu | B29: =COUNTIF(Tableau3[Statut actuel],A29) -> 1 | C29: 0.1111111111
A30: =IF(ISBLANK(paramètres!C12),"",paramètres!C12) -> Vente annulée | B30: =COUNTIF(Tableau3[Statut actuel],A30) -> 2 | C30: 0.2222222222
A31: =IF(ISBLANK(paramètres!C13),"",paramètres!C13) -> Abandonné | B31: =COUNTIF(Tableau3[Statut actuel],A31) -> 1 | C31: 0.1111111111
A32: =IF(ISBLANK(paramètres!C14),"",paramètres!C14) -> Stand-by | B32: =COUNTIF(Tableau3[Statut actuel],A32) -> 1 | C32: 0.1111111111
A33: =IF(ISBLANK(paramètres!C15),"",paramètres!C15) -> Sans Suite | B33: =COUNTIF(Tableau3[Statut actuel],A33) -> 0 | C33: 0
A34: =IF(ISBLANK(paramètres!C16),"",paramètres!C16) -> Mandat | B34: =COUNTIF(Tableau3[Statut actuel],A34) -> 2 | C34: 0.2222222222
A35: TOTAL | B35: =SUM(B23:B34) -> 9 | C35: =SUM(C23:C34) -> 1

Sheet Analyses LIONEL (hidden)
A1: Analyses par commercial
F4: Sélectionnez nom du négociateur: | G4: Lionel
A6: Analyse de l'origine des prospects par commercial
A7: Origine | B7: JANVIER | C7: FÉVRIER | D7: MARS | E7: AVRIL | F7: MAI | G7: JUIN | H7: JUILLET | I7: AOÛT | J7: SEPTEMBRE | K7: OCTOBRE | L7: NOVEMBRE | M7: DÉCEMBRE | N7: TOTAL | O7: Pourcentage
A8: =IF(ISBLANK(paramètres!A5),"",paramètres!A5) -> Appel direct | B8: =COUNTIFS(Tableau3[Source du prospect],'Analyses LIONEL'!A8,Tableau3[Mois],'Analyses LIONEL'!$B$7,Tableau3[Négo],paramètres!$B$5) -> 0 | C8: =COUNTIFS(Tableau3[Source du prospect],'Analyses LIONEL'!A8,Tableau3[Mois],'Analyses LIONEL'!$C$7,Tableau3[Négo],paramètres!$B$5) -> 0 | D8: =COUNTIFS(Tableau3[Source du prospect],'Analyses LIONEL'!A8,Tableau3[Mois],'Analyses LIONEL'!$D$7,Tableau3[Négo],paramètres!$B$5) -> 0 | E8: =COUNTIFS(Tableau3[Source du prospect],'Analyses LIONEL'!A8,Tableau3[Mois],'Analyses LIONEL'!$E$7,Tableau3[Négo],paramètres!$B$5) -> 0 | F8: =COUNTIFS(Tableau3[Source du prospect],'Analyses LIONEL'!A8,Tableau3[Mois],'Analyses LIONEL'!$F$7,Tableau3[Négo],paramètres!$B$5) -> 0 | G8: =COUNTIFS(Tableau3[Source du prospect],'Analyses LIONEL'!A8,Tableau3[Mois],'Analyses LIONEL'!$G$7,Tableau3[Négo],paramètres!$B$5) -> 0 | H8: =COUNTIFS(Tableau3[Source du prospect],'Analyses LIONEL'!A8,Tableau3[Mois],'Analyses LIONEL'!$H$7,Tableau3[Négo],paramètres!$B$5) -> 0 | I8: =COUNTIFS(Tableau3[Source du prospect],'Analyses LIONEL'!A8,Tableau3[Mois],'Analyses LIONEL'!$I$7,Tableau3[Négo],paramètres!$B$5) -> 0 | J8: =COUNTIFS(Tableau3[Source du prospect],'Analyses LIONEL'!A8,Tableau3[Mois],'Analyses LIONEL'!$J$7,Tableau3[Négo],paramètres!$B$5) -> 0 | K8: =COUNTIFS(Tableau3[Source du prospect],'Analyses LIONEL'!A8,Tableau3[Mois],'Analyses LIONEL'!$K$7,Tableau3[Négo],paramètres!$B$5) -> 0 | L8: =COUNTIFS(Tableau3[Source du prospect],'Analyses LIONEL'!A8,Tableau3[Mois],'Analyses LIONEL'!$L$7,Tableau3[Négo],paramètres!$B$5) -> 0 | M8: =COUNTIFS(Tableau3[Source du prospect],'Analyses LIONEL'!A8,Tableau3[Mois],'Analyses LIONEL'!$M$7,Tableau3[Négo],paramètres!$B$5) -> 1 | N8: =SUM(B8:M8) -> 1
A9: =IF(ISBLANK(paramètres!A6),"",paramètres!A6) -> e-mail | B9: =COUNTIFS(Tableau3[Source du prospect],'Analyses LIONEL'!A9,Tableau3[Mois],'Analyses LIONEL'!$B$7,Tableau3[Négo],paramètres!$B$5) -> 0 | C9: =COUNTIFS(Tableau3[Source du prospect],'Analyses LIONEL'!A9,Tableau3[Mois],'Analyses LIONEL'!$C$7,Tableau3[Négo],paramètres!$B$5) -> 1 | D9: =COUNTIFS(Tableau3[Source du prospect],'Analyses LIONEL'!A9,Tableau3[Mois],'Analyses LIONEL'!$D$7,Tableau3[Négo],paramètres!$B$5) -> 0 | E9: =COUNTIFS(Tableau3[Source du prospect],'Analyses LIONEL'!A9,Tableau3[Mois],'Analyses LIONEL'!$E$7,Tableau3[Négo],paramètres!$B$5) -> 0 | F9: =COUNTIFS(Tableau3[Source du prospect],'Analyses LIONEL'!A9,Tableau3[Mois],'Analyses LIONEL'!$F$7,Tableau3[Négo],paramètres!$B$5) -> 0 | G9: =COUNTIFS(Tableau3[Source du prospect],'Analyses LIONEL'!A9,Tableau3[Mois],'Analyses LIONEL'!$G$7,Tableau3[Négo],paramètres!$B$5) -> 0 | H9: =COUNTIFS(Tableau3[Source du prospect],'Analyses LIONEL'!A9,Tableau3[Mois],'Analyses LIONEL'!$H$7,Tableau3[Négo],paramètres!$B$5) -> 0 | I9: =COUNTIFS(Tableau3[Source du prospect],'Analyses LIONEL'!A9,Tableau3[Mois],'Analyses LIONEL'!$I$7,Tableau3[Négo],paramètres!$B$5) -> 0 | J9: =COUNTIFS(Tableau3[Source du prospect],'Analyses LIONEL'!A9,Tableau3[Mois],'Analyses LIONEL'!$J$7,Tableau3[Négo],paramètres!$B$5) -> 0 | K9: =COUNTIFS(Tableau3[Source du prospect],'Analyses LIONEL'!A9,Tableau3[Mois],'Analyses LIONEL'!$K$7,Tableau3[Négo],paramètres!$B$5) -> 0 | L9: =COUNTIFS(Tableau3[Source du prospect],'Analyses LIONEL'!A9,Tableau3[Mois],'Analyses LIONEL'!$L$7,Tableau3[Négo],paramètres!$B$5) -> 0 | M9: =COUNTIFS(Tableau3[Source du prospect],'Analyses LIONEL'!A9,Tableau3[Mois],'Analyses LIONEL'!$M$7,Tableau3[Négo],paramètres!$B$5) -> 0 | N9: =SUM(B9:M9) -> 1
A10: =IF(ISBLANK(paramètres!A7),"",paramètres!A7) -> Prospection | B10: =COUNTIFS(Tableau3[Source du prospect],'Analyses LIONEL'!A10,Tableau3[Mois],'Analyses LIONEL'!$B$7,Tableau3[Négo],paramètres!$B$5) -> 0 | C10: =COUNTIFS(Tableau3[Source du prospect],'Analyses LIONEL'!A10,Tableau3[Mois],'Analyses LIONEL'!$C$7,Tableau3[Négo],paramètres!$B$5) -> 0 | D10: =COUNTIFS(Tableau3[Source du prospect],'Analyses LIONEL'!A10,Tableau3[Mois],'Analyses LIONEL'!$D$7,Tableau3[Négo],paramètres!$B$5) -> 0 | E10: =COUNTIFS(Tableau3[Source du prospect],'Analyses LIONEL'!A10,Tableau3[Mois],'Analyses LIONEL'!$E$7,Tableau3[Négo],paramètres!$B$5) -> 0 | F10: =COUNTIFS(Tableau3[Source du prospect],'Analyses LIONEL'!A10,Tableau3[Mois],'Analyses LIONEL'!$F$7,Tableau3[Négo],paramètres!$B$5) -> 0 | G10: =COUNTIFS(Tableau3[Source du prospect],'Analyses LIONEL'!A10,Tableau3[Mois],'Analyses LIONEL'!$G$7,Tableau3[Négo],paramètres!$B$5) -> 0 | H10: =COUNTIFS(Tableau3[Source du prospect],'Analyses LIONEL'!A10,Tableau3[Mois],'Analyses LIONEL'!$H$7,Tableau3[Négo],paramètres!$B$5) -> 0 | I10: =COUNTIFS(Tableau3[Source du prospect],'Analyses LIONEL'!A10,Tableau3[Mois],'Analyses LIONEL'!$I$7,Tableau3[Négo],paramètres!$B$5) -> 0 | J10: =COUNTIFS(Tableau3[Source du prospect],'Analyses LIONEL'!A10,Tableau3[Mois],'Analyses LIONEL'!$J$7,Tableau3[Négo],paramètres!$B$5) -> 0 | K10: =COUNTIFS(Tableau3[Source du prospect],'Analyses LIONEL'!A10,Tableau3[Mois],'Analyses LIONEL'!$K$7,Tableau3[Négo],paramètres!$B$5) -> 0 | L10: =COUNTIFS(Tableau3[Source du prospect],'Analyses LIONEL'!A10,Tableau3[Mois],'Analyses LIONEL'!$L$7,Tableau3[Négo],paramètres!$B$5) -> 0 | M10: =COUNTIFS(Tableau3[Source du prospect],'Analyses LIONEL'!A10,Tableau3[Mois],'Analyses LIONEL'!$M$7,Tableau3[Négo],paramètres!$B$5) -> 1 | N10: 1
A11: =IF(ISBLANK(paramètres!A8),"",paramètres!A8) -> Site Internet | B11: =COUNTIFS(Tableau3[Source du prospect],'Analyses LIONEL'!A11,Tableau3[Mois],'Analyses LIONEL'!$B$7,Tableau3[Négo],paramètres!$B$5) -> 0 | C11: =COUNTIFS(Tableau3[Source du prospect],'Analyses LIONEL'!A11,Tableau3[Mois],'Analyses LIONEL'!$C$7,Tableau3[Négo],paramètres!$B$5) -> 1 | D11: =COUNTIFS(Tableau3[Source du prospect],'Analyses LIONEL'!A11,Tableau3[Mois],'Analyses LIONEL'!$D$7,Tableau3[Négo],paramètres!$B$5) -> 0 | E11: =COUNTIFS(Tableau3[Source du prospect],'Analyses LIONEL'!A11,Tableau3[Mois],'Analyses LIONEL'!$E$7,Tableau3[Négo],paramètres!$B$5) -> 0 | F11: =COUNTIFS(Tableau3[Source du prospect],'Analyses LIONEL'!A11,Tableau3[Mois],'Analyses LIONEL'!$F$7,Tableau3[Négo],paramètres!$B$5) -> 0 | G11: =COUNTIFS(Tableau3[Source du prospect],'Analyses LIONEL'!A11,Tableau3[Mois],'Analyses LIONEL'!$G$7,Tableau3[Négo],paramètres!$B$5) -> 0 | H11: =COUNTIFS(Tableau3[Source du prospect],'Analyses LIONEL'!A11,Tableau3[Mois],'Analyses LIONEL'!$H$7,Tableau3[Négo],paramètres!$B$5) -> 0 | I11: =COUNTIFS(Tableau3[Source du prospect],'Analyses LIONEL'!A11,Tableau3[Mois],'Analyses LIONEL'!$I$7,Tableau3[Négo],paramètres!$B$5) -> 0 | J11: =COUNTIFS(Tableau3[Source du prospect],'Analyses LIONEL'!A11,Tableau3[Mois],'Analyses LIONEL'!$J$7,Tableau3[Négo],paramètres!$B$5) -> 0 | K11: =COUNTIFS(Tableau3[Source du prospect],'Analyses LIONEL'!A11,Tableau3[Mois],'Analyses LIONEL'!$K$7,Tableau3[Négo],paramètres!$B$5) -> 0 | L11: =COUNTIFS(Tableau3[Source du prospect],'Analyses LIONEL'!A11,Tableau3[Mois],'Analyses LIONEL'!$L$7,Tableau3[Négo],paramètres!$B$5) -> 0 | M11: =COUNTIFS(Tableau3[Source du prospect],'Analyses LIONEL'!A11,Tableau3[Mois],'Analyses LIONEL'!$M$7,Tableau3[Négo],paramètres!$B$5) -> 0 | N11: 1
A12: =IF(ISBLANK(paramètres!A9),"",paramètres!A9) -> Appel agence | B12: =COUNTIFS(Tableau3[Source du prospect],'Analyses LIONEL'!A12,Tableau3[Mois],'Analyses LIONEL'!$B$7,Tableau3[Négo],paramètres!$B$5) -> 0 | C12: =COUNTIFS(Tableau3[Source du prospect],'Analyses LIONEL'!A12,Tableau3[Mois],'Analyses LIONEL'!$C$7,Tableau3[Négo],paramètres!$B$5) -> 0 | D12: =COUNTIFS(Tableau3[Source du prospect],'Analyses LIONEL'!A12,Tableau3[Mois],'Analyses LIONEL'!$D$7,Tableau3[Négo],paramètres!$B$5) -> 0 | E12: =COUNTIFS(Tableau3[Source du prospect],'Analyses LIONEL'!A12,Tableau3[Mois],'Analyses LIONEL'!$E$7,Tableau3[Négo],paramètres!$B$5) -> 0 | F12: =COUNTIFS(Tableau3[Source du prospect],'Analyses LIONEL'!A12,Tableau3[Mois],'Analyses LIONEL'!$F$7,Tableau3[Négo],paramètres!$B$5) -> 0 | G12: =COUNTIFS(Tableau3[Source du prospect],'Analyses LIONEL'!A12,Tableau3[Mois],'Analyses LIONEL'!$G$7,Tableau3[Négo],paramètres!$B$5) -> 0 | H12: =COUNTIFS(Tableau3[Source du prospect],'Analyses LIONEL'!A12,Tableau3[Mois],'Analyses LIONEL'!$H$7,Tableau3[Négo],paramètres!$B$5) -> 0 | I12: =COUNTIFS(Tableau3[Source du prospect],'Analyses LIONEL'!A12,Tableau3[Mois],'Analyses LIONEL'!$I$7,Tableau3[Négo],paramètres!$B$5) -> 0 | J12: =COUNTIFS(Tableau3[Source du prospect],'Analyses LIONEL'!A12,Tableau3[Mois],'Analyses LIONEL'!$J$7,Tableau3[Négo],paramètres!$B$5) -> 0 | K12: =COUNTIFS(Tableau3[Source du prospect],'Analyses LIONEL'!A12,Tableau3[Mois],'Analyses LIONEL'!$K$7,Tableau3[Négo],paramètres!$B$5) -> 0 | L12: =COUNTIFS(Tableau3[Source du prospect],'Analyses LIONEL'!A12,Tableau3[Mois],'Analyses LIONEL'!$L$7,Tableau3[Négo],paramètres!$B$5) -> 0 | M12: =COUNTIFS(Tableau3[Source du prospect],'Analyses LIONEL'!A12,Tableau3[Mois],'Analyses LIONEL'!$M$7,Tableau3[Négo],paramètres!$B$5) -> 0 | N12: 0
A13: =IF(ISBLANK(paramètres!A10),"",paramètres!A10) ->  | N13: 0
A14: =IF(ISBLANK(paramètres!A11),"",paramètres!A11) ->  | N14: 0
A15: =IF(ISBLANK(paramètres!A12),"",paramètres!A12) ->  | N15: =SUM(B15:M15) -> 0
A16: =IF(ISBLANK(paramètres!A13),"",paramètres!A13) ->  | N16: 0
A17: =IF(ISBLANK(paramètres!A14),"",paramètres!A14) ->  | N17: 0
A18: =IF(ISBLANK(paramètres!A15),"",paramètres!A15) ->  | N18: 0
A19: =IF(ISBLANK(paramètres!A16),"",paramètres!A16) ->  | N19: 0
A20: TOTAL | B20: =SUM(B8:B19) -> 0 | C20: =SUM(C8:C19) -> 2 | D20: 0 | E20: 0 | F20: 0 | G20: 0 | H20: 0 | I20: 0 | J20: 0 | K20: 0 | L20: 0 | M20: 2 | N20: 4 | O20: 0
A22: Statut actuel des dossiers du négociateur
A23: Statut | B23: JANVIER | C23: FÉVRIER | D23: MARS | E23: AVRIL | F23: MAI | G23: JUIN | H23: JUILLET | I23: AOÛT | J23: SEPTEMBRE | K23: OCTOBRE | L23: NOVEMBRE | M23: DÉCEMBRE | N23: TOTAL | O23: Pourcentage
A24: =IF(ISBLANK(paramètres!C5),"",paramètres!C5) -> TEL, SMS | B24: =COUNTIFS(Tableau3[Statut actuel],'Analyses LIONEL'!A24,Tableau3[Mois],'Analyses LIONEL'!$B$7,Tableau3[Négo],paramètres!$B$5) -> 0 | C24: =COUNTIFS(Tableau3[Statut actuel],'Analyses LIONEL'!A24,Tableau3[Mois],'Analyses LIONEL'!$C$7,Tableau3[Négo],paramètres!$B$5) -> 0 | D24: =COUNTIFS(Tableau3[Statut actuel],'Analyses LIONEL'!A24,Tableau3[Mois],'Analyses LIONEL'!$D$7,Tableau3[Négo],paramètres!$B$5) -> 0 | E24: =COUNTIFS(Tableau3[Statut actuel],'Analyses LIONEL'!A24,Tableau3[Mois],'Analyses LIONEL'!$E$7,Tableau3[Négo],paramètres!$B$5) -> 0 | F24: =COUNTIFS(Tableau3[Statut actuel],'Analyses LIONEL'!A24,Tableau3[Mois],'Analyses LIONEL'!$F$7,Tableau3[Négo],paramètres!$B$5) -> 0 | G24: =COUNTIFS(Tableau3[Statut actuel],'Analyses LIONEL'!A24,Tableau3[Mois],'Analyses LIONEL'!$G$7,Tableau3[Négo],paramètres!$B$5) -> 0 | H24: =COUNTIFS(Tableau3[Statut actuel],'Analyses LIONEL'!A24,Tableau3[Mois],'Analyses LIONEL'!$H$7,Tableau3[Négo],paramètres!$B$5) -> 0 | I24: =COUNTIFS(Tableau3[Statut actuel],'Analyses LIONEL'!A24,Tableau3[Mois],'Analyses LIONEL'!$I$7,Tableau3[Négo],paramètres!$B$5) -> 0 | J24: =COUNTIFS(Tableau3[Statut actuel],'Analyses LIONEL'!A24,Tableau3[Mois],'Analyses LIONEL'!$J$7,Tableau3[Négo],paramètres!$B$5) -> 0 | K24: =COUNTIFS(Tableau3[Statut actuel],'Analyses LIONEL'!A24,Tableau3[Mois],'Analyses LIONEL'!$K$7,Tableau3[Négo],paramètres!$B$5) -> 0 | L24: =COUNTIFS(Tableau3[Statut actuel],'Analyses LIONEL'!A24,Tableau3[Mois],'Analyses LIONEL'!$L$7,Tableau3[Négo],paramètres!$B$5) -> 0 | M24: =COUNTIFS(Tableau3[Statut actuel],'Analyses LIONEL'!A24,Tableau3[Mois],'Analyses LIONEL'!$M$7,Tableau3[Négo],paramètres!$B$5) -> 0 | N24: =SUM(B24:M24) -> 0
A25: =IF(ISBLANK(paramètres!C6),"",paramètres!C6) -> Porte à porte | B25: =COUNTIFS(Tableau3[Statut actuel],'Analyses LIONEL'!A25,Tableau3[Mois],'Analyses LIONEL'!$B$7,Tableau3[Négo],paramètres!$B$5) -> 0 | C25: =COUNTIFS(Tableau3[Statut actuel],'Analyses LIONEL'!A25,Tableau3[Mois],'Analyses LIONEL'!$C$7,Tableau3[Négo],paramètres!$B$5) -> 0 | D25: =COUNTIFS(Tableau3[Statut actuel],'Analyses LIONEL'!A25,Tableau3[Mois],'Analyses LIONEL'!$D$7,Tableau3[Négo],paramètres!$B$5) -> 0 | E25: =COUNTIFS(Tableau3[Statut actuel],'Analyses LIONEL'!A25,Tableau3[Mois],'Analyses LIONEL'!$E$7,Tableau3[Négo],paramètres!$B$5) -> 0 | F25: =COUNTIFS(Tableau3[Statut actuel],'Analyses LIONEL'!A25,Tableau3[Mois],'Analyses LIONEL'!$F$7,Tableau3[Négo],paramètres!$B$5) -> 0 | G25: =COUNTIFS(Tableau3[Statut actuel],'Analyses LIONEL'!A25,Tableau3[Mois],'Analyses LIONEL'!$G$7,Tableau3[Négo],paramètres!$B$5) -> 0 | H25: =COUNTIFS(Tableau3[Statut actuel],'Analyses LIONEL'!A25,Tableau3[Mois],'Analyses LIONEL'!$H$7,Tableau3[Négo],paramètres!$B$5) -> 0 | I25: =COUNTIFS(Tableau3[Statut actuel],'Analyses LIONEL'!A25,Tableau3[Mois],'Analyses LIONEL'!$I$7,Tableau3[Négo],paramètres!$B$5) -> 0 | J25: =COUNTIFS(Tableau3[Statut actuel],'Analyses LIONEL'!A25,Tableau3[Mois],'Analyses LIONEL'!$J$7,Tableau3[Négo],paramètres!$B$5) -> 0 | K25: =COUNTIFS(Tableau3[Statut actuel],'Analyses LIONEL'!A25,Tableau3[Mois],'Analyses LIONEL'!$K$7,Tableau3[Négo],paramètres!$B$5) -> 0 | L25: =COUNTIFS(Tableau3[Statut actuel],'Analyses LIONEL'!A25,Tableau3[Mois],'Analyses LIONEL'!$L$7,Tableau3[Négo],paramètres!$B$5) -> 0 | M25: =COUNTIFS(Tableau3[Statut actuel],'Analyses LIONEL'!A25,Tableau3[Mois],'Analyses LIONEL'!$M$7,Tableau3[Négo],paramètres!$B$5) -> 0 | N25: =SUM(B25:M25) -> 0
A26: =IF(ISBLANK(paramètres!C7),"",paramètres!C7) -> R1 | B26: =COUNTIFS(Tableau3[Statut actuel],'Analyses LIONEL'!A26,Tableau3[Mois],'Analyses LIONEL'!$B$7,Tableau3[Négo],paramètres!$B$5) -> 0 | C26: =COUNTIFS(Tableau3[Statut actuel],'Analyses LIONEL'!A26,Tableau3[Mois],'Analyses LIONEL'!$C$7,Tableau3[Négo],paramètres!$B$5) -> 0 | D26: =COUNTIFS(Tableau3[Statut actuel],'Analyses LIONEL'!A26,Tableau3[Mois],'Analyses LIONEL'!$D$7,Tableau3[Négo],paramètres!$B$5) -> 0 | E26: =COUNTIFS(Tableau3[Statut actuel],'Analyses LIONEL'!A26,Tableau3[Mois],'Analyses LIONEL'!$E$7,Tableau3[Négo],paramètres!$B$5) -> 0 | F26: =COUNTIFS(Tableau3[Statut actuel],'Analyses LIONEL'!A26,Tableau3[Mois],'Analyses LIONEL'!$F$7,Tableau3[Négo],paramètres!$B$5) -> 0 | G26: =COUNTIFS(Tableau3[Statut actuel],'Analyses LIONEL'!A26,Tableau3[Mois],'Analyses LIONEL'!$G$7,Tableau3[Négo],paramètres!$B$5) -> 0 | H26: =COUNTIFS(Tableau3[Statut actuel],'Analyses LIONEL'!A26,Tableau3[Mois],'Analyses LIONEL'!$H$7,Tableau3[Négo],paramètres!$B$5) -> 0 | I26: =COUNTIFS(Tableau3[Statut actuel],'Analyses LIONEL'!A26,Tableau3[Mois],'Analyses LIONEL'!$I$7,Tableau3[Négo],paramètres!$B$5) -> 0 | J26: =COUNTIFS(Tableau3[Statut actuel],'Analyses LIONEL'!A26,Tableau3[Mois],'Analyses LIONEL'!$J$7,Tableau3[Négo],paramètres!$B$5) -> 0 | K26: =COUNTIFS(Tableau3[Statut actuel],'Analyses LIONEL'!A26,Tableau3[Mois],'Analyses LIONEL'!$K$7,Tableau3[Négo],paramètres!$B$5) -> 0 | L26: =COUNTIFS(Tableau3[Statut actuel],'Analyses LIONEL'!A26,Tableau3[Mois],'Analyses LIONEL'!$L$7,Tableau3[Négo],paramètres!$B$5) -> 0 | M26: =COUNTIFS(Tableau3[Statut actuel],'Analyses LIONEL'!A26,Tableau3[Mois],'Analyses LIONEL'!$M$7,Tableau3[Négo],paramètres!$B$5) -> 0 | N26: 0
A27: =IF(ISBLANK(paramètres!C8),"",paramètres!C8) -> R2 | B27: =COUNTIFS(Tableau3[Statut actuel],'Analyses LIONEL'!A27,Tableau3[Mois],'Analyses LIONEL'!$B$7,Tableau3[Négo],paramètres!$B$5) -> 0 | C27: =COUNTIFS(Tableau3[Statut actuel],'Analyses LIONEL'!A27,Tableau3[Mois],'Analyses LIONEL'!$C$7,Tableau3[Négo],paramètres!$B$5) -> 0 | D27: =COUNTIFS(Tableau3[Statut actuel],'Analyses LIONEL'!A27,Tableau3[Mois],'Analyses LIONEL'!$D$7,Tableau3[Négo],paramètres!$B$5) -> 0 | E27: =COUNTIFS(Tableau3[Statut actuel],'Analyses LIONEL'!A27,Tableau3[Mois],'Analyses LIONEL'!$E$7,Tableau3[Négo],paramètres!$B$5) -> 0 | F27: =COUNTIFS(Tableau3[Statut actuel],'Analyses LIONEL'!A27,Tableau3[Mois],'Analyses LIONEL'!$F$7,Tableau3[Négo],paramètres!$B$5) -> 0 | G27: =COUNTIFS(Tableau3[Statut actuel],'Analyses LIONEL'!A27,Tableau3[Mois],'Analyses LIONEL'!$G$7,Tableau3[Négo],paramètres!$B$5) -> 0 | H27: =COUNTIFS(Tableau3[Statut actuel],'Analyses LIONEL'!A27,Tableau3[Mois],'Analyses LIONEL'!$H$7,Tableau3[Négo],paramètres!$B$5) -> 0 | I27: =COUNTIFS(Tableau3[Statut actuel],'Analyses LIONEL'!A27,Tableau3[Mois],'Analyses LIONEL'!$I$7,Tableau3[Négo],paramètres!$B$5) -> 0 | J27: =COUNTIFS(Tableau3[Statut actuel],'Analyses LIONEL'!A27,Tableau3[Mois],'Analyses LIONEL'!$J$7,Tableau3[Négo],paramètres!$B$5) -> 0 | K27: =COUNTIFS(Tableau3[Statut actuel],'Analyses LIONEL'!A27,Tableau3[Mois],'Analyses LIONEL'!$K$7,Tableau3[Négo],paramètres!$B$5) -> 0 | L27: =COUNTIFS(Tableau3[Statut actuel],'Analyses LIONEL'!A27,Tableau3[Mois],'Analyses LIONEL'!$L$7,Tableau3[Négo],paramètres!$B$5) -> 0 | M27: =COUNTIFS(Tableau3[Statut actuel],'Analyses LIONEL'!A27,Tableau3[Mois],'Analyses LIONEL'!$M$7,Tableau3[Négo],paramètres!$B$5) -> 0 | N27: 0
A28: =IF(ISBLANK(paramètres!C9),"",paramètres!C9) -> Estimation faite | B28: =COUNTIFS(Tableau3[Statut actuel],'Analyses LIONEL'!A28,Tableau3[Mois],'Analyses LIONEL'!$B$7,Tableau3[Négo],paramètres!$B$5) -> 0 | C28: =COUNTIFS(Tableau3[Statut actuel],'Analyses LIONEL'!A28,Tableau3[Mois],'Analyses LIONEL'!$C$7,Tableau3[Négo],paramètres!$B$5) -> 0 | D28: =COUNTIFS(Tableau3[Statut actuel],'Analyses LIONEL'!A28,Tableau3[Mois],'Analyses LIONEL'!$D$7,Tableau3[Négo],paramètres!$B$5) -> 0 | E28: =COUNTIFS(Tableau3[Statut actuel],'Analyses LIONEL'!A28,Tableau3[Mois],'Analyses LIONEL'!$E$7,Tableau3[Négo],paramètres!$B$5) -> 0 | F28: =COUNTIFS(Tableau3[Statut actuel],'Analyses LIONEL'!A28,Tableau3[Mois],'Analyses LIONEL'!$F$7,Tableau3[Négo],paramètres!$B$5) -> 0 | G28: =COUNTIFS(Tableau3[Statut actuel],'Analyses LIONEL'!A28,Tableau3[Mois],'Analyses LIONEL'!$G$7,Tableau3[Négo],paramètres!$B$5) -> 0 | H28: =COUNTIFS(Tableau3[Statut actuel],'Analyses LIONEL'!A28,Tableau3[Mois],'Analyses LIONEL'!$H$7,Tableau3[Négo],paramètres!$B$5) -> 0 | I28: =COUNTIFS(Tableau3[Statut actuel],'Analyses LIONEL'!A28,Tableau3[Mois],'Analyses LIONEL'!$I$7,Tableau3[Négo],paramètres!$B$5) -> 0 | J28: =COUNTIFS(Tableau3[Statut actuel],'Analyses LIONEL'!A28,Tableau3[Mois],'Analyses LIONEL'!$J$7,Tableau3[Négo],paramètres!$B$5) -> 0 | K28: =COUNTIFS(Tableau3[Statut actuel],'Analyses LIONEL'!A28,Tableau3[Mois],'Analyses LIONEL'!$K$7,Tableau3[Négo],paramètres!$B$5) -> 0 | L28: =COUNTIFS(Tableau3[Statut actuel],'Analyses LIONEL'!A28,Tableau3[Mois],'Analyses LIONEL'!$L$7,Tableau3[Négo],paramètres!$B$5) -> 0 | M28: =COUNTIFS(Tableau3[Statut actuel],'Analyses LIONEL'!A28,Tableau3[Mois],'Analyses LIONEL'!$M$7,Tableau3[Négo],paramètres!$B$5) -> 0 | N28: 0
A29: =IF(ISBLANK(paramètres!C10),"",paramètres!C10) -> Sous compromis | B29: =COUNTIFS(Tableau3[Statut actuel],'Analyses LIONEL'!A29,Tableau3[Mois],'Analyses LIONEL'!$B$7,Tableau3[Négo],paramètres!$B$5) -> 0 | C29: =COUNTIFS(Tableau3[Statut actuel],'Analyses LIONEL'!A29,Tableau3[Mois],'Analyses LIONEL'!$C$7,Tableau3[Négo],paramètres!$B$5) -> 0 | D29: =COUNTIFS(Tableau3[Statut actuel],'Analyses LIONEL'!A29,Tableau3[Mois],'Analyses LIONEL'!$D$7,Tableau3[Négo],paramètres!$B$5) -> 0 | E29: =COUNTIFS(Tableau3[Statut actuel],'Analyses LIONEL'!A29,Tableau3[Mois],'Analyses LIONEL'!$E$7,Tableau3[Négo],paramètres!$B$5) -> 0 | F29: =COUNTIFS(Tableau3[Statut actuel],'Analyses LIONEL'!A29,Tableau3[Mois],'Analyses LIONEL'!$F$7,Tableau3[Négo],paramètres!$B$5) -> 0 | G29: =COUNTIFS(Tableau3[Statut actuel],'Analyses LIONEL'!A29,Tableau3[Mois],'Analyses LIONEL'!$G$7,Tableau3[Négo],paramètres!$B$5) -> 0 | H29: =COUNTIFS(Tableau3[Statut actuel],'Analyses LIONEL'!A29,Tableau3[Mois],'Analyses LIONEL'!$H$7,Tableau3[Négo],paramètres!$B$5) -> 0 | I29: =COUNTIFS(Tableau3[Statut actuel],'Analyses LIONEL'!A29,Tableau3[Mois],'Analyses LIONEL'!$I$7,Tableau3[Négo],paramètres!$B$5) -> 0 | J29: =COUNTIFS(Tableau3[Statut actuel],'Analyses LIONEL'!A29,Tableau3[Mois],'Analyses LIONEL'!$J$7,Tableau3[Négo],paramètres!$B$5) -> 0 | K29: =COUNTIFS(Tableau3[Statut actuel],'Analyses LIONEL'!A29,Tableau3[Mois],'Analyses LIONEL'!$K$7,Tableau3[Négo],paramètres!$B$5) -> 0 | L29: =COUNTIFS(Tableau3[Statut actuel],'Analyses LIONEL'!A29,Tableau3[Mois],'Analyses LIONEL'!$L$7,Tableau3[Négo],paramètres!$B$5) -> 0 | M29: =COUNTIFS(Tableau3[Statut actuel],'Analyses LIONEL'!A29,Tableau3[Mois],'Analyses LIONEL'!$M$7,Tableau3[Négo],paramètres!$B$5) -> 1 | N29: 1
A30: =IF(ISBLANK(paramètres!C11),"",paramètres!C11) -> Vendu | B30: =COUNTIFS(Tableau3[Statut actuel],'Analyses LIONEL'!A30,Tableau3[Mois],'Analyses LIONEL'!$B$7,Tableau3[Négo],paramètres!$B$5) -> 0 | C30: =COUNTIFS(Tableau3[Statut actuel],'Analyses LIONEL'!A30,Tableau3[Mois],'Analyses LIONEL'!$C$7,Tableau3[Négo],paramètres!$B$5) -> 0 | D30: =COUNTIFS(Tableau3[Statut actuel],'Analyses LIONEL'!A30,Tableau3[Mois],'Analyses LIONEL'!$D$7,Tableau3[Négo],paramètres!$B$5) -> 0 | E30: =COUNTIFS(Tableau3[Statut actuel],'Analyses LIONEL'!A30,Tableau3[Mois],'Analyses LIONEL'!$E$7,Tableau3[Négo],paramètres!$B$5) -> 0 | F30: =COUNTIFS(Tableau3[Statut actuel],'Analyses LIONEL'!A30,Tableau3[Mois],'Analyses LIONEL'!$F$7,Tableau3[Négo],paramètres!$B$5) -> 0 | G30: =COUNTIFS(Tableau3[Statut actuel],'Analyses LIONEL'!A30,Tableau3[Mois],'Analyses LIONEL'!$G$7,Tableau3[Négo],paramètres!$B$5) -> 0 | H30: =COUNTIFS(Tableau3[Statut actuel],'Analyses LIONEL'!A30,Tableau3[Mois],'Analyses LIONEL'!$H$7,Tableau3[Négo],paramètres!$B$5) -> 0 | I30: =COUNTIFS(Tableau3[Statut actuel],'Analyses LIONEL'!A30,Tableau3[Mois],'Analyses LIONEL'!$I$7,Tableau3[Négo],paramètres!$B$5) -> 0 | J30: =COUNTIFS(Tableau3[Statut actuel],'Analyses LIONEL'!A30,Tableau3[Mois],'Analyses LIONEL'!$J$7,Tableau3[Négo],paramètres!$B$5) -> 0 | K30: =COUNTIFS(Tableau3[Statut actuel],'Analyses LIONEL'!A30,Tableau3[Mois],'Analyses LIONEL'!$K$7,Tableau3[Négo],paramètres!$B$5) -> 0 | L30: =COUNTIFS(Tableau3[Statut actuel],'Analyses LIONEL'!A30,Tableau3[Mois],'Analyses LIONEL'!$L$7,Tableau3[Négo],paramètres!$B$5) -> 0 | M30: =COUNTIFS(Tableau3[Statut actuel],'Analyses LIONEL'!A30,Tableau3[Mois],'Analyses LIONEL'!$M$7,Tableau3[Négo],paramètres!$B$5) -> 0 | N30: 0
A31: =IF(ISBLANK(paramètres!C12),"",paramètres!C12) -> Vente annulée | B31: =COUNTIFS(Tableau3[Statut actuel],'Analyses LIONEL'!A31,Tableau3[Mois],'Analyses LIONEL'!$B$7,Tableau3[Négo],paramètres!$B$5) -> 0 | C31: =COUNTIFS(Tableau3[Statut actuel],'Analyses LIONEL'!A31,Tableau3[Mois],'Analyses LIONEL'!$C$7,Tableau3[Négo],paramètres!$B$5) -> 0 | D31: =COUNTIFS(Tableau3[Statut actuel],'Analyses LIONEL'!A31,Tableau3[Mois],'Analyses LIONEL'!$D$7,Tableau3[Négo],paramètres!$B$5) -> 0 | E31: =COUNTIFS(Tableau3[Statut actuel],'Analyses LIONEL'!A31,Tableau3[Mois],'Analyses LIONEL'!$E$7,Tableau3[Négo],paramètres!$B$5) -> 0 | F31: =COUNTIFS(Tableau3[Statut actuel],'Analyses LIONEL'!A31,Tableau3[Mois],'Analyses LIONEL'!$F$7,Tableau3[Négo],paramètres!$B$5) -> 0 | G31: =COUNTIFS(Tableau3[Statut actuel],'Analyses LIONEL'!A31,Tableau3[Mois],'Analyses LIONEL'!$G$7,Tableau3[Négo],paramètres!$B$5) -> 0 | H31: =COUNTIFS(Tableau3[Statut actuel],'Analyses LIONEL'!A31,Tableau3[Mois],'Analyses LIONEL'!$H$7,Tableau3[Négo],paramètres!$B$5) -> 0 | I31: =COUNTIFS(Tableau3[Statut actuel],'Analyses LIONEL'!A31,Tableau3[Mois],'Analyses LIONEL'!$I$7,Tableau3[Négo],paramètres!$B$5) -> 0 | J31: =COUNTIFS(Tableau3[Statut actuel],'Analyses LIONEL'!A31,Tableau3[Mois],'Analyses LIONEL'!$J$7,Tableau3[Négo],paramètres!$B$5) -> 0 | K31: =COUNTIFS(Tableau3[Statut actuel],'Analyses LIONEL'!A31,Tableau3[Mois],'Analyses LIONEL'!$K$7,Tableau3[Négo],paramètres!$B$5) -> 0 | L31: =COUNTIFS(Tableau3[Statut actuel],'Analyses LIONEL'!A31,Tableau3[Mois],'Analyses LIONEL'!$L$7,Tableau3[Négo],paramètres!$B$5) -> 0 | M31: =COUNTIFS(Tableau3[Statut actuel],'Analyses LIONEL'!A31,Tableau3[Mois],'Analyses LIONEL'!$M$7,Tableau3[Négo],paramètres!$B$5) -> 1 | N31: 1
A32: =IF(ISBLANK(paramètres!C13),"",paramètres!C13) -> Abandonné | B32: =COUNTIFS(Tableau3[Statut actuel],'Analyses LIONEL'!A32,Tableau3[Mois],'Analyses LIONEL'!$B$7,Tableau3[Négo],paramètres!$B$5) -> 0 | C32: =COUNTIFS(Tableau3[Statut actuel],'Analyses LIONEL'!A32,Tableau3[Mois],'Analyses LIONEL'!$C$7,Tableau3[Négo],paramètres!$B$5) -> 1 | D32: =COUNTIFS(Tableau3[Statut actuel],'Analyses LIONEL'!A32,Tableau3[Mois],'Analyses LIONEL'!$D$7,Tableau3[Négo],paramètres!$B$5) -> 0 | E32: =COUNTIFS(Tableau3[Statut actuel],'Analyses LIONEL'!A32,Tableau3[Mois],'Analyses LIONEL'!$E$7,Tableau3[Négo],paramètres!$B$5) -> 0 | F32: =COUNTIFS(Tableau3[Statut actuel],'Analyses LIONEL'!A32,Tableau3[Mois],'Analyses LIONEL'!$F$7,Tableau3[Négo],paramètres!$B$5) -> 0 | G32: =COUNTIFS(Tableau3[Statut actuel],'Analyses LIONEL'!A32,Tableau3[Mois],'Analyses LIONEL'!$G$7,Tableau3[Négo],paramètres!$B$5) -> 0 | H32: =COUNTIFS(Tableau3[Statut actuel],'Analyses LIONEL'!A32,Tableau3[Mois],'Analyses LIONEL'!$H$7,Tableau3[Négo],paramètres!$B$5) -> 0 | I32: =COUNTIFS(Tableau3[Statut actuel],'Analyses LIONEL'!A32,Tableau3[Mois],'Analyses LIONEL'!$I$7,Tableau3[Négo],paramètres!$B$5) -> 0 | J32: =COUNTIFS(Tableau3[Statut actuel],'Analyses LIONEL'!A32,Tableau3[Mois],'Analyses LIONEL'!$J$7,Tableau3[Négo],paramètres!$B$5) -> 0 | K32: =COUNTIFS(Tableau3[Statut actuel],'Analyses LIONEL'!A32,Tableau3[Mois],'Analyses LIONEL'!$K$7,Tableau3[Négo],paramètres!$B$5) -> 0 | L32: =COUNTIFS(Tableau3[Statut actuel],'Analyses LIONEL'!A32,Tableau3[Mois],'Analyses LIONEL'!$L$7,Tableau3[Négo],paramètres!$B$5) -> 0 | M32: =COUNTIFS(Tableau3[Statut actuel],'Analyses LIONEL'!A32,Tableau3[Mois],'Analyses LIONEL'!$M$7,Tableau3[Négo],paramètres!$B$5) -> 0 | N32: 1
A33: =IF(ISBLANK(paramètres!C14),"",paramètres!C14) -> Stand-by | B33: =COUNTIFS(Tableau3[Statut actuel],'Analyses LIONEL'!A33,Tableau3[Mois],'Analyses LIONEL'!$B$7,Tableau3[Négo],paramètres!$B$5) -> 0 | C33: =COUNTIFS(Tableau3[Statut actuel],'Analyses LIONEL'!A33,Tableau3[Mois],'Analyses LIONEL'!$C$7,Tableau3[Négo],paramètres!$B$5) -> 0 | D33: =COUNTIFS(Tableau3[Statut actuel],'Analyses LIONEL'!A33,Tableau3[Mois],'Analyses LIONEL'!$D$7,Tableau3[Négo],paramètres!$B$5) -> 0 | E33: =COUNTIFS(Tableau3[Statut actuel],'Analyses LIONEL'!A33,Tableau3[Mois],'Analyses LIONEL'!$E$7,Tableau3[Négo],paramètres!$B$5) -> 0 | F33: =COUNTIFS(Tableau3[Statut actuel],'Analyses LIONEL'!A33,Tableau3[Mois],'Analyses LIONEL'!$F$7,Tableau3[Négo],paramètres!$B$5) -> 0 | G33: =COUNTIFS(Tableau3[Statut actuel],'Analyses LIONEL'!A33,Tableau3[Mois],'Analyses LIONEL'!$G$7,Tableau3[Négo],paramètres!$B$5) -> 0 | H33: =COUNTIFS(Tableau3[Statut actuel],'Analyses LIONEL'!A33,Tableau3[Mois],'Analyses LIONEL'!$H$7,Tableau3[Négo],paramètres!$B$5) -> 0 | I33: =COUNTIFS(Tableau3[Statut actuel],'Analyses LIONEL'!A33,Tableau3[Mois],'Analyses LIONEL'!$I$7,Tableau3[Négo],paramètres!$B$5) -> 0 | J33: =COUNTIFS(Tableau3[Statut actuel],'Analyses LIONEL'!A33,Tableau3[Mois],'Analyses LIONEL'!$J$7,Tableau3[Négo],paramètres!$B$5) -> 0 | K33: =COUNTIFS(Tableau3[Statut actuel],'Analyses LIONEL'!A33,Tableau3[Mois],'Analyses LIONEL'!$K$7,Tableau3[Négo],paramètres!$B$5) -> 0 | L33: =COUNTIFS(Tableau3[Statut actuel],'Analyses LIONEL'!A33,Tableau3[Mois],'Analyses LIONEL'!$L$7,Tableau3[Négo],paramètres!$B$5) -> 0 | M33: =COUNTIFS(Tableau3[Statut actuel],'Analyses LIONEL'!A33,Tableau3[Mois],'Analyses LIONEL'!$M$7,Tableau3[Négo],paramètres!$B$5) -> 0 | N33: 0
A34: =IF(ISBLANK(paramètres!C15),"",paramètres!C15) -> Sans Suite | B34: =COUNTIFS(Tableau3[Statut actuel],'Analyses LIONEL'!A34,Tableau3[Mois],'Analyses LIONEL'!$B$7,Tableau3[Négo],paramètres!$B$5) -> 0 | C34: =COUNTIFS(Tableau3[Statut actuel],'Analyses LIONEL'!A34,Tableau3[Mois],'Analyses LIONEL'!$C$7,Tableau3[Négo],paramètres!$B$5) -> 0 | D34: =COUNTIFS(Tableau3[Statut actuel],'Analyses LIONEL'!A34,Tableau3[Mois],'Analyses LIONEL'!$D$7,Tableau3[Négo],paramètres!$B$5) -> 0 | E34: =COUNTIFS(Tableau3[Statut actuel],'Analyses LIONEL'!A34,Tableau3[Mois],'Analyses LIONEL'!$E$7,Tableau3[Négo],paramètres!$B$5) -> 0 | F34: =COUNTIFS(Tableau3[Statut actuel],'Analyses LIONEL'!A34,Tableau3[Mois],'Analyses LIONEL'!$F$7,Tableau3[Négo],paramètres!$B$5) -> 0 | G34: =COUNTIFS(Tableau3[Statut actuel],'Analyses LIONEL'!A34,Tableau3[Mois],'Analyses LIONEL'!$G$7,Tableau3[Négo],paramètres!$B$5) -> 0 | H34: =COUNTIFS(Tableau3[Statut actuel],'Analyses LIONEL'!A34,Tableau3[Mois],'Analyses LIONEL'!$H$7,Tableau3[Négo],paramètres!$B$5) -> 0 | I34: =COUNTIFS(Tableau3[Statut actuel],'Analyses LIONEL'!A34,Tableau3[Mois],'Analyses LIONEL'!$I$7,Tableau3[Négo],paramètres!$B$5) -> 0 | J34: =COUNTIFS(Tableau3[Statut actuel],'Analyses LIONEL'!A34,Tableau3[Mois],'Analyses LIONEL'!$J$7,Tableau3[Négo],paramètres!$B$5) -> 0 | K34: =COUNTIFS(Tableau3[Statut actuel],'Analyses LIONEL'!A34,Tableau3[Mois],'Analyses LIONEL'!$K$7,Tableau3[Négo],paramètres!$B$5) -> 0 | L34: =COUNTIFS(Tableau3[Statut actuel],'Analyses LIONEL'!A34,Tableau3[Mois],'Analyses LIONEL'!$L$7,Tableau3[Négo],paramètres!$B$5) -> 0 | M34: =COUNTIFS(Tableau3[Statut actuel],'Analyses LIONEL'!A34,Tableau3[Mois],'Analyses LIONEL'!$M$7,Tableau3[Négo],paramètres!$B$5) -> 0 | N34: 0
A35: =IF(ISBLANK(paramètres!C16),"",paramètres!C16) -> Mandat | B35: =COUNTIFS(Tableau3[Statut actuel],'Analyses LIONEL'!A35,Tableau3[Mois],'Analyses LIONEL'!$B$7,Tableau3[Négo],paramètres!$B$5) -> 0 | C35: =COUNTIFS(Tableau3[Statut actuel],'Analyses LIONEL'!A35,Tableau3[Mois],'Analyses LIONEL'!$C$7,Tableau3[Négo],paramètres!$B$5) -> 1 | D35: =COUNTIFS(Tableau3[Statut actuel],'Analyses LIONEL'!A35,Tableau3[Mois],'Analyses LIONEL'!$D$7,Tableau3[Négo],paramètres!$B$5) -> 0 | E35: =COUNTIFS(Tableau3[Statut actuel],'Analyses LIONEL'!A35,Tableau3[Mois],'Analyses LIONEL'!$E$7,Tableau3[Négo],paramètres!$B$5) -> 0 | F35: =COUNTIFS(Tableau3[Statut actuel],'Analyses LIONEL'!A35,Tableau3[Mois],'Analyses LIONEL'!$F$7,Tableau3[Négo],paramètres!$B$5) -> 0 | G35: =COUNTIFS(Tableau3[Statut actuel],'Analyses LIONEL'!A35,Tableau3[Mois],'Analyses LIONEL'!$G$7,Tableau3[Négo],paramètres!$B$5) -> 0 | H35: =COUNTIFS(Tableau3[Statut actuel],'Analyses LIONEL'!A35,Tableau3[Mois],'Analyses LIONEL'!$H$7,Tableau3[Négo],paramètres!$B$5) -> 0 | I35: =COUNTIFS(Tableau3[Statut actuel],'Analyses LIONEL'!A35,Tableau3[Mois],'Analyses LIONEL'!$I$7,Tableau3[Négo],paramètres!$B$5) -> 0 | J35: =COUNTIFS(Tableau3[Statut actuel],'Analyses LIONEL'!A35,Tableau3[Mois],'Analyses LIONEL'!$J$7,Tableau3[Négo],paramètres!$B$5) -> 0 | K35: =COUNTIFS(Tableau3[Statut actuel],'Analyses LIONEL'!A35,Tableau3[Mois],'Analyses LIONEL'!$K$7,Tableau3[Négo],paramètres!$B$5) -> 0 | L35: =COUNTIFS(Tableau3[Statut actuel],'Analyses LIONEL'!A35,Tableau3[Mois],'Analyses LIONEL'!$L$7,Tableau3[Négo],paramètres!$B$5) -> 0 | M35: =COUNTIFS(Tableau3[Statut actuel],'Analyses LIONEL'!A35,Tableau3[Mois],'Analyses LIONEL'!$M$7,Tableau3[Négo],paramètres!$B$5) -> 0 | N35: 1
A37: TOTAL | B37: =SUM(B24:B35) -> 0 | C37: =SUM(C24:C35) -> 2 | D37: 0 | E37: 0 | F37: 0 | G37: 0 | H37: 0 | I37: 0 | J37: 0 | K37: 0 | L37: 0 | M37: 2 | N37: =SUM(N24:N35) -> 4
A39: Chiffre d'affaires du commercial
B40: JANVIER | C40: FEVRIER | D40: MARS | E40: AVRIL | F40: MAI | G40: JUIN | H40: JUILLET | I40: AOÛT | J40: SEPTEMBRE | K40: OCTOBRE | L40: NOVEMBRE | M40: DÉCEMBRE | N40: TOTAL
A42: COMPROMIS EN COURS
A43: Montant
A44: ACTES
A45: Montant
A46: VENTES ANNULEES
A47: Montant annulé
A49: Somme CA
A50: Rappel sur objectif (mensualisé)
A52: Cumul CA
A53: Cumul objectif
B57: Rappel objectif annuel du commercial:
B59: Pourcentage de l'objectif:

Sheet Analyse CA global (hidden)
A1: Analyses CA global
A5: CA global à date de signature
A6: Statut | B6: JANVIER | C6: FÉVRIER | D6: MARS | E6: AVRIL | F6: MAI | G6: JUIN | H6: JUILLET | I6: AOÛT | J6: SEPTEMBRE | K6: OCTOBRE | L6: NOVEMBRE | M6: DÉCEMBRE | N6: TOTAL
A8: COMPROMIS SIGNES
A9: Montant signé | B9: =SUMIFS('Suivi activité'!$R$5:$R$274,'Suivi activité'!$S$5:$S$274,B6) -> 0 | C9: =SUMIFS('Suivi activité'!$R$5:$R$274,'Suivi activité'!$S$5:$S$274,C6) -> 0 | D9: =SUMIFS('Suivi activité'!$R$5:$R$274,'Suivi activité'!$S$5:$S$274,D6) -> 0 | E9: =SUMIFS('Suivi activité'!$R$5:$R$274,'Suivi activité'!$S$5:$S$274,E6) -> 650000 | F9: =SUMIFS('Suivi activité'!$R$5:$R$274,'Suivi activité'!$S$5:$S$274,F6) -> 0 | G9: =SUMIFS('Suivi activité'!$R$5:$R$274,'Suivi activité'!$S$5:$S$274,G6) -> 0 | H9: =SUMIFS('Suivi activité'!$R$5:$R$274,'Suivi activité'!$S$5:$S$274,H6) -> 0 | I9: =SUMIFS('Suivi activité'!$R$5:$R$274,'Suivi activité'!$S$5:$S$274,I6) -> 0 | J9: =SUMIFS('Suivi activité'!$R$5:$R$274,'Suivi activité'!$S$5:$S$274,J6) -> 250000 | K9: =SUMIFS('Suivi activité'!$R$5:$R$274,'Suivi activité'!$S$5:$S$274,K6) -> 0 | L9: =SUMIFS('Suivi activité'!$R$5:$R$274,'Suivi activité'!$S$5:$S$274,L6) -> 0 | M9: =SUMIFS('Suivi activité'!$R$5:$R$274,'Suivi activité'!$S$5:$S$274,M6) -> 300000 | N9: =SUM(B9:M9) -> 1200000
A10: ACTE SIGNES
A11: Montant signé | B11: =SUMIFS('Suivi activité'!$T$5:$T$274,'Suivi activité'!$U$5:$U$274,B6) -> 0 | C11: =SUMIFS('Suivi activité'!$T$5:$T$274,'Suivi activité'!$U$5:$U$274,C6) -> 0 | D11: =SUMIFS('Suivi activité'!$T$5:$T$274,'Suivi activité'!$U$5:$U$274,D6) -> 0 | E11: =SUMIFS('Suivi activité'!$T$5:$T$274,'Suivi activité'!$U$5:$U$274,E6) -> 0 | F11: =SUMIFS('Suivi activité'!$T$5:$T$274,'Suivi activité'!$U$5:$U$274,F6) -> 0 | G11: =SUMIFS('Suivi activité'!$T$5:$T$274,'Suivi activité'!$U$5:$U$274,G6) -> 0 | H11: =SUMIFS('Suivi activité'!$T$5:$T$274,'Suivi activité'!$U$5:$U$274,H6) -> 650000 | I11: =SUMIFS('Suivi activité'!$T$5:$T$274,'Suivi activité'!$U$5:$U$274,I6) -> 0 | J11: =SUMIFS('Suivi activité'!$T$5:$T$274,'Suivi activité'!$U$5:$U$274,J6) -> 0 | K11: =SUMIFS('Suivi activité'!$T$5:$T$274,'Suivi activité'!$U$5:$U$274,K6) -> 0 | L11: =SUMIFS('Suivi activité'!$T$5:$T$274,'Suivi activité'!$U$5:$U$274,L6) -> 0 | M11: =SUMIFS('Suivi activité'!$T$5:$T$274,'Suivi activité'!$U$5:$U$274,M6) -> 250000 | N11: =SUM(B11:M11) -> 900000
A12: VENTES ANNULEES
A13: Montant annulé | B13: =SUMIFS('Suivi activité'!$R$5:$R$274,'Suivi activité'!$S$5:$S$274,B6) -> 0 | N13: =SUM(B13:M13) -> 0
D16: COMPROMIS | F16: ACTE
C17: Montant signé: | D17: =N9 -> 1200000 | F17: =N11 -> 900000
C19: Rappel objectif: | D19: =OBJECTIFS!J5 -> 1450000
C21: Pourcentage de l'objectif: | D21: =IF(ISERROR(F17/D19),"",F17/D19) -> 0.6206896552

Sheet OBJECTIFS (hidden)
A1: Objectifs des négociateurs | C1: Année: | D1: =paramètres!F5 -> 2023
B4: =IF(ISBLANK(paramètres!B5),"",paramètres!B5) -> Lionel | C4: =IF(ISBLANK(paramètres!B6),"",paramètres!B6) -> Tiphaine | D4: =IF(ISBLANK(paramètres!B7),"",paramètres!B7) -> Vanessa | E4: =IF(ISBLANK(paramètres!B8),"",paramètres!B8) -> Cléa | F4: =IF(ISBLANK(paramètres!B9),"",paramètres!B9) -> Marc | J4: TOTAL
A5: OBJECTIF CHIFFRE D'AFFAIRES | B5: 350000 | C5: 250000 | D5: 250000 | E5: 300000 | F5: 300000 | J5: =SUM(B5:I5) -> 1450000
M6: ATTENTION A VOIR ENTRE CHIFFRE COMPROMIS et ACTE avec CA NEGO !
A7: COMPROMIS EN COURS
A8: Montant | B8: =SUMIFS('Suivi activité'!$R$5:$R$274,'Suivi activité'!$L$5:$L$274,B4) -> 550000 | C8: =SUMIFS('Suivi activité'!$R$5:$R$274,'Suivi activité'!$L$5:$L$274,C4) -> 0 | D8: =SUMIFS('Suivi activité'!$R$5:$R$274,'Suivi activité'!$L$5:$L$274,D4) -> 0 | E8: =SUMIFS('Suivi activité'!$R$5:$R$274,'Suivi activité'!$L$5:$L$274,E4) -> 650000 | F8: =SUMIFS('Suivi activité'!$R$5:$R$274,'Suivi activité'!$L$5:$L$274,F4) -> 0 | J8: =SUM(B8:I8) -> 1200000
A9: ACTES
A10: Montant | B10: =SUMIFS('Suivi activité'!$T$5:$T$274,'Suivi activité'!$L$5:$L$274,B4) -> 250000 | C10: =SUMIFS('Suivi activité'!$T$5:$T$274,'Suivi activité'!$L$5:$L$274,C4) -> 0 | D10: =SUMIFS('Suivi activité'!$T$5:$T$274,'Suivi activité'!$L$5:$L$274,D4) -> 0 | E10: =SUMIFS('Suivi activité'!$T$5:$T$274,'Suivi activité'!$L$5:$L$274,E4) -> 650000 | F10: =SUMIFS('Suivi activité'!$T$5:$T$274,'Suivi activité'!$L$5:$L$274,F4) -> 0 | J10: =SUM(B10:I10) -> 900000
A11: VENTES ANNULEES
A12: Montant annulé | J12: 0
A13: PROJETS SUSPENDUS OU PERDUS
A14: Montant perdu | J14: 0
A16: Total CA acté | B16: =B10 -> 250000 | C16: =C10 -> 0 | D16: 0 | E16: 650000 | F16: 0 | J16: =SUM(B16:I16) -> 900000
A17: % de l'objectif | B17: =IF(ISERROR(B16/B5),"",B16/B5) -> 0.7142857143 | C17: =IF(ISERROR(C16/C5),"",C16/C5) -> 0 | D17: 0 | E17: 2.166666667 | F17: 0 | J17: =SUM(B17:I17) -> 2.880952381

Sheet Analyses Tiphaine (hidden)
A1: Analyses par commercial
F4: Sélectionnez nom du négociateur: | G4: Tiphaine
A6: Analyse de l'origine des prospects par commercial
A7: Origine | B7: JANVIER | C7: FÉVRIER | D7: MARS | E7: AVRIL | F7: MAI | G7: JUIN | H7: JUILLET | I7: AOÛT | J7: SEPTEMBRE | K7: OCTOBRE | L7: NOVEMBRE | M7: DÉCEMBRE | N7: TOTAL | O7: Pourcentage
A8: =IF(ISBLANK(paramètres!A5),"",paramètres!A5) -> Appel direct | B8: =COUNTIFS(Tableau3[Source du prospect],'Analyses Tiphaine'!A8,Tableau3[Mois],'Analyses Tiphaine'!$B$7,Tableau3[Négo],paramètres!$B$5) -> 0 | C8: =COUNTIFS(Tableau3[Source du prospect],'Analyses Tiphaine'!A8,Tableau3[Mois],'Analyses Tiphaine'!$C$7,Tableau3[Négo],paramètres!$B$5) -> 0 | D8: =COUNTIFS(Tableau3[Source du prospect],'Analyses Tiphaine'!A8,Tableau3[Mois],'Analyses Tiphaine'!$D$7,Tableau3[Négo],paramètres!$B$5) -> 0 | E8: =COUNTIFS(Tableau3[Source du prospect],'Analyses Tiphaine'!A8,Tableau3[Mois],'Analyses Tiphaine'!$E$7,Tableau3[Négo],paramètres!$B$5) -> 0 | F8: =COUNTIFS(Tableau3[Source du prospect],'Analyses Tiphaine'!A8,Tableau3[Mois],'Analyses Tiphaine'!$F$7,Tableau3[Négo],paramètres!$B$5) -> 0 | G8: =COUNTIFS(Tableau3[Source du prospect],'Analyses Tiphaine'!A8,Tableau3[Mois],'Analyses Tiphaine'!$G$7,Tableau3[Négo],paramètres!$B$5) -> 0 | H8: =COUNTIFS(Tableau3[Source du prospect],'Analyses Tiphaine'!A8,Tableau3[Mois],'Analyses Tiphaine'!$H$7,Tableau3[Négo],paramètres!$B$5) -> 0 | I8: =COUNTIFS(Tableau3[Source du prospect],'Analyses Tiphaine'!A8,Tableau3[Mois],'Analyses Tiphaine'!$I$7,Tableau3[Négo],paramètres!$B$5) -> 0 | J8: =COUNTIFS(Tableau3[Source du prospect],'Analyses Tiphaine'!A8,Tableau3[Mois],'Analyses Tiphaine'!$J$7,Tableau3[Négo],paramètres!$B$5) -> 0 | K8: =COUNTIFS(Tableau3[Source du prospect],'Analyses Tiphaine'!A8,Tableau3[Mois],'Analyses Tiphaine'!$K$7,Tableau3[Négo],paramètres!$B$5) -> 0 | L8: =COUNTIFS(Tableau3[Source du prospect],'Analyses Tiphaine'!A8,Tableau3[Mois],'Analyses Tiphaine'!$L$7,Tableau3[Négo],paramètres!$B$5) -> 0 | M8: =COUNTIFS(Tableau3[Source du prospect],'Analyses Tiphaine'!A8,Tableau3[Mois],'Analyses Tiphaine'!$M$7,Tableau3[Négo],paramètres!$B$5) -> 1 | N8: =SUM(B8:M8) -> 1
A9: =IF(ISBLANK(paramètres!A6),"",paramètres!A6) -> e-mail | B9: =COUNTIFS(Tableau3[Source du prospect],'Analyses Tiphaine'!A9,Tableau3[Mois],'Analyses Tiphaine'!$B$7,Tableau3[Négo],paramètres!$B$5) -> 0 | C9: =COUNTIFS(Tableau3[Source du prospect],'Analyses Tiphaine'!A9,Tableau3[Mois],'Analyses Tiphaine'!$C$7,Tableau3[Négo],paramètres!$B$5) -> 1 | D9: =COUNTIFS(Tableau3[Source du prospect],'Analyses Tiphaine'!A9,Tableau3[Mois],'Analyses Tiphaine'!$D$7,Tableau3[Négo],paramètres!$B$5) -> 0 | E9: =COUNTIFS(Tableau3[Source du prospect],'Analyses Tiphaine'!A9,Tableau3[Mois],'Analyses Tiphaine'!$E$7,Tableau3[Négo],paramètres!$B$5) -> 0 | F9: =COUNTIFS(Tableau3[Source du prospect],'Analyses Tiphaine'!A9,Tableau3[Mois],'Analyses Tiphaine'!$F$7,Tableau3[Négo],paramètres!$B$5) -> 0 | G9: =COUNTIFS(Tableau3[Source du prospect],'Analyses Tiphaine'!A9,Tableau3[Mois],'Analyses Tiphaine'!$G$7,Tableau3[Négo],paramètres!$B$5) -> 0 | H9: =COUNTIFS(Tableau3[Source du prospect],'Analyses Tiphaine'!A9,Tableau3[Mois],'Analyses Tiphaine'!$H$7,Tableau3[Négo],paramètres!$B$5) -> 0 | I9: =COUNTIFS(Tableau3[Source du prospect],'Analyses Tiphaine'!A9,Tableau3[Mois],'Analyses Tiphaine'!$I$7,Tableau3[Négo],paramètres!$B$5) -> 0 | J9: =COUNTIFS(Tableau3[Source du prospect],'Analyses Tiphaine'!A9,Tableau3[Mois],'Analyses Tiphaine'!$J$7,Tableau3[Négo],paramètres!$B$5) -> 0 | K9: =COUNTIFS(Tableau3[Source du prospect],'Analyses Tiphaine'!A9,Tableau3[Mois],'Analyses Tiphaine'!$K$7,Tableau3[Négo],paramètres!$B$5) -> 0 | L9: =COUNTIFS(Tableau3[Source du prospect],'Analyses Tiphaine'!A9,Tableau3[Mois],'Analyses Tiphaine'!$L$7,Tableau3[Négo],paramètres!$B$5) -> 0 | M9: =COUNTIFS(Tableau3[Source du prospect],'Analyses Tiphaine'!A9,Tableau3[Mois],'Analyses Tiphaine'!$M$7,Tableau3[Négo],paramètres!$B$5) -> 0 | N9: =SUM(B9:M9) -> 1
A10: =IF(ISBLANK(paramètres!A7),"",paramètres!A7) -> Prospection | B10: =COUNTIFS(Tableau3[Source du prospect],'Analyses Tiphaine'!A10,Tableau3[Mois],'Analyses Tiphaine'!$B$7,Tableau3[Négo],paramètres!$B$5) -> 0 | C10: =COUNTIFS(Tableau3[Source du prospect],'Analyses Tiphaine'!A10,Tableau3[Mois],'Analyses Tiphaine'!$C$7,Tableau3[Négo],paramètres!$B$5) -> 0 | D10: =COUNTIFS(Tableau3[Source du prospect],'Analyses Tiphaine'!A10,Tableau3[Mois],'Analyses Tiphaine'!$D$7,Tableau3[Négo],paramètres!$B$5) -> 0 | E10: =COUNTIFS(Tableau3[Source du prospect],'Analyses Tiphaine'!A10,Tableau3[Mois],'Analyses Tiphaine'!$E$7,Tableau3[Négo],paramètres!$B$5) -> 0 | F10: =COUNTIFS(Tableau3[Source du prospect],'Analyses Tiphaine'!A10,Tableau3[Mois],'Analyses Tiphaine'!$F$7,Tableau3[Négo],paramètres!$B$5) -> 0 | G10: =COUNTIFS(Tableau3[Source du prospect],'Analyses Tiphaine'!A10,Tableau3[Mois],'Analyses Tiphaine'!$G$7,Tableau3[Négo],paramètres!$B$5) -> 0 | H10: =COUNTIFS(Tableau3[Source du prospect],'Analyses Tiphaine'!A10,Tableau3[Mois],'Analyses Tiphaine'!$H$7,Tableau3[Négo],paramètres!$B$5) -> 0 | I10: =COUNTIFS(Tableau3[Source du prospect],'Analyses Tiphaine'!A10,Tableau3[Mois],'Analyses Tiphaine'!$I$7,Tableau3[Négo],paramètres!$B$5) -> 0 | J10: =COUNTIFS(Tableau3[Source du prospect],'Analyses Tiphaine'!A10,Tableau3[Mois],'Analyses Tiphaine'!$J$7,Tableau3[Négo],paramètres!$B$5) -> 0 | K10: =COUNTIFS(Tableau3[Source du prospect],'Analyses Tiphaine'!A10,Tableau3[Mois],'Analyses Tiphaine'!$K$7,Tableau3[Négo],paramètres!$B$5) -> 0 | L10: =COUNTIFS(Tableau3[Source du prospect],'Analyses Tiphaine'!A10,Tableau3[Mois],'Analyses Tiphaine'!$L$7,Tableau3[Négo],paramètres!$B$5) -> 0 | M10: =COUNTIFS(Tableau3[Source du prospect],'Analyses Tiphaine'!A10,Tableau3[Mois],'Analyses Tiphaine'!$M$7,Tableau3[Négo],paramètres!$B$5) -> 1 | N10: 1
A11: =IF(ISBLANK(paramètres!A8),"",paramètres!A8) -> Site Internet | B11: =COUNTIFS(Tableau3[Source du prospect],'Analyses Tiphaine'!A11,Tableau3[Mois],'Analyses Tiphaine'!$B$7,Tableau3[Négo],paramètres!$B$5) -> 0 | C11: =COUNTIFS(Tableau3[Source du prospect],'Analyses Tiphaine'!A11,Tableau3[Mois],'Analyses Tiphaine'!$C$7,Tableau3[Négo],paramètres!$B$5) -> 1 | D11: =COUNTIFS(Tableau3[Source du prospect],'Analyses Tiphaine'!A11,Tableau3[Mois],'Analyses Tiphaine'!$D$7,Tableau3[Négo],paramètres!$B$5) -> 0 | E11: =COUNTIFS(Tableau3[Source du prospect],'Analyses Tiphaine'!A11,Tableau3[Mois],'Analyses Tiphaine'!$E$7,Tableau3[Négo],paramètres!$B$5) -> 0 | F11: =COUNTIFS(Tableau3[Source du prospect],'Analyses Tiphaine'!A11,Tableau3[Mois],'Analyses Tiphaine'!$F$7,Tableau3[Négo],paramètres!$B$5) -> 0 | G11: =COUNTIFS(Tableau3[Source du prospect],'Analyses Tiphaine'!A11,Tableau3[Mois],'Analyses Tiphaine'!$G$7,Tableau3[Négo],paramètres!$B$5) -> 0 | H11: =COUNTIFS(Tableau3[Source du prospect],'Analyses Tiphaine'!A11,Tableau3[Mois],'Analyses Tiphaine'!$H$7,Tableau3[Négo],paramètres!$B$5) -> 0 | I11: =COUNTIFS(Tableau3[Source du prospect],'Analyses Tiphaine'!A11,Tableau3[Mois],'Analyses Tiphaine'!$I$7,Tableau3[Négo],paramètres!$B$5) -> 0 | J11: =COUNTIFS(Tableau3[Source du prospect],'Analyses Tiphaine'!A11,Tableau3[Mois],'Analyses Tiphaine'!$J$7,Tableau3[Négo],paramètres!$B$5) -> 0 | K11: =COUNTIFS(Tableau3[Source du prospect],'Analyses Tiphaine'!A11,Tableau3[Mois],'Analyses Tiphaine'!$K$7,Tableau3[Négo],paramètres!$B$5) -> 0 | L11: =COUNTIFS(Tableau3[Source du prospect],'Analyses Tiphaine'!A11,Tableau3[Mois],'Analyses Tiphaine'!$L$7,Tableau3[Négo],paramètres!$B$5) -> 0 | M11: =COUNTIFS(Tableau3[Source du prospect],'Analyses Tiphaine'!A11,Tableau3[Mois],'Analyses Tiphaine'!$M$7,Tableau3[Négo],paramètres!$B$5) -> 0 | N11: 1
A12: =IF(ISBLANK(paramètres!A9),"",paramètres!A9) -> Appel agence | B12: =COUNTIFS(Tableau3[Source du prospect],'Analyses Tiphaine'!A12,Tableau3[Mois],'Analyses Tiphaine'!$B$7,Tableau3[Négo],paramètres!$B$5) -> 0 | C12: =COUNTIFS(Tableau3[Source du prospect],'Analyses Tiphaine'!A12,Tableau3[Mois],'Analyses Tiphaine'!$C$7,Tableau3[Négo],paramètres!$B$5) -> 0 | D12: =COUNTIFS(Tableau3[Source du prospect],'Analyses Tiphaine'!A12,Tableau3[Mois],'Analyses Tiphaine'!$D$7,Tableau3[Négo],paramètres!$B$5) -> 0 | E12: =COUNTIFS(Tableau3[Source du prospect],'Analyses Tiphaine'!A12,Tableau3[Mois],'Analyses Tiphaine'!$E$7,Tableau3[Négo],paramètres!$B$5) -> 0 | F12: =COUNTIFS(Tableau3[Source du prospect],'Analyses Tiphaine'!A12,Tableau3[Mois],'Analyses Tiphaine'!$F$7,Tableau3[Négo],paramètres!$B$5) -> 0 | G12: =COUNTIFS(Tableau3[Source du prospect],'Analyses Tiphaine'!A12,Tableau3[Mois],'Analyses Tiphaine'!$G$7,Tableau3[Négo],paramètres!$B$5) -> 0 | H12: =COUNTIFS(Tableau3[Source du prospect],'Analyses Tiphaine'!A12,Tableau3[Mois],'Analyses Tiphaine'!$H$7,Tableau3[Négo],paramètres!$B$5) -> 0 | I12: =COUNTIFS(Tableau3[Source du prospect],'Analyses Tiphaine'!A12,Tableau3[Mois],'Analyses Tiphaine'!$I$7,Tableau3[Négo],paramètres!$B$5) -> 0 | J12: =COUNTIFS(Tableau3[Source du prospect],'Analyses Tiphaine'!A12,Tableau3[Mois],'Analyses Tiphaine'!$J$7,Tableau3[Négo],paramètres!$B$5) -> 0 | K12: =COUNTIFS(Tableau3[Source du prospect],'Analyses Tiphaine'!A12,Tableau3[Mois],'Analyses Tiphaine'!$K$7,Tableau3[Négo],paramètres!$B$5) -> 0 | L12: =COUNTIFS(Tableau3[Source du prospect],'Analyses Tiphaine'!A12,Tableau3[Mois],'Analyses Tiphaine'!$L$7,Tableau3[Négo],paramètres!$B$5) -> 0 | M12: =COUNTIFS(Tableau3[Source du prospect],'Analyses Tiphaine'!A12,Tableau3[Mois],'Analyses Tiphaine'!$M$7,Tableau3[Négo],paramètres!$B$5) -> 0 | N12: 0
A13: =IF(ISBLANK(paramètres!A10),"",paramètres!A10) ->  | N13: 0
A14: =IF(ISBLANK(paramètres!A11),"",paramètres!A11) ->  | N14: 0
A15: =IF(ISBLANK(paramètres!A12),"",paramètres!A12) ->  | N15: =SUM(B15:M15) -> 0
A16: =IF(ISBLANK(paramètres!A13),"",paramètres!A13) ->  | N16: 0
A17: =IF(ISBLANK(paramètres!A14),"",paramètres!A14) ->  | N17: 0
A18: =IF(ISBLANK(paramètres!A15),"",paramètres!A15) ->  | N18: 0
A19: =IF(ISBLANK(paramètres!A16),"",paramètres!A16) ->  | N19: 0
A20: TOTAL | B20: =SUM(B8:B19) -> 0 | C20: =SUM(C8:C19) -> 2 | D20: 0 | E20: 0 | F20: 0 | G20: 0 | H20: 0 | I20: 0 | J20: 0 | K20: 0 | L20: 0 | M20: 2 | N20: 4 | O20: 0
A22: Statut actuel des dossiers du négociateur
A23: Statut | B23: JANVIER | C23: FÉVRIER | D23: MARS | E23: AVRIL | F23: MAI | G23: JUIN | H23: JUILLET | I23: AOÛT | J23: SEPTEMBRE | K23: OCTOBRE | L23: NOVEMBRE | M23: DÉCEMBRE | N23: TOTAL | O23: Pourcentage
A24: =IF(ISBLANK(paramètres!C5),"",paramètres!C5) -> TEL, SMS | B24: =COUNTIFS(Tableau3[Statut actuel],'Analyses Tiphaine'!A24,Tableau3[Mois],'Analyses Tiphaine'!$B$7,Tableau3[Négo],paramètres!$B$5) -> 0 | C24: =COUNTIFS(Tableau3[Statut actuel],'Analyses Tiphaine'!A24,Tableau3[Mois],'Analyses Tiphaine'!$C$7,Tableau3[Négo],paramètres!$B$5) -> 0 | D24: =COUNTIFS(Tableau3[Statut actuel],'Analyses Tiphaine'!A24,Tableau3[Mois],'Analyses Tiphaine'!$D$7,Tableau3[Négo],paramètres!$B$5) -> 0 | E24: =COUNTIFS(Tableau3[Statut actuel],'Analyses Tiphaine'!A24,Tableau3[Mois],'Analyses Tiphaine'!$E$7,Tableau3[Négo],paramètres!$B$5) -> 0 | F24: =COUNTIFS(Tableau3[Statut actuel],'Analyses Tiphaine'!A24,Tableau3[Mois],'Analyses Tiphaine'!$F$7,Tableau3[Négo],paramètres!$B$5) -> 0 | G24: =COUNTIFS(Tableau3[Statut actuel],'Analyses Tiphaine'!A24,Tableau3[Mois],'Analyses Tiphaine'!$G$7,Tableau3[Négo],paramètres!$B$5) -> 0 | H24: =COUNTIFS(Tableau3[Statut actuel],'Analyses Tiphaine'!A24,Tableau3[Mois],'Analyses Tiphaine'!$H$7,Tableau3[Négo],paramètres!$B$5) -> 0 | I24: =COUNTIFS(Tableau3[Statut actuel],'Analyses Tiphaine'!A24,Tableau3[Mois],'Analyses Tiphaine'!$I$7,Tableau3[Négo],paramètres!$B$5) -> 0 | J24: =COUNTIFS(Tableau3[Statut actuel],'Analyses Tiphaine'!A24,Tableau3[Mois],'Analyses Tiphaine'!$J$7,Tableau3[Négo],paramètres!$B$5) -> 0 | K24: =COUNTIFS(Tableau3[Statut actuel],'Analyses Tiphaine'!A24,Tableau3[Mois],'Analyses Tiphaine'!$K$7,Tableau3[Négo],paramètres!$B$5) -> 0 | L24: =COUNTIFS(Tableau3[Statut actuel],'Analyses Tiphaine'!A24,Tableau3[Mois],'Analyses Tiphaine'!$L$7,Tableau3[Négo],paramètres!$B$5) -> 0 | M24: =COUNTIFS(Tableau3[Statut actuel],'Analyses Tiphaine'!A24,Tableau3[Mois],'Analyses Tiphaine'!$M$7,Tableau3[Négo],paramètres!$B$5) -> 0 | N24: =SUM(B24:M24) -> 0
A25: =IF(ISBLANK(paramètres!C6),"",paramètres!C6) -> Porte à porte | B25: =COUNTIFS(Tableau3[Statut actuel],'Analyses Tiphaine'!A25,Tableau3[Mois],'Analyses Tiphaine'!$B$7,Tableau3[Négo],paramètres!$B$5) -> 0 | C25: =COUNTIFS(Tableau3[Statut actuel],'Analyses Tiphaine'!A25,Tableau3[Mois],'Analyses Tiphaine'!$C$7,Tableau3[Négo],paramètres!$B$5) -> 0 | D25: =COUNTIFS(Tableau3[Statut actuel],'Analyses Tiphaine'!A25,Tableau3[Mois],'Analyses Tiphaine'!$D$7,Tableau3[Négo],paramètres!$B$5) -> 0 | E25: =COUNTIFS(Tableau3[Statut actuel],'Analyses Tiphaine'!A25,Tableau3[Mois],'Analyses Tiphaine'!$E$7,Tableau3[Négo],paramètres!$B$5) -> 0 | F25: =COUNTIFS(Tableau3[Statut actuel],'Analyses Tiphaine'!A25,Tableau3[Mois],'Analyses Tiphaine'!$F$7,Tableau3[Négo],paramètres!$B$5) -> 0 | G25: =COUNTIFS(Tableau3[Statut actuel],'Analyses Tiphaine'!A25,Tableau3[Mois],'Analyses Tiphaine'!$G$7,Tableau3[Négo],paramètres!$B$5) -> 0 | H25: =COUNTIFS(Tableau3[Statut actuel],'Analyses Tiphaine'!A25,Tableau3[Mois],'Analyses Tiphaine'!$H$7,Tableau3[Négo],paramètres!$B$5) -> 0 | I25: =COUNTIFS(Tableau3[Statut actuel],'Analyses Tiphaine'!A25,Tableau3[Mois],'Analyses Tiphaine'!$I$7,Tableau3[Négo],paramètres!$B$5) -> 0 | J25: =COUNTIFS(Tableau3[Statut actuel],'Analyses Tiphaine'!A25,Tableau3[Mois],'Analyses Tiphaine'!$J$7,Tableau3[Négo],paramètres!$B$5) -> 0 | K25: =COUNTIFS(Tableau3[Statut actuel],'Analyses Tiphaine'!A25,Tableau3[Mois],'Analyses Tiphaine'!$K$7,Tableau3[Négo],paramètres!$B$5) -> 0 | L25: =COUNTIFS(Tableau3[Statut actuel],'Analyses Tiphaine'!A25,Tableau3[Mois],'Analyses Tiphaine'!$L$7,Tableau3[Négo],paramètres!$B$5) -> 0 | M25: =COUNTIFS(Tableau3[Statut actuel],'Analyses Tiphaine'!A25,Tableau3[Mois],'Analyses Tiphaine'!$M$7,Tableau3[Négo],paramètres!$B$5) -> 0 | N25: =SUM(B25:M25) -> 0
A26: =IF(ISBLANK(paramètres!C7),"",paramètres!C7) -> R1 | B26: =COUNTIFS(Tableau3[Statut actuel],'Analyses Tiphaine'!A26,Tableau3[Mois],'Analyses Tiphaine'!$B$7,Tableau3[Négo],paramètres!$B$5) -> 0 | C26: =COUNTIFS(Tableau3[Statut actuel],'Analyses Tiphaine'!A26,Tableau3[Mois],'Analyses Tiphaine'!$C$7,Tableau3[Négo],paramètres!$B$5) -> 0 | D26: =COUNTIFS(Tableau3[Statut actuel],'Analyses Tiphaine'!A26,Tableau3[Mois],'Analyses Tiphaine'!$D$7,Tableau3[Négo],paramètres!$B$5) -> 0 | E26: =COUNTIFS(Tableau3[Statut actuel],'Analyses Tiphaine'!A26,Tableau3[Mois],'Analyses Tiphaine'!$E$7,Tableau3[Négo],paramètres!$B$5) -> 0 | F26: =COUNTIFS(Tableau3[Statut actuel],'Analyses Tiphaine'!A26,Tableau3[Mois],'Analyses Tiphaine'!$F$7,Tableau3[Négo],paramètres!$B$5) -> 0 | G26: =COUNTIFS(Tableau3[Statut actuel],'Analyses Tiphaine'!A26,Tableau3[Mois],'Analyses Tiphaine'!$G$7,Tableau3[Négo],paramètres!$B$5) -> 0 | H26: =COUNTIFS(Tableau3[Statut actuel],'Analyses Tiphaine'!A26,Tableau3[Mois],'Analyses Tiphaine'!$H$7,Tableau3[Négo],paramètres!$B$5) -> 0 | I26: =COUNTIFS(Tableau3[Statut actuel],'Analyses Tiphaine'!A26,Tableau3[Mois],'Analyses Tiphaine'!$I$7,Tableau3[Négo],paramètres!$B$5) -> 0 | J26: =COUNTIFS(Tableau3[Statut actuel],'Analyses Tiphaine'!A26,Tableau3[Mois],'Analyses Tiphaine'!$J$7,Tableau3[Négo],paramètres!$B$5) -> 0 | K26: =COUNTIFS(Tableau3[Statut actuel],'Analyses Tiphaine'!A26,Tableau3[Mois],'Analyses Tiphaine'!$K$7,Tableau3[Négo],paramètres!$B$5) -> 0 | L26: =COUNTIFS(Tableau3[Statut actuel],'Analyses Tiphaine'!A26,Tableau3[Mois],'Analyses Tiphaine'!$L$7,Tableau3[Négo],paramètres!$B$5) -> 0 | M26: =COUNTIFS(Tableau3[Statut actuel],'Analyses Tiphaine'!A26,Tableau3[Mois],'Analyses Tiphaine'!$M$7,Tableau3[Négo],paramètres!$B$5) -> 0 | N26: 0
A27: =IF(ISBLANK(paramètres!C8),"",paramètres!C8) -> R2 | B27: =COUNTIFS(Tableau3[Statut actuel],'Analyses Tiphaine'!A27,Tableau3[Mois],'Analyses Tiphaine'!$B$7,Tableau3[Négo],paramètres!$B$5) -> 0 | C27: =COUNTIFS(Tableau3[Statut actuel],'Analyses Tiphaine'!A27,Tableau3[Mois],'Analyses Tiphaine'!$C$7,Tableau3[Négo],paramètres!$B$5) -> 0 | D27: =COUNTIFS(Tableau3[Statut actuel],'Analyses Tiphaine'!A27,Tableau3[Mois],'Analyses Tiphaine'!$D$7,Tableau3[Négo],paramètres!$B$5) -> 0 | E27: =COUNTIFS(Tableau3[Statut actuel],'Analyses Tiphaine'!A27,Tableau3[Mois],'Analyses Tiphaine'!$E$7,Tableau3[Négo],paramètres!$B$5) -> 0 | F27: =COUNTIFS(Tableau3[Statut actuel],'Analyses Tiphaine'!A27,Tableau3[Mois],'Analyses Tiphaine'!$F$7,Tableau3[Négo],paramètres!$B$5) -> 0 | G27: =COUNTIFS(Tableau3[Statut actuel],'Analyses Tiphaine'!A27,Tableau3[Mois],'Analyses Tiphaine'!$G$7,Tableau3[Négo],paramètres!$B$5) -> 0 | H27: =COUNTIFS(Tableau3[Statut actuel],'Analyses Tiphaine'!A27,Tableau3[Mois],'Analyses Tiphaine'!$H$7,Tableau3[Négo],paramètres!$B$5) -> 0 | I27: =COUNTIFS(Tableau3[Statut actuel],'Analyses Tiphaine'!A27,Tableau3[Mois],'Analyses Tiphaine'!$I$7,Tableau3[Négo],paramètres!$B$5) -> 0 | J27: =COUNTIFS(Tableau3[Statut actuel],'Analyses Tiphaine'!A27,Tableau3[Mois],'Analyses Tiphaine'!$J$7,Tableau3[Négo],paramètres!$B$5) -> 0 | K27: =COUNTIFS(Tableau3[Statut actuel],'Analyses Tiphaine'!A27,Tableau3[Mois],'Analyses Tiphaine'!$K$7,Tableau3[Négo],paramètres!$B$5) -> 0 | L27: =COUNTIFS(Tableau3[Statut actuel],'Analyses Tiphaine'!A27,Tableau3[Mois],'Analyses Tiphaine'!$L$7,Tableau3[Négo],paramètres!$B$5) -> 0 | M27: =COUNTIFS(Tableau3[Statut actuel],'Analyses Tiphaine'!A27,Tableau3[Mois],'Analyses Tiphaine'!$M$7,Tableau3[Négo],paramètres!$B$5) -> 0 | N27: 0
A28: =IF(ISBLANK(paramètres!C9),"",paramètres!C9) -> Estimation faite | B28: =COUNTIFS(Tableau3[Statut actuel],'Analyses Tiphaine'!A28,Tableau3[Mois],'Analyses Tiphaine'!$B$7,Tableau3[Négo],paramètres!$B$5) -> 0 | C28: =COUNTIFS(Tableau3[Statut actuel],'Analyses Tiphaine'!A28,Tableau3[Mois],'Analyses Tiphaine'!$C$7,Tableau3[Négo],paramètres!$B$5) -> 0 | D28: =COUNTIFS(Tableau3[Statut actuel],'Analyses Tiphaine'!A28,Tableau3[Mois],'Analyses Tiphaine'!$D$7,Tableau3[Négo],paramètres!$B$5) -> 0 | E28: =COUNTIFS(Tableau3[Statut actuel],'Analyses Tiphaine'!A28,Tableau3[Mois],'Analyses Tiphaine'!$E$7,Tableau3[Négo],paramètres!$B$5) -> 0 | F28: =COUNTIFS(Tableau3[Statut actuel],'Analyses Tiphaine'!A28,Tableau3[Mois],'Analyses Tiphaine'!$F$7,Tableau3[Négo],paramètres!$B$5) -> 0 | G28: =COUNTIFS(Tableau3[Statut actuel],'Analyses Tiphaine'!A28,Tableau3[Mois],'Analyses Tiphaine'!$G$7,Tableau3[Négo],paramètres!$B$5) -> 0 | H28: =COUNTIFS(Tableau3[Statut actuel],'Analyses Tiphaine'!A28,Tableau3[Mois],'Analyses Tiphaine'!$H$7,Tableau3[Négo],paramètres!$B$5) -> 0 | I28: =COUNTIFS(Tableau3[Statut actuel],'Analyses Tiphaine'!A28,Tableau3[Mois],'Analyses Tiphaine'!$I$7,Tableau3[Négo],paramètres!$B$5) -> 0 | J28: =COUNTIFS(Tableau3[Statut actuel],'Analyses Tiphaine'!A28,Tableau3[Mois],'Analyses Tiphaine'!$J$7,Tableau3[Négo],paramètres!$B$5) -> 0 | K28: =COUNTIFS(Tableau3[Statut actuel],'Analyses Tiphaine'!A28,Tableau3[Mois],'Analyses Tiphaine'!$K$7,Tableau3[Négo],paramètres!$B$5) -> 0 | L28: =COUNTIFS(Tableau3[Statut actuel],'Analyses Tiphaine'!A28,Tableau3[Mois],'Analyses Tiphaine'!$L$7,Tableau3[Négo],paramètres!$B$5) -> 0 | M28: =COUNTIFS(Tableau3[Statut actuel],'Analyses Tiphaine'!A28,Tableau3[Mois],'Analyses Tiphaine'!$M$7,Tableau3[Négo],paramètres!$B$5) -> 0 | N28: 0
A29: =IF(ISBLANK(paramètres!C10),"",paramètres!C10) -> Sous compromis | B29: =COUNTIFS(Tableau3[Statut actuel],'Analyses Tiphaine'!A29,Tableau3[Mois],'Analyses Tiphaine'!$B$7,Tableau3[Négo],paramètres!$B$5) -> 0 | C29: =COUNTIFS(Tableau3[Statut actuel],'Analyses Tiphaine'!A29,Tableau3[Mois],'Analyses Tiphaine'!$C$7,Tableau3[Négo],paramètres!$B$5) -> 0 | D29: =COUNTIFS(Tableau3[Statut actuel],'Analyses Tiphaine'!A29,Tableau3[Mois],'Analyses Tiphaine'!$D$7,Tableau3[Négo],paramètres!$B$5) -> 0 | E29: =COUNTIFS(Tableau3[Statut actuel],'Analyses Tiphaine'!A29,Tableau3[Mois],'Analyses Tiphaine'!$E$7,Tableau3[Négo],paramètres!$B$5) -> 0 | F29: =COUNTIFS(Tableau3[Statut actuel],'Analyses Tiphaine'!A29,Tableau3[Mois],'Analyses Tiphaine'!$F$7,Tableau3[Négo],paramètres!$B$5) -> 0 | G29: =COUNTIFS(Tableau3[Statut actuel],'Analyses Tiphaine'!A29,Tableau3[Mois],'Analyses Tiphaine'!$G$7,Tableau3[Négo],paramètres!$B$5) -> 0 | H29: =COUNTIFS(Tableau3[Statut actuel],'Analyses Tiphaine'!A29,Tableau3[Mois],'Analyses Tiphaine'!$H$7,Tableau3[Négo],paramètres!$B$5) -> 0 | I29: =COUNTIFS(Tableau3[Statut actuel],'Analyses Tiphaine'!A29,Tableau3[Mois],'Analyses Tiphaine'!$I$7,Tableau3[Négo],paramètres!$B$5) -> 0 | J29: =COUNTIFS(Tableau3[Statut actuel],'Analyses Tiphaine'!A29,Tableau3[Mois],'Analyses Tiphaine'!$J$7,Tableau3[Négo],paramètres!$B$5) -> 0 | K29: =COUNTIFS(Tableau3[Statut actuel],'Analyses Tiphaine'!A29,Tableau3[Mois],'Analyses Tiphaine'!$K$7,Tableau3[Négo],paramètres!$B$5) -> 0 | L29: =COUNTIFS(Tableau3[Statut actuel],'Analyses Tiphaine'!A29,Tableau3[Mois],'Analyses Tiphaine'!$L$7,Tableau3[Négo],paramètres!$B$5) -> 0 | M29: =COUNTIFS(Tableau3[Statut actuel],'Analyses Tiphaine'!A29,Tableau3[Mois],'Analyses Tiphaine'!$M$7,Tableau3[Négo],paramètres!$B$5) -> 1 | N29: 1
A30: =IF(ISBLANK(paramètres!C11),"",paramètres!C11) -> Vendu | B30: =COUNTIFS(Tableau3[Statut actuel],'Analyses Tiphaine'!A30,Tableau3[Mois],'Analyses Tiphaine'!$B$7,Tableau3[Négo],paramètres!$B$5) -> 0 | C30: =COUNTIFS(Tableau3[Statut actuel],'Analyses Tiphaine'!A30,Tableau3[Mois],'Analyses Tiphaine'!$C$7,Tableau3[Négo],paramètres!$B$5) -> 0 | D30: =COUNTIFS(Tableau3[Statut actuel],'Analyses Tiphaine'!A30,Tableau3[Mois],'Analyses Tiphaine'!$D$7,Tableau3[Négo],paramètres!$B$5) -> 0 | E30: =COUNTIFS(Tableau3[Statut actuel],'Analyses Tiphaine'!A30,Tableau3[Mois],'Analyses Tiphaine'!$E$7,Tableau3[Négo],paramètres!$B$5) -> 0 | F30: =COUNTIFS(Tableau3[Statut actuel],'Analyses Tiphaine'!A30,Tableau3[Mois],'Analyses Tiphaine'!$F$7,Tableau3[Négo],paramètres!$B$5) -> 0 | G30: =COUNTIFS(Tableau3[Statut actuel],'Analyses Tiphaine'!A30,Tableau3[Mois],'Analyses Tiphaine'!$G$7,Tableau3[Négo],paramètres!$B$5) -> 0 | H30: =COUNTIFS(Tableau3[Statut actuel],'Analyses Tiphaine'!A30,Tableau3[Mois],'Analyses Tiphaine'!$H$7,Tableau3[Négo],paramètres!$B$5) -> 0 | I30: =COUNTIFS(Tableau3[Statut actuel],'Analyses Tiphaine'!A30,Tableau3[Mois],'Analyses Tiphaine'!$I$7,Tableau3[Négo],paramètres!$B$5) -> 0 | J30: =COUNTIFS(Tableau3[Statut actuel],'Analyses Tiphaine'!A30,Tableau3[Mois],'Analyses Tiphaine'!$J$7,Tableau3[Négo],paramètres!$B$5) -> 0 | K30: =COUNTIFS(Tableau3[Statut actuel],'Analyses Tiphaine'!A30,Tableau3[Mois],'Analyses Tiphaine'!$K$7,Tableau3[Négo],paramètres!$B$5) -> 0 | L30: =COUNTIFS(Tableau3[Statut actuel],'Analyses Tiphaine'!A30,Tableau3[Mois],'Analyses Tiphaine'!$L$7,Tableau3[Négo],paramètres!$B$5) -> 0 | M30: =COUNTIFS(Tableau3[Statut actuel],'Analyses Tiphaine'!A30,Tableau3[Mois],'Analyses Tiphaine'!$M$7,Tableau3[Négo],paramètres!$B$5) -> 0 | N30: 0
A31: =IF(ISBLANK(paramètres!C12),"",paramètres!C12) -> Vente annulée | B31: =COUNTIFS(Tableau3[Statut actuel],'Analyses Tiphaine'!A31,Tableau3[Mois],'Analyses Tiphaine'!$B$7,Tableau3[Négo],paramètres!$B$5) -> 0 | C31: =COUNTIFS(Tableau3[Statut actuel],'Analyses Tiphaine'!A31,Tableau3[Mois],'Analyses Tiphaine'!$C$7,Tableau3[Négo],paramètres!$B$5) -> 0 | D31: =COUNTIFS(Tableau3[Statut actuel],'Analyses Tiphaine'!A31,Tableau3[Mois],'Analyses Tiphaine'!$D$7,Tableau3[Négo],paramètres!$B$5) -> 0 | E31: =COUNTIFS(Tableau3[Statut actuel],'Analyses Tiphaine'!A31,Tableau3[Mois],'Analyses Tiphaine'!$E$7,Tableau3[Négo],paramètres!$B$5) -> 0 | F31: =COUNTIFS(Tableau3[Statut actuel],'Analyses Tiphaine'!A31,Tableau3[Mois],'Analyses Tiphaine'!$F$7,Tableau3[Négo],paramètres!$B$5) -> 0 | G31: =COUNTIFS(Tableau3[Statut actuel],'Analyses Tiphaine'!A31,Tableau3[Mois],'Analyses Tiphaine'!$G$7,Tableau3[Négo],paramètres!$B$5) -> 0 | H31: =COUNTIFS(Tableau3[Statut actuel],'Analyses Tiphaine'!A31,Tableau3[Mois],'Analyses Tiphaine'!$H$7,Tableau3[Négo],paramètres!$B$5) -> 0 | I31: =COUNTIFS(Tableau3[Statut actuel],'Analyses Tiphaine'!A31,Tableau3[Mois],'Analyses Tiphaine'!$I$7,Tableau3[Négo],paramètres!$B$5) -> 0 | J31: =COUNTIFS(Tableau3[Statut actuel],'Analyses Tiphaine'!A31,Tableau3[Mois],'Analyses Tiphaine'!$J$7,Tableau3[Négo],paramètres!$B$5) -> 0 | K31: =COUNTIFS(Tableau3[Statut actuel],'Analyses Tiphaine'!A31,Tableau3[Mois],'Analyses Tiphaine'!$K$7,Tableau3[Négo],paramètres!$B$5) -> 0 | L31: =COUNTIFS(Tableau3[Statut actuel],'Analyses Tiphaine'!A31,Tableau3[Mois],'Analyses Tiphaine'!$L$7,Tableau3[Négo],paramètres!$B$5) -> 0 | M31: =COUNTIFS(Tableau3[Statut actuel],'Analyses Tiphaine'!A31,Tableau3[Mois],'Analyses Tiphaine'!$M$7,Tableau3[Négo],paramètres!$B$5) -> 1 | N31: 1
A32: =IF(ISBLANK(paramètres!C13),"",paramètres!C13) -> Abandonné | B32: =COUNTIFS(Tableau3[Statut actuel],'Analyses Tiphaine'!A32,Tableau3[Mois],'Analyses Tiphaine'!$B$7,Tableau3[Négo],paramètres!$B$5) -> 0 | C32: =COUNTIFS(Tableau3[Statut actuel],'Analyses Tiphaine'!A32,Tableau3[Mois],'Analyses Tiphaine'!$C$7,Tableau3[Négo],paramètres!$B$5) -> 1 | D32: =COUNTIFS(Tableau3[Statut actuel],'Analyses Tiphaine'!A32,Tableau3[Mois],'Analyses Tiphaine'!$D$7,Tableau3[Négo],paramètres!$B$5) -> 0 | E32: =COUNTIFS(Tableau3[Statut actuel],'Analyses Tiphaine'!A32,Tableau3[Mois],'Analyses Tiphaine'!$E$7,Tableau3[Négo],paramètres!$B$5) -> 0 | F32: =COUNTIFS(Tableau3[Statut actuel],'Analyses Tiphaine'!A32,Tableau3[Mois],'Analyses Tiphaine'!$F$7,Tableau3[Négo],paramètres!$B$5) -> 0 | G32: =COUNTIFS(Tableau3[Statut actuel],'Analyses Tiphaine'!A32,Tableau3[Mois],'Analyses Tiphaine'!$G$7,Tableau3[Négo],paramètres!$B$5) -> 0 | H32: =COUNTIFS(Tableau3[Statut actuel],'Analyses Tiphaine'!A32,Tableau3[Mois],'Analyses Tiphaine'!$H$7,Tableau3[Négo],paramètres!$B$5) -> 0 | I32: =COUNTIFS(Tableau3[Statut actuel],'Analyses Tiphaine'!A32,Tableau3[Mois],'Analyses Tiphaine'!$I$7,Tableau3[Négo],paramètres!$B$5) -> 0 | J32: =COUNTIFS(Tableau3[Statut actuel],'Analyses Tiphaine'!A32,Tableau3[Mois],'Analyses Tiphaine'!$J$7,Tableau3[Négo],paramètres!$B$5) -> 0 | K32: =COUNTIFS(Tableau3[Statut actuel],'Analyses Tiphaine'!A32,Tableau3[Mois],'Analyses Tiphaine'!$K$7,Tableau3[Négo],paramètres!$B$5) -> 0 | L32: =COUNTIFS(Tableau3[Statut actuel],'Analyses Tiphaine'!A32,Tableau3[Mois],'Analyses Tiphaine'!$L$7,Tableau3[Négo],paramètres!$B$5) -> 0 | M32: =COUNTIFS(Tableau3[Statut actuel],'Analyses Tiphaine'!A32,Tableau3[Mois],'Analyses Tiphaine'!$M$7,Tableau3[Négo],paramètres!$B$5) -> 0 | N32: 1
A33: =IF(ISBLANK(paramètres!C14),"",paramètres!C14) -> Stand-by | B33: =COUNTIFS(Tableau3[Statut actuel],'Analyses Tiphaine'!A33,Tableau3[Mois],'Analyses Tiphaine'!$B$7,Tableau3[Négo],paramètres!$B$5) -> 0 | C33: =COUNTIFS(Tableau3[Statut actuel],'Analyses Tiphaine'!A33,Tableau3[Mois],'Analyses Tiphaine'!$C$7,Tableau3[Négo],paramètres!$B$5) -> 0 | D33: =COUNTIFS(Tableau3[Statut actuel],'Analyses Tiphaine'!A33,Tableau3[Mois],'Analyses Tiphaine'!$D$7,Tableau3[Négo],paramètres!$B$5) -> 0 | E33: =COUNTIFS(Tableau3[Statut actuel],'Analyses Tiphaine'!A33,Tableau3[Mois],'Analyses Tiphaine'!$E$7,Tableau3[Négo],paramètres!$B$5) -> 0 | F33: =COUNTIFS(Tableau3[Statut actuel],'Analyses Tiphaine'!A33,Tableau3[Mois],'Analyses Tiphaine'!$F$7,Tableau3[Négo],paramètres!$B$5) -> 0 | G33: =COUNTIFS(Tableau3[Statut actuel],'Analyses Tiphaine'!A33,Tableau3[Mois],'Analyses Tiphaine'!$G$7,Tableau3[Négo],paramètres!$B$5) -> 0 | H33: =COUNTIFS(Tableau3[Statut actuel],'Analyses Tiphaine'!A33,Tableau3[Mois],'Analyses Tiphaine'!$H$7,Tableau3[Négo],paramètres!$B$5) -> 0 | I33: =COUNTIFS(Tableau3[Statut actuel],'Analyses Tiphaine'!A33,Tableau3[Mois],'Analyses Tiphaine'!$I$7,Tableau3[Négo],paramètres!$B$5) -> 0 | J33: =COUNTIFS(Tableau3[Statut actuel],'Analyses Tiphaine'!A33,Tableau3[Mois],'Analyses Tiphaine'!$J$7,Tableau3[Négo],paramètres!$B$5) -> 0 | K33: =COUNTIFS(Tableau3[Statut actuel],'Analyses Tiphaine'!A33,Tableau3[Mois],'Analyses Tiphaine'!$K$7,Tableau3[Négo],paramètres!$B$5) -> 0 | L33: =COUNTIFS(Tableau3[Statut actuel],'Analyses Tiphaine'!A33,Tableau3[Mois],'Analyses Tiphaine'!$L$7,Tableau3[Négo],paramètres!$B$5) -> 0 | M33: =COUNTIFS(Tableau3[Statut actuel],'Analyses Tiphaine'!A33,Tableau3[Mois],'Analyses Tiphaine'!$M$7,Tableau3[Négo],paramètres!$B$5) -> 0 | N33: 0
A34: =IF(ISBLANK(paramètres!C15),"",paramètres!C15) -> Sans Suite | B34: =COUNTIFS(Tableau3[Statut actuel],'Analyses Tiphaine'!A34,Tableau3[Mois],'Analyses Tiphaine'!$B$7,Tableau3[Négo],paramètres!$B$5) -> 0 | C34: =COUNTIFS(Tableau3[Statut actuel],'Analyses Tiphaine'!A34,Tableau3[Mois],'Analyses Tiphaine'!$C$7,Tableau3[Négo],paramètres!$B$5) -> 0 | D34: =COUNTIFS(Tableau3[Statut actuel],'Analyses Tiphaine'!A34,Tableau3[Mois],'Analyses Tiphaine'!$D$7,Tableau3[Négo],paramètres!$B$5) -> 0 | E34: =COUNTIFS(Tableau3[Statut actuel],'Analyses Tiphaine'!A34,Tableau3[Mois],'Analyses Tiphaine'!$E$7,Tableau3[Négo],paramètres!$B$5) -> 0 | F34: =COUNTIFS(Tableau3[Statut actuel],'Analyses Tiphaine'!A34,Tableau3[Mois],'Analyses Tiphaine'!$F$7,Tableau3[Négo],paramètres!$B$5) -> 0 | G34: =COUNTIFS(Tableau3[Statut actuel],'Analyses Tiphaine'!A34,Tableau3[Mois],'Analyses Tiphaine'!$G$7,Tableau3[Négo],paramètres!$B$5) -> 0 | H34: =COUNTIFS(Tableau3[Statut actuel],'Analyses Tiphaine'!A34,Tableau3[Mois],'Analyses Tiphaine'!$H$7,Tableau3[Négo],paramètres!$B$5) -> 0 | I34: =COUNTIFS(Tableau3[Statut actuel],'Analyses Tiphaine'!A34,Tableau3[Mois],'Analyses Tiphaine'!$I$7,Tableau3[Négo],paramètres!$B$5) -> 0 | J34: =COUNTIFS(Tableau3[Statut actuel],'Analyses Tiphaine'!A34,Tableau3[Mois],'Analyses Tiphaine'!$J$7,Tableau3[Négo],paramètres!$B$5) -> 0 | K34: =COUNTIFS(Tableau3[Statut actuel],'Analyses Tiphaine'!A34,Tableau3[Mois],'Analyses Tiphaine'!$K$7,Tableau3[Négo],paramètres!$B$5) -> 0 | L34: =COUNTIFS(Tableau3[Statut actuel],'Analyses Tiphaine'!A34,Tableau3[Mois],'Analyses Tiphaine'!$L$7,Tableau3[Négo],paramètres!$B$5) -> 0 | M34: =COUNTIFS(Tableau3[Statut actuel],'Analyses Tiphaine'!A34,Tableau3[Mois],'Analyses Tiphaine'!$M$7,Tableau3[Négo],paramètres!$B$5) -> 0 | N34: 0
A35: =IF(ISBLANK(paramètres!C16),"",paramètres!C16) -> Mandat | B35: =COUNTIFS(Tableau3[Statut actuel],'Analyses Tiphaine'!A35,Tableau3[Mois],'Analyses Tiphaine'!$B$7,Tableau3[Négo],paramètres!$B$5) -> 0 | C35: =COUNTIFS(Tableau3[Statut actuel],'Analyses Tiphaine'!A35,Tableau3[Mois],'Analyses Tiphaine'!$C$7,Tableau3[Négo],paramètres!$B$5) -> 1 | D35: =COUNTIFS(Tableau3[Statut actuel],'Analyses Tiphaine'!A35,Tableau3[Mois],'Analyses Tiphaine'!$D$7,Tableau3[Négo],paramètres!$B$5) -> 0 | E35: =COUNTIFS(Tableau3[Statut actuel],'Analyses Tiphaine'!A35,Tableau3[Mois],'Analyses Tiphaine'!$E$7,Tableau3[Négo],paramètres!$B$5) -> 0 | F35: =COUNTIFS(Tableau3[Statut actuel],'Analyses Tiphaine'!A35,Tableau3[Mois],'Analyses Tiphaine'!$F$7,Tableau3[Négo],paramètres!$B$5) -> 0 | G35: =COUNTIFS(Tableau3[Statut actuel],'Analyses Tiphaine'!A35,Tableau3[Mois],'Analyses Tiphaine'!$G$7,Tableau3[Négo],paramètres!$B$5) -> 0 | H35: =COUNTIFS(Tableau3[Statut actuel],'Analyses Tiphaine'!A35,Tableau3[Mois],'Analyses Tiphaine'!$H$7,Tableau3[Négo],paramètres!$B$5) -> 0 | I35: =COUNTIFS(Tableau3[Statut actuel],'Analyses Tiphaine'!A35,Tableau3[Mois],'Analyses Tiphaine'!$I$7,Tableau3[Négo],paramètres!$B$5) -> 0 | J35: =COUNTIFS(Tableau3[Statut actuel],'Analyses Tiphaine'!A35,Tableau3[Mois],'Analyses Tiphaine'!$J$7,Tableau3[Négo],paramètres!$B$5) -> 0 | K35: =COUNTIFS(Tableau3[Statut actuel],'Analyses Tiphaine'!A35,Tableau3[Mois],'Analyses Tiphaine'!$K$7,Tableau3[Négo],paramètres!$B$5) -> 0 | L35: =COUNTIFS(Tableau3[Statut actuel],'Analyses Tiphaine'!A35,Tableau3[Mois],'Analyses Tiphaine'!$L$7,Tableau3[Négo],paramètres!$B$5) -> 0 | M35: =COUNTIFS(Tableau3[Statut actuel],'Analyses Tiphaine'!A35,Tableau3[Mois],'Analyses Tiphaine'!$M$7,Tableau3[Négo],paramètres!$B$5) -> 0 | N35: 1
A37: TOTAL | B37: =SUM(B24:B35) -> 0 | C37: =SUM(C24:C35) -> 2 | D37: 0 | E37: 0 | F37: 0 | G37: 0 | H37: 0 | I37: 0 | J37: 0 | K37: 0 | L37: 0 | M37: 2 | N37: =SUM(N24:N35) -> 4
A39: Chiffre d'affaires du commercial
B40: JANVIER | C40: FEVRIER | D40: MARS | E40: AVRIL | F40: MAI | G40: JUIN | H40: JUILLET | I40: AOÛT | J40: SEPTEMBRE | K40: OCTOBRE | L40: NOVEMBRE | M40: DÉCEMBRE | N40: TOTAL
A42: COMPROMIS EN COURS
A43: Montant
A44: ACTES
A45: Montant
A46: VENTES ANNULEES
A47: Montant annulé
A49: Somme CA
A50: Rappel sur objectif (mensualisé)
A52: Cumul CA
A53: Cumul objectif
B57: Rappel objectif annuel du commercial:
B59: Pourcentage de l'objectif:

Sheet Analyses Vanessa (hidden)
A1: Analyses par commercial
F4: Sélectionnez nom du négociateur: | G4: Vanessa
A6: Analyse de l'origine des prospects par commercial
A7: Origine | B7: JANVIER | C7: FÉVRIER | D7: MARS | E7: AVRIL | F7: MAI | G7: JUIN | H7: JUILLET | I7: AOÛT | J7: SEPTEMBRE | K7: OCTOBRE | L7: NOVEMBRE | M7: DÉCEMBRE | N7: TOTAL | O7: Pourcentage
A8: =IF(ISBLANK(paramètres!A5),"",paramètres!A5) -> Appel direct | B8: =COUNTIFS(Tableau3[Source du prospect],'Analyses Vanessa'!A8,Tableau3[Mois],'Analyses Vanessa'!$B$7,Tableau3[Négo],paramètres!$B$5) -> 0 | C8: =COUNTIFS(Tableau3[Source du prospect],'Analyses Vanessa'!A8,Tableau3[Mois],'Analyses Vanessa'!$C$7,Tableau3[Négo],paramètres!$B$5) -> 0 | D8: =COUNTIFS(Tableau3[Source du prospect],'Analyses Vanessa'!A8,Tableau3[Mois],'Analyses Vanessa'!$D$7,Tableau3[Négo],paramètres!$B$5) -> 0 | E8: =COUNTIFS(Tableau3[Source du prospect],'Analyses Vanessa'!A8,Tableau3[Mois],'Analyses Vanessa'!$E$7,Tableau3[Négo],paramètres!$B$5) -> 0 | F8: =COUNTIFS(Tableau3[Source du prospect],'Analyses Vanessa'!A8,Tableau3[Mois],'Analyses Vanessa'!$F$7,Tableau3[Négo],paramètres!$B$5) -> 0 | G8: =COUNTIFS(Tableau3[Source du prospect],'Analyses Vanessa'!A8,Tableau3[Mois],'Analyses Vanessa'!$G$7,Tableau3[Négo],paramètres!$B$5) -> 0 | H8: =COUNTIFS(Tableau3[Source du prospect],'Analyses Vanessa'!A8,Tableau3[Mois],'Analyses Vanessa'!$H$7,Tableau3[Négo],paramètres!$B$5) -> 0 | I8: =COUNTIFS(Tableau3[Source du prospect],'Analyses Vanessa'!A8,Tableau3[Mois],'Analyses Vanessa'!$I$7,Tableau3[Négo],paramètres!$B$5) -> 0 | J8: =COUNTIFS(Tableau3[Source du prospect],'Analyses Vanessa'!A8,Tableau3[Mois],'Analyses Vanessa'!$J$7,Tableau3[Négo],paramètres!$B$5) -> 0 | K8: =COUNTIFS(Tableau3[Source du prospect],'Analyses Vanessa'!A8,Tableau3[Mois],'Analyses Vanessa'!$K$7,Tableau3[Négo],paramètres!$B$5) -> 0 | L8: =COUNTIFS(Tableau3[Source du prospect],'Analyses Vanessa'!A8,Tableau3[Mois],'Analyses Vanessa'!$L$7,Tableau3[Négo],paramètres!$B$5) -> 0 | M8: =COUNTIFS(Tableau3[Source du prospect],'Analyses Vanessa'!A8,Tableau3[Mois],'Analyses Vanessa'!$M$7,Tableau3[Négo],paramètres!$B$5) -> 1 | N8: =SUM(B8:M8) -> 1
A9: =IF(ISBLANK(paramètres!A6),"",paramètres!A6) -> e-mail | B9: =COUNTIFS(Tableau3[Source du prospect],'Analyses Vanessa'!A9,Tableau3[Mois],'Analyses Vanessa'!$B$7,Tableau3[Négo],paramètres!$B$5) -> 0 | C9: =COUNTIFS(Tableau3[Source du prospect],'Analyses Vanessa'!A9,Tableau3[Mois],'Analyses Vanessa'!$C$7,Tableau3[Négo],paramètres!$B$5) -> 1 | D9: =COUNTIFS(Tableau3[Source du prospect],'Analyses Vanessa'!A9,Tableau3[Mois],'Analyses Vanessa'!$D$7,Tableau3[Négo],paramètres!$B$5) -> 0 | E9: =COUNTIFS(Tableau3[Source du prospect],'Analyses Vanessa'!A9,Tableau3[Mois],'Analyses Vanessa'!$E$7,Tableau3[Négo],paramètres!$B$5) -> 0 | F9: =COUNTIFS(Tableau3[Source du prospect],'Analyses Vanessa'!A9,Tableau3[Mois],'Analyses Vanessa'!$F$7,Tableau3[Négo],paramètres!$B$5) -> 0 | G9: =COUNTIFS(Tableau3[Source du prospect],'Analyses Vanessa'!A9,Tableau3[Mois],'Analyses Vanessa'!$G$7,Tableau3[Négo],paramètres!$B$5) -> 0 | H9: =COUNTIFS(Tableau3[Source du prospect],'Analyses Vanessa'!A9,Tableau3[Mois],'Analyses Vanessa'!$H$7,Tableau3[Négo],paramètres!$B$5) -> 0 | I9: =COUNTIFS(Tableau3[Source du prospect],'Analyses Vanessa'!A9,Tableau3[Mois],'Analyses Vanessa'!$I$7,Tableau3[Négo],paramètres!$B$5) -> 0 | J9: =COUNTIFS(Tableau3[Source du prospect],'Analyses Vanessa'!A9,Tableau3[Mois],'Analyses Vanessa'!$J$7,Tableau3[Négo],paramètres!$B$5) -> 0 | K9: =COUNTIFS(Tableau3[Source du prospect],'Analyses Vanessa'!A9,Tableau3[Mois],'Analyses Vanessa'!$K$7,Tableau3[Négo],paramètres!$B$5) -> 0 | L9: =COUNTIFS(Tableau3[Source du prospect],'Analyses Vanessa'!A9,Tableau3[Mois],'Analyses Vanessa'!$L$7,Tableau3[Négo],paramètres!$B$5) -> 0 | M9: =COUNTIFS(Tableau3[Source du prospect],'Analyses Vanessa'!A9,Tableau3[Mois],'Analyses Vanessa'!$M$7,Tableau3[Négo],paramètres!$B$5) -> 0 | N9: =SUM(B9:M9) -> 1
A10: =IF(ISBLANK(paramètres!A7),"",paramètres!A7) -> Prospection | B10: =COUNTIFS(Tableau3[Source du prospect],'Analyses Vanessa'!A10,Tableau3[Mois],'Analyses Vanessa'!$B$7,Tableau3[Négo],paramètres!$B$5) -> 0 | C10: =COUNTIFS(Tableau3[Source du prospect],'Analyses Vanessa'!A10,Tableau3[Mois],'Analyses Vanessa'!$C$7,Tableau3[Négo],paramètres!$B$5) -> 0 | D10: =COUNTIFS(Tableau3[Source du prospect],'Analyses Vanessa'!A10,Tableau3[Mois],'Analyses Vanessa'!$D$7,Tableau3[Négo],paramètres!$B$5) -> 0 | E10: =COUNTIFS(Tableau3[Source du prospect],'Analyses Vanessa'!A10,Tableau3[Mois],'Analyses Vanessa'!$E$7,Tableau3[Négo],paramètres!$B$5) -> 0 | F10: =COUNTIFS(Tableau3[Source du prospect],'Analyses Vanessa'!A10,Tableau3[Mois],'Analyses Vanessa'!$F$7,Tableau3[Négo],paramètres!$B$5) -> 0 | G10: =COUNTIFS(Tableau3[Source du prospect],'Analyses Vanessa'!A10,Tableau3[Mois],'Analyses Vanessa'!$G$7,Tableau3[Négo],paramètres!$B$5) -> 0 | H10: =COUNTIFS(Tableau3[Source du prospect],'Analyses Vanessa'!A10,Tableau3[Mois],'Analyses Vanessa'!$H$7,Tableau3[Négo],paramètres!$B$5) -> 0 | I10: =COUNTIFS(Tableau3[Source du prospect],'Analyses Vanessa'!A10,Tableau3[Mois],'Analyses Vanessa'!$I$7,Tableau3[Négo],paramètres!$B$5) -> 0 | J10: =COUNTIFS(Tableau3[Source du prospect],'Analyses Vanessa'!A10,Tableau3[Mois],'Analyses Vanessa'!$J$7,Tableau3[Négo],paramètres!$B$5) -> 0 | K10: =COUNTIFS(Tableau3[Source du prospect],'Analyses Vanessa'!A10,Tableau3[Mois],'Analyses Vanessa'!$K$7,Tableau3[Négo],paramètres!$B$5) -> 0 | L10: =COUNTIFS(Tableau3[Source du prospect],'Analyses Vanessa'!A10,Tableau3[Mois],'Analyses Vanessa'!$L$7,Tableau3[Négo],paramètres!$B$5) -> 0 | M10: =COUNTIFS(Tableau3[Source du prospect],'Analyses Vanessa'!A10,Tableau3[Mois],'Analyses Vanessa'!$M$7,Tableau3[Négo],paramètres!$B$5) -> 1 | N10: 1
A11: =IF(ISBLANK(paramètres!A8),"",paramètres!A8) -> Site Internet | B11: =COUNTIFS(Tableau3[Source du prospect],'Analyses Vanessa'!A11,Tableau3[Mois],'Analyses Vanessa'!$B$7,Tableau3[Négo],paramètres!$B$5) -> 0 | C11: =COUNTIFS(Tableau3[Source du prospect],'Analyses Vanessa'!A11,Tableau3[Mois],'Analyses Vanessa'!$C$7,Tableau3[Négo],paramètres!$B$5) -> 1 | D11: =COUNTIFS(Tableau3[Source du prospect],'Analyses Vanessa'!A11,Tableau3[Mois],'Analyses Vanessa'!$D$7,Tableau3[Négo],paramètres!$B$5) -> 0 | E11: =COUNTIFS(Tableau3[Source du prospect],'Analyses Vanessa'!A11,Tableau3[Mois],'Analyses Vanessa'!$E$7,Tableau3[Négo],paramètres!$B$5) -> 0 | F11: =COUNTIFS(Tableau3[Source du prospect],'Analyses Vanessa'!A11,Tableau3[Mois],'Analyses Vanessa'!$F$7,Tableau3[Négo],paramètres!$B$5) -> 0 | G11: =COUNTIFS(Tableau3[Source du prospect],'Analyses Vanessa'!A11,Tableau3[Mois],'Analyses Vanessa'!$G$7,Tableau3[Négo],paramètres!$B$5) -> 0 | H11: =COUNTIFS(Tableau3[Source du prospect],'Analyses Vanessa'!A11,Tableau3[Mois],'Analyses Vanessa'!$H$7,Tableau3[Négo],paramètres!$B$5) -> 0 | I11: =COUNTIFS(Tableau3[Source du prospect],'Analyses Vanessa'!A11,Tableau3[Mois],'Analyses Vanessa'!$I$7,Tableau3[Négo],paramètres!$B$5) -> 0 | J11: =COUNTIFS(Tableau3[Source du prospect],'Analyses Vanessa'!A11,Tableau3[Mois],'Analyses Vanessa'!$J$7,Tableau3[Négo],paramètres!$B$5) -> 0 | K11: =COUNTIFS(Tableau3[Source du prospect],'Analyses Vanessa'!A11,Tableau3[Mois],'Analyses Vanessa'!$K$7,Tableau3[Négo],paramètres!$B$5) -> 0 | L11: =COUNTIFS(Tableau3[Source du prospect],'Analyses Vanessa'!A11,Tableau3[Mois],'Analyses Vanessa'!$L$7,Tableau3[Négo],paramètres!$B$5) -> 0 | M11: =COUNTIFS(Tableau3[Source du prospect],'Analyses Vanessa'!A11,Tableau3[Mois],'Analyses Vanessa'!$M$7,Tableau3[Négo],paramètres!$B$5) -> 0 | N11: 1
A12: =IF(ISBLANK(paramètres!A9),"",paramètres!A9) -> Appel agence | B12: =COUNTIFS(Tableau3[Source du prospect],'Analyses Vanessa'!A12,Tableau3[Mois],'Analyses Vanessa'!$B$7,Tableau3[Négo],paramètres!$B$5) -> 0 | C12: =COUNTIFS(Tableau3[Source du prospect],'Analyses Vanessa'!A12,Tableau3[Mois],'Analyses Vanessa'!$C$7,Tableau3[Négo],paramètres!$B$5) -> 0 | D12: =COUNTIFS(Tableau3[Source du prospect],'Analyses Vanessa'!A12,Tableau3[Mois],'Analyses Vanessa'!$D$7,Tableau3[Négo],paramètres!$B$5) -> 0 | E12: =COUNTIFS(Tableau3[Source du prospect],'Analyses Vanessa'!A12,Tableau3[Mois],'Analyses Vanessa'!$E$7,Tableau3[Négo],paramètres!$B$5) -> 0 | F12: =COUNTIFS(Tableau3[Source du prospect],'Analyses Vanessa'!A12,Tableau3[Mois],'Analyses Vanessa'!$F$7,Tableau3[Négo],paramètres!$B$5) -> 0 | G12: =COUNTIFS(Tableau3[Source du prospect],'Analyses Vanessa'!A12,Tableau3[Mois],'Analyses Vanessa'!$G$7,Tableau3[Négo],paramètres!$B$5) -> 0 | H12: =COUNTIFS(Tableau3[Source du prospect],'Analyses Vanessa'!A12,Tableau3[Mois],'Analyses Vanessa'!$H$7,Tableau3[Négo],paramètres!$B$5) -> 0 | I12: =COUNTIFS(Tableau3[Source du prospect],'Analyses Vanessa'!A12,Tableau3[Mois],'Analyses Vanessa'!$I$7,Tableau3[Négo],paramètres!$B$5) -> 0 | J12: =COUNTIFS(Tableau3[Source du prospect],'Analyses Vanessa'!A12,Tableau3[Mois],'Analyses Vanessa'!$J$7,Tableau3[Négo],paramètres!$B$5) -> 0 | K12: =COUNTIFS(Tableau3[Source du prospect],'Analyses Vanessa'!A12,Tableau3[Mois],'Analyses Vanessa'!$K$7,Tableau3[Négo],paramètres!$B$5) -> 0 | L12: =COUNTIFS(Tableau3[Source du prospect],'Analyses Vanessa'!A12,Tableau3[Mois],'Analyses Vanessa'!$L$7,Tableau3[Négo],paramètres!$B$5) -> 0 | M12: =COUNTIFS(Tableau3[Source du prospect],'Analyses Vanessa'!A12,Tableau3[Mois],'Analyses Vanessa'!$M$7,Tableau3[Négo],paramètres!$B$5) -> 0 | N12: 0
A13: =IF(ISBLANK(paramètres!A10),"",paramètres!A10) ->  | N13: 0
A14: =IF(ISBLANK(paramètres!A11),"",paramètres!A11) ->  | N14: 0
A15: =IF(ISBLANK(paramètres!A12),"",paramètres!A12) ->  | N15: =SUM(B15:M15) -> 0
A16: =IF(ISBLANK(paramètres!A13),"",paramètres!A13) ->  | N16: 0
A17: =IF(ISBLANK(paramètres!A14),"",paramètres!A14) ->  | N17: 0
A18: =IF(ISBLANK(paramètres!A15),"",paramètres!A15) ->  | N18: 0
A19: =IF(ISBLANK(paramètres!A16),"",paramètres!A16) ->  | N19: 0
A20: TOTAL | B20: =SUM(B8:B19) -> 0 | C20: =SUM(C8:C19) -> 2 | D20: 0 | E20: 0 | F20: 0 | G20: 0 | H20: 0 | I20: 0 | J20: 0 | K20: 0 | L20: 0 | M20: 2 | N20: 4 | O20: 0
A22: Statut actuel des dossiers du négociateur
A23: Statut | B23: JANVIER | C23: FÉVRIER | D23: MARS | E23: AVRIL | F23: MAI | G23: JUIN | H23: JUILLET | I23: AOÛT | J23: SEPTEMBRE | K23: OCTOBRE | L23: NOVEMBRE | M23: DÉCEMBRE | N23: TOTAL | O23: Pourcentage
A24: =IF(ISBLANK(paramètres!C5),"",paramètres!C5) -> TEL, SMS | B24: =COUNTIFS(Tableau3[Statut actuel],'Analyses Vanessa'!A24,Tableau3[Mois],'Analyses Vanessa'!$B$7,Tableau3[Négo],paramètres!$B$5) -> 0 | C24: =COUNTIFS(Tableau3[Statut actuel],'Analyses Vanessa'!A24,Tableau3[Mois],'Analyses Vanessa'!$C$7,Tableau3[Négo],paramètres!$B$5) -> 0 | D24: =COUNTIFS(Tableau3[Statut actuel],'Analyses Vanessa'!A24,Tableau3[Mois],'Analyses Vanessa'!$D$7,Tableau3[Négo],paramètres!$B$5) -> 0 | E24: =COUNTIFS(Tableau3[Statut actuel],'Analyses Vanessa'!A24,Tableau3[Mois],'Analyses Vanessa'!$E$7,Tableau3[Négo],paramètres!$B$5) -> 0 | F24: =COUNTIFS(Tableau3[Statut actuel],'Analyses Vanessa'!A24,Tableau3[Mois],'Analyses Vanessa'!$F$7,Tableau3[Négo],paramètres!$B$5) -> 0 | G24: =COUNTIFS(Tableau3[Statut actuel],'Analyses Vanessa'!A24,Tableau3[Mois],'Analyses Vanessa'!$G$7,Tableau3[Négo],paramètres!$B$5) -> 0 | H24: =COUNTIFS(Tableau3[Statut actuel],'Analyses Vanessa'!A24,Tableau3[Mois],'Analyses Vanessa'!$H$7,Tableau3[Négo],paramètres!$B$5) -> 0 | I24: =COUNTIFS(Tableau3[Statut actuel],'Analyses Vanessa'!A24,Tableau3[Mois],'Analyses Vanessa'!$I$7,Tableau3[Négo],paramètres!$B$5) -> 0 | J24: =COUNTIFS(Tableau3[Statut actuel],'Analyses Vanessa'!A24,Tableau3[Mois],'Analyses Vanessa'!$J$7,Tableau3[Négo],paramètres!$B$5) -> 0 | K24: =COUNTIFS(Tableau3[Statut actuel],'Analyses Vanessa'!A24,Tableau3[Mois],'Analyses Vanessa'!$K$7,Tableau3[Négo],paramètres!$B$5) -> 0 | L24: =COUNTIFS(Tableau3[Statut actuel],'Analyses Vanessa'!A24,Tableau3[Mois],'Analyses Vanessa'!$L$7,Tableau3[Négo],paramètres!$B$5) -> 0 | M24: =COUNTIFS(Tableau3[Statut actuel],'Analyses Vanessa'!A24,Tableau3[Mois],'Analyses Vanessa'!$M$7,Tableau3[Négo],paramètres!$B$5) -> 0 | N24: =SUM(B24:M24) -> 0
A25: =IF(ISBLANK(paramètres!C6),"",paramètres!C6) -> Porte à porte | B25: =COUNTIFS(Tableau3[Statut actuel],'Analyses Vanessa'!A25,Tableau3[Mois],'Analyses Vanessa'!$B$7,Tableau3[Négo],paramètres!$B$5) -> 0 | C25: =COUNTIFS(Tableau3[Statut actuel],'Analyses Vanessa'!A25,Tableau3[Mois],'Analyses Vanessa'!$C$7,Tableau3[Négo],paramètres!$B$5) -> 0 | D25: =COUNTIFS(Tableau3[Statut actuel],'Analyses Vanessa'!A25,Tableau3[Mois],'Analyses Vanessa'!$D$7,Tableau3[Négo],paramètres!$B$5) -> 0 | E25: =COUNTIFS(Tableau3[Statut actuel],'Analyses Vanessa'!A25,Tableau3[Mois],'Analyses Vanessa'!$E$7,Tableau3[Négo],paramètres!$B$5) -> 0 | F25: =COUNTIFS(Tableau3[Statut actuel],'Analyses Vanessa'!A25,Tableau3[Mois],'Analyses Vanessa'!$F$7,Tableau3[Négo],paramètres!$B$5) -> 0 | G25: =COUNTIFS(Tableau3[Statut actuel],'Analyses Vanessa'!A25,Tableau3[Mois],'Analyses Vanessa'!$G$7,Tableau3[Négo],paramètres!$B$5) -> 0 | H25: =COUNTIFS(Tableau3[Statut actuel],'Analyses Vanessa'!A25,Tableau3[Mois],'Analyses Vanessa'!$H$7,Tableau3[Négo],paramètres!$B$5) -> 0 | I25: =COUNTIFS(Tableau3[Statut actuel],'Analyses Vanessa'!A25,Tableau3[Mois],'Analyses Vanessa'!$I$7,Tableau3[Négo],paramètres!$B$5) -> 0 | J25: =COUNTIFS(Tableau3[Statut actuel],'Analyses Vanessa'!A25,Tableau3[Mois],'Analyses Vanessa'!$J$7,Tableau3[Négo],paramètres!$B$5) -> 0 | K25: =COUNTIFS(Tableau3[Statut actuel],'Analyses Vanessa'!A25,Tableau3[Mois],'Analyses Vanessa'!$K$7,Tableau3[Négo],paramètres!$B$5) -> 0 | L25: =COUNTIFS(Tableau3[Statut actuel],'Analyses Vanessa'!A25,Tableau3[Mois],'Analyses Vanessa'!$L$7,Tableau3[Négo],paramètres!$B$5) -> 0 | M25: =COUNTIFS(Tableau3[Statut actuel],'Analyses Vanessa'!A25,Tableau3[Mois],'Analyses Vanessa'!$M$7,Tableau3[Négo],paramètres!$B$5) -> 0 | N25: =SUM(B25:M25) -> 0
A26: =IF(ISBLANK(paramètres!C7),"",paramètres!C7) -> R1 | B26: =COUNTIFS(Tableau3[Statut actuel],'Analyses Vanessa'!A26,Tableau3[Mois],'Analyses Vanessa'!$B$7,Tableau3[Négo],paramètres!$B$5) -> 0 | C26: =COUNTIFS(Tableau3[Statut actuel],'Analyses Vanessa'!A26,Tableau3[Mois],'Analyses Vanessa'!$C$7,Tableau3[Négo],paramètres!$B$5) -> 0 | D26: =COUNTIFS(Tableau3[Statut actuel],'Analyses Vanessa'!A26,Tableau3[Mois],'Analyses Vanessa'!$D$7,Tableau3[Négo],paramètres!$B$5) -> 0 | E26: =COUNTIFS(Tableau3[Statut actuel],'Analyses Vanessa'!A26,Tableau3[Mois],'Analyses Vanessa'!$E$7,Tableau3[Négo],paramètres!$B$5) -> 0 | F26: =COUNTIFS(Tableau3[Statut actuel],'Analyses Vanessa'!A26,Tableau3[Mois],'Analyses Vanessa'!$F$7,Tableau3[Négo],paramètres!$B$5) -> 0 | G26: =COUNTIFS(Tableau3[Statut actuel],'Analyses Vanessa'!A26,Tableau3[Mois],'Analyses Vanessa'!$G$7,Tableau3[Négo],paramètres!$B$5) -> 0 | H26: =COUNTIFS(Tableau3[Statut actuel],'Analyses Vanessa'!A26,Tableau3[Mois],'Analyses Vanessa'!$H$7,Tableau3[Négo],paramètres!$B$5) -> 0 | I26: =COUNTIFS(Tableau3[Statut actuel],'Analyses Vanessa'!A26,Tableau3[Mois],'Analyses Vanessa'!$I$7,Tableau3[Négo],paramètres!$B$5) -> 0 | J26: =COUNTIFS(Tableau3[Statut actuel],'Analyses Vanessa'!A26,Tableau3[Mois],'Analyses Vanessa'!$J$7,Tableau3[Négo],paramètres!$B$5) -> 0 | K26: =COUNTIFS(Tableau3[Statut actuel],'Analyses Vanessa'!A26,Tableau3[Mois],'Analyses Vanessa'!$K$7,Tableau3[Négo],paramètres!$B$5) -> 0 | L26: =COUNTIFS(Tableau3[Statut actuel],'Analyses Vanessa'!A26,Tableau3[Mois],'Analyses Vanessa'!$L$7,Tableau3[Négo],paramètres!$B$5) -> 0 | M26: =COUNTIFS(Tableau3[Statut actuel],'Analyses Vanessa'!A26,Tableau3[Mois],'Analyses Vanessa'!$M$7,Tableau3[Négo],paramètres!$B$5) -> 0 | N26: 0
A27: =IF(ISBLANK(paramètres!C8),"",paramètres!C8) -> R2 | B27: =COUNTIFS(Tableau3[Statut actuel],'Analyses Vanessa'!A27,Tableau3[Mois],'Analyses Vanessa'!$B$7,Tableau3[Négo],paramètres!$B$5) -> 0 | C27: =COUNTIFS(Tableau3[Statut actuel],'Analyses Vanessa'!A27,Tableau3[Mois],'Analyses Vanessa'!$C$7,Tableau3[Négo],paramètres!$B$5) -> 0 | D27: =COUNTIFS(Tableau3[Statut actuel],'Analyses Vanessa'!A27,Tableau3[Mois],'Analyses Vanessa'!$D$7,Tableau3[Négo],paramètres!$B$5) -> 0 | E27: =COUNTIFS(Tableau3[Statut actuel],'Analyses Vanessa'!A27,Tableau3[Mois],'Analyses Vanessa'!$E$7,Tableau3[Négo],paramètres!$B$5) -> 0 | F27: =COUNTIFS(Tableau3[Statut actuel],'Analyses Vanessa'!A27,Tableau3[Mois],'Analyses Vanessa'!$F$7,Tableau3[Négo],paramètres!$B$5) -> 0 | G27: =COUNTIFS(Tableau3[Statut actuel],'Analyses Vanessa'!A27,Tableau3[Mois],'Analyses Vanessa'!$G$7,Tableau3[Négo],paramètres!$B$5) -> 0 | H27: =COUNTIFS(Tableau3[Statut actuel],'Analyses Vanessa'!A27,Tableau3[Mois],'Analyses Vanessa'!$H$7,Tableau3[Négo],paramètres!$B$5) -> 0 | I27: =COUNTIFS(Tableau3[Statut actuel],'Analyses Vanessa'!A27,Tableau3[Mois],'Analyses Vanessa'!$I$7,Tableau3[Négo],paramètres!$B$5) -> 0 | J27: =COUNTIFS(Tableau3[Statut actuel],'Analyses Vanessa'!A27,Tableau3[Mois],'Analyses Vanessa'!$J$7,Tableau3[Négo],paramètres!$B$5) -> 0 | K27: =COUNTIFS(Tableau3[Statut actuel],'Analyses Vanessa'!A27,Tableau3[Mois],'Analyses Vanessa'!$K$7,Tableau3[Négo],paramètres!$B$5) -> 0 | L27: =COUNTIFS(Tableau3[Statut actuel],'Analyses Vanessa'!A27,Tableau3[Mois],'Analyses Vanessa'!$L$7,Tableau3[Négo],paramètres!$B$5) -> 0 | M27: =COUNTIFS(Tableau3[Statut actuel],'Analyses Vanessa'!A27,Tableau3[Mois],'Analyses Vanessa'!$M$7,Tableau3[Négo],paramètres!$B$5) -> 0 | N27: 0
A28: =IF(ISBLANK(paramètres!C9),"",paramètres!C9) -> Estimation faite | B28: =COUNTIFS(Tableau3[Statut actuel],'Analyses Vanessa'!A28,Tableau3[Mois],'Analyses Vanessa'!$B$7,Tableau3[Négo],paramètres!$B$5) -> 0 | C28: =COUNTIFS(Tableau3[Statut actuel],'Analyses Vanessa'!A28,Tableau3[Mois],'Analyses Vanessa'!$C$7,Tableau3[Négo],paramètres!$B$5) -> 0 | D28: =COUNTIFS(Tableau3[Statut actuel],'Analyses Vanessa'!A28,Tableau3[Mois],'Analyses Vanessa'!$D$7,Tableau3[Négo],paramètres!$B$5) -> 0 | E28: =COUNTIFS(Tableau3[Statut actuel],'Analyses Vanessa'!A28,Tableau3[Mois],'Analyses Vanessa'!$E$7,Tableau3[Négo],paramètres!$B$5) -> 0 | F28: =COUNTIFS(Tableau3[Statut actuel],'Analyses Vanessa'!A28,Tableau3[Mois],'Analyses Vanessa'!$F$7,Tableau3[Négo],paramètres!$B$5) -> 0 | G28: =COUNTIFS(Tableau3[Statut actuel],'Analyses Vanessa'!A28,Tableau3[Mois],'Analyses Vanessa'!$G$7,Tableau3[Négo],paramètres!$B$5) -> 0 | H28: =COUNTIFS(Tableau3[Statut actuel],'Analyses Vanessa'!A28,Tableau3[Mois],'Analyses Vanessa'!$H$7,Tableau3[Négo],paramètres!$B$5) -> 0 | I28: =COUNTIFS(Tableau3[Statut actuel],'Analyses Vanessa'!A28,Tableau3[Mois],'Analyses Vanessa'!$I$7,Tableau3[Négo],paramètres!$B$5) -> 0 | J28: =COUNTIFS(Tableau3[Statut actuel],'Analyses Vanessa'!A28,Tableau3[Mois],'Analyses Vanessa'!$J$7,Tableau3[Négo],paramètres!$B$5) -> 0 | K28: =COUNTIFS(Tableau3[Statut actuel],'Analyses Vanessa'!A28,Tableau3[Mois],'Analyses Vanessa'!$K$7,Tableau3[Négo],paramètres!$B$5) -> 0 | L28: =COUNTIFS(Tableau3[Statut actuel],'Analyses Vanessa'!A28,Tableau3[Mois],'Analyses Vanessa'!$L$7,Tableau3[Négo],paramètres!$B$5) -> 0 | M28: =COUNTIFS(Tableau3[Statut actuel],'Analyses Vanessa'!A28,Tableau3[Mois],'Analyses Vanessa'!$M$7,Tableau3[Négo],paramètres!$B$5) -> 0 | N28: 0
A29: =IF(ISBLANK(paramètres!C10),"",paramètres!C10) -> Sous compromis | B29: =COUNTIFS(Tableau3[Statut actuel],'Analyses Vanessa'!A29,Tableau3[Mois],'Analyses Vanessa'!$B$7,Tableau3[Négo],paramètres!$B$5) -> 0 | C29: =COUNTIFS(Tableau3[Statut actuel],'Analyses Vanessa'!A29,Tableau3[Mois],'Analyses Vanessa'!$C$7,Tableau3[Négo],paramètres!$B$5) -> 0 | D29: =COUNTIFS(Tableau3[Statut actuel],'Analyses Vanessa'!A29,Tableau3[Mois],'Analyses Vanessa'!$D$7,Tableau3[Négo],paramètres!$B$5) -> 0 | E29: =COUNTIFS(Tableau3[Statut actuel],'Analyses Vanessa'!A29,Tableau3[Mois],'Analyses Vanessa'!$E$7,Tableau3[Négo],paramètres!$B$5) -> 0 | F29: =COUNTIFS(Tableau3[Statut actuel],'Analyses Vanessa'!A29,Tableau3[Mois],'Analyses Vanessa'!$F$7,Tableau3[Négo],paramètres!$B$5) -> 0 | G29: =COUNTIFS(Tableau3[Statut actuel],'Analyses Vanessa'!A29,Tableau3[Mois],'Analyses Vanessa'!$G$7,Tableau3[Négo],paramètres!$B$5) -> 0 | H29: =COUNTIFS(Tableau3[Statut actuel],'Analyses Vanessa'!A29,Tableau3[Mois],'Analyses Vanessa'!$H$7,Tableau3[Négo],paramètres!$B$5) -> 0 | I29: =COUNTIFS(Tableau3[Statut actuel],'Analyses Vanessa'!A29,Tableau3[Mois],'Analyses Vanessa'!$I$7,Tableau3[Négo],paramètres!$B$5) -> 0 | J29: =COUNTIFS(Tableau3[Statut actuel],'Analyses Vanessa'!A29,Tableau3[Mois],'Analyses Vanessa'!$J$7,Tableau3[Négo],paramètres!$B$5) -> 0 | K29: =COUNTIFS(Tableau3[Statut actuel],'Analyses Vanessa'!A29,Tableau3[Mois],'Analyses Vanessa'!$K$7,Tableau3[Négo],paramètres!$B$5) -> 0 | L29: =COUNTIFS(Tableau3[Statut actuel],'Analyses Vanessa'!A29,Tableau3[Mois],'Analyses Vanessa'!$L$7,Tableau3[Négo],paramètres!$B$5) -> 0 | M29: =COUNTIFS(Tableau3[Statut actuel],'Analyses Vanessa'!A29,Tableau3[Mois],'Analyses Vanessa'!$M$7,Tableau3[Négo],paramètres!$B$5) -> 1 | N29: 1
A30: =IF(ISBLANK(paramètres!C11),"",paramètres!C11) -> Vendu | B30: =COUNTIFS(Tableau3[Statut actuel],'Analyses Vanessa'!A30,Tableau3[Mois],'Analyses Vanessa'!$B$7,Tableau3[Négo],paramètres!$B$5) -> 0 | C30: =COUNTIFS(Tableau3[Statut actuel],'Analyses Vanessa'!A30,Tableau3[Mois],'Analyses Vanessa'!$C$7,Tableau3[Négo],paramètres!$B$5) -> 0 | D30: =COUNTIFS(Tableau3[Statut actuel],'Analyses Vanessa'!A30,Tableau3[Mois],'Analyses Vanessa'!$D$7,Tableau3[Négo],paramètres!$B$5) -> 0 | E30: =COUNTIFS(Tableau3[Statut actuel],'Analyses Vanessa'!A30,Tableau3[Mois],'Analyses Vanessa'!$E$7,Tableau3[Négo],paramètres!$B$5) -> 0 | F30: =COUNTIFS(Tableau3[Statut actuel],'Analyses Vanessa'!A30,Tableau3[Mois],'Analyses Vanessa'!$F$7,Tableau3[Négo],paramètres!$B$5) -> 0 | G30: =COUNTIFS(Tableau3[Statut actuel],'Analyses Vanessa'!A30,Tableau3[Mois],'Analyses Vanessa'!$G$7,Tableau3[Négo],paramètres!$B$5) -> 0 | H30: =COUNTIFS(Tableau3[Statut actuel],'Analyses Vanessa'!A30,Tableau3[Mois],'Analyses Vanessa'!$H$7,Tableau3[Négo],paramètres!$B$5) -> 0 | I30: =COUNTIFS(Tableau3[Statut actuel],'Analyses Vanessa'!A30,Tableau3[Mois],'Analyses Vanessa'!$I$7,Tableau3[Négo],paramètres!$B$5) -> 0 | J30: =COUNTIFS(Tableau3[Statut actuel],'Analyses Vanessa'!A30,Tableau3[Mois],'Analyses Vanessa'!$J$7,Tableau3[Négo],paramètres!$B$5) -> 0 | K30: =COUNTIFS(Tableau3[Statut actuel],'Analyses Vanessa'!A30,Tableau3[Mois],'Analyses Vanessa'!$K$7,Tableau3[Négo],paramètres!$B$5) -> 0 | L30: =COUNTIFS(Tableau3[Statut actuel],'Analyses Vanessa'!A30,Tableau3[Mois],'Analyses Vanessa'!$L$7,Tableau3[Négo],paramètres!$B$5) -> 0 | M30: =COUNTIFS(Tableau3[Statut actuel],'Analyses Vanessa'!A30,Tableau3[Mois],'Analyses Vanessa'!$M$7,Tableau3[Négo],paramètres!$B$5) -> 0 | N30: 0
A31: =IF(ISBLANK(paramètres!C12),"",paramètres!C12) -> Vente annulée | B31: =COUNTIFS(Tableau3[Statut actuel],'Analyses Vanessa'!A31,Tableau3[Mois],'Analyses Vanessa'!$B$7,Tableau3[Négo],paramètres!$B$5) -> 0 | C31: =COUNTIFS(Tableau3[Statut actuel],'Analyses Vanessa'!A31,Tableau3[Mois],'Analyses Vanessa'!$C$7,Tableau3[Négo],paramètres!$B$5) -> 0 | D31: =COUNTIFS(Tableau3[Statut actuel],'Analyses Vanessa'!A31,Tableau3[Mois],'Analyses Vanessa'!$D$7,Tableau3[Négo],paramètres!$B$5) -> 0 | E31: =COUNTIFS(Tableau3[Statut actuel],'Analyses Vanessa'!A31,Tableau3[Mois],'Analyses Vanessa'!$E$7,Tableau3[Négo],paramètres!$B$5) -> 0 | F31: =COUNTIFS(Tableau3[Statut actuel],'Analyses Vanessa'!A31,Tableau3[Mois],'Analyses Vanessa'!$F$7,Tableau3[Négo],paramètres!$B$5) -> 0 | G31: =COUNTIFS(Tableau3[Statut actuel],'Analyses Vanessa'!A31,Tableau3[Mois],'Analyses Vanessa'!$G$7,Tableau3[Négo],paramètres!$B$5) -> 0 | H31: =COUNTIFS(Tableau3[Statut actuel],'Analyses Vanessa'!A31,Tableau3[Mois],'Analyses Vanessa'!$H$7,Tableau3[Négo],paramètres!$B$5) -> 0 | I31: =COUNTIFS(Tableau3[Statut actuel],'Analyses Vanessa'!A31,Tableau3[Mois],'Analyses Vanessa'!$I$7,Tableau3[Négo],paramètres!$B$5) -> 0 | J31: =COUNTIFS(Tableau3[Statut actuel],'Analyses Vanessa'!A31,Tableau3[Mois],'Analyses Vanessa'!$J$7,Tableau3[Négo],paramètres!$B$5) -> 0 | K31: =COUNTIFS(Tableau3[Statut actuel],'Analyses Vanessa'!A31,Tableau3[Mois],'Analyses Vanessa'!$K$7,Tableau3[Négo],paramètres!$B$5) -> 0 | L31: =COUNTIFS(Tableau3[Statut actuel],'Analyses Vanessa'!A31,Tableau3[Mois],'Analyses Vanessa'!$L$7,Tableau3[Négo],paramètres!$B$5) -> 0 | M31: =COUNTIFS(Tableau3[Statut actuel],'Analyses Vanessa'!A31,Tableau3[Mois],'Analyses Vanessa'!$M$7,Tableau3[Négo],paramètres!$B$5) -> 1 | N31: 1
A32: =IF(ISBLANK(paramètres!C13),"",paramètres!C13) -> Abandonné | B32: =COUNTIFS(Tableau3[Statut actuel],'Analyses Vanessa'!A32,Tableau3[Mois],'Analyses Vanessa'!$B$7,Tableau3[Négo],paramètres!$B$5) -> 0 | C32: =COUNTIFS(Tableau3[Statut actuel],'Analyses Vanessa'!A32,Tableau3[Mois],'Analyses Vanessa'!$C$7,Tableau3[Négo],paramètres!$B$5) -> 1 | D32: =COUNTIFS(Tableau3[Statut actuel],'Analyses Vanessa'!A32,Tableau3[Mois],'Analyses Vanessa'!$D$7,Tableau3[Négo],paramètres!$B$5) -> 0 | E32: =COUNTIFS(Tableau3[Statut actuel],'Analyses Vanessa'!A32,Tableau3[Mois],'Analyses Vanessa'!$E$7,Tableau3[Négo],paramètres!$B$5) -> 0 | F32: =COUNTIFS(Tableau3[Statut actuel],'Analyses Vanessa'!A32,Tableau3[Mois],'Analyses Vanessa'!$F$7,Tableau3[Négo],paramètres!$B$5) -> 0 | G32: =COUNTIFS(Tableau3[Statut actuel],'Analyses Vanessa'!A32,Tableau3[Mois],'Analyses Vanessa'!$G$7,Tableau3[Négo],paramètres!$B$5) -> 0 | H32: =COUNTIFS(Tableau3[Statut actuel],'Analyses Vanessa'!A32,Tableau3[Mois],'Analyses Vanessa'!$H$7,Tableau3[Négo],paramètres!$B$5) -> 0 | I32: =COUNTIFS(Tableau3[Statut actuel],'Analyses Vanessa'!A32,Tableau3[Mois],'Analyses Vanessa'!$I$7,Tableau3[Négo],paramètres!$B$5) -> 0 | J32: =COUNTIFS(Tableau3[Statut actuel],'Analyses Vanessa'!A32,Tableau3[Mois],'Analyses Vanessa'!$J$7,Tableau3[Négo],paramètres!$B$5) -> 0 | K32: =COUNTIFS(Tableau3[Statut actuel],'Analyses Vanessa'!A32,Tableau3[Mois],'Analyses Vanessa'!$K$7,Tableau3[Négo],paramètres!$B$5) -> 0 | L32: =COUNTIFS(Tableau3[Statut actuel],'Analyses Vanessa'!A32,Tableau3[Mois],'Analyses Vanessa'!$L$7,Tableau3[Négo],paramètres!$B$5) -> 0 | M32: =COUNTIFS(Tableau3[Statut actuel],'Analyses Vanessa'!A32,Tableau3[Mois],'Analyses Vanessa'!$M$7,Tableau3[Négo],paramètres!$B$5) -> 0 | N32: 1
A33: =IF(ISBLANK(paramètres!C14),"",paramètres!C14) -> Stand-by | B33: =COUNTIFS(Tableau3[Statut actuel],'Analyses Vanessa'!A33,Tableau3[Mois],'Analyses Vanessa'!$B$7,Tableau3[Négo],paramètres!$B$5) -> 0 | C33: =COUNTIFS(Tableau3[Statut actuel],'Analyses Vanessa'!A33,Tableau3[Mois],'Analyses Vanessa'!$C$7,Tableau3[Négo],paramètres!$B$5) -> 0 | D33: =COUNTIFS(Tableau3[Statut actuel],'Analyses Vanessa'!A33,Tableau3[Mois],'Analyses Vanessa'!$D$7,Tableau3[Négo],paramètres!$B$5) -> 0 | E33: =COUNTIFS(Tableau3[Statut actuel],'Analyses Vanessa'!A33,Tableau3[Mois],'Analyses Vanessa'!$E$7,Tableau3[Négo],paramètres!$B$5) -> 0 | F33: =COUNTIFS(Tableau3[Statut actuel],'Analyses Vanessa'!A33,Tableau3[Mois],'Analyses Vanessa'!$F$7,Tableau3[Négo],paramètres!$B$5) -> 0 | G33: =COUNTIFS(Tableau3[Statut actuel],'Analyses Vanessa'!A33,Tableau3[Mois],'Analyses Vanessa'!$G$7,Tableau3[Négo],paramètres!$B$5) -> 0 | H33: =COUNTIFS(Tableau3[Statut actuel],'Analyses Vanessa'!A33,Tableau3[Mois],'Analyses Vanessa'!$H$7,Tableau3[Négo],paramètres!$B$5) -> 0 | I33: =COUNTIFS(Tableau3[Statut actuel],'Analyses Vanessa'!A33,Tableau3[Mois],'Analyses Vanessa'!$I$7,Tableau3[Négo],paramètres!$B$5) -> 0 | J33: =COUNTIFS(Tableau3[Statut actuel],'Analyses Vanessa'!A33,Tableau3[Mois],'Analyses Vanessa'!$J$7,Tableau3[Négo],paramètres!$B$5) -> 0 | K33: =COUNTIFS(Tableau3[Statut actuel],'Analyses Vanessa'!A33,Tableau3[Mois],'Analyses Vanessa'!$K$7,Tableau3[Négo],paramètres!$B$5) -> 0 | L33: =COUNTIFS(Tableau3[Statut actuel],'Analyses Vanessa'!A33,Tableau3[Mois],'Analyses Vanessa'!$L$7,Tableau3[Négo],paramètres!$B$5) -> 0 | M33: =COUNTIFS(Tableau3[Statut actuel],'Analyses Vanessa'!A33,Tableau3[Mois],'Analyses Vanessa'!$M$7,Tableau3[Négo],paramètres!$B$5) -> 0 | N33: 0
A34: =IF(ISBLANK(paramètres!C15),"",paramètres!C15) -> Sans Suite | B34: =COUNTIFS(Tableau3[Statut actuel],'Analyses Vanessa'!A34,Tableau3[Mois],'Analyses Vanessa'!$B$7,Tableau3[Négo],paramètres!$B$5) -> 0 | C34: =COUNTIFS(Tableau3[Statut actuel],'Analyses Vanessa'!A34,Tableau3[Mois],'Analyses Vanessa'!$C$7,Tableau3[Négo],paramètres!$B$5) -> 0 | D34: =COUNTIFS(Tableau3[Statut actuel],'Analyses Vanessa'!A34,Tableau3[Mois],'Analyses Vanessa'!$D$7,Tableau3[Négo],paramètres!$B$5) -> 0 | E34: =COUNTIFS(Tableau3[Statut actuel],'Analyses Vanessa'!A34,Tableau3[Mois],'Analyses Vanessa'!$E$7,Tableau3[Négo],paramètres!$B$5) -> 0 | F34: =COUNTIFS(Tableau3[Statut actuel],'Analyses Vanessa'!A34,Tableau3[Mois],'Analyses Vanessa'!$F$7,Tableau3[Négo],paramètres!$B$5) -> 0 | G34: =COUNTIFS(Tableau3[Statut actuel],'Analyses Vanessa'!A34,Tableau3[Mois],'Analyses Vanessa'!$G$7,Tableau3[Négo],paramètres!$B$5) -> 0 | H34: =COUNTIFS(Tableau3[Statut actuel],'Analyses Vanessa'!A34,Tableau3[Mois],'Analyses Vanessa'!$H$7,Tableau3[Négo],paramètres!$B$5) -> 0 | I34: =COUNTIFS(Tableau3[Statut actuel],'Analyses Vanessa'!A34,Tableau3[Mois],'Analyses Vanessa'!$I$7,Tableau3[Négo],paramètres!$B$5) -> 0 | J34: =COUNTIFS(Tableau3[Statut actuel],'Analyses Vanessa'!A34,Tableau3[Mois],'Analyses Vanessa'!$J$7,Tableau3[Négo],paramètres!$B$5) -> 0 | K34: =COUNTIFS(Tableau3[Statut actuel],'Analyses Vanessa'!A34,Tableau3[Mois],'Analyses Vanessa'!$K$7,Tableau3[Négo],paramètres!$B$5) -> 0 | L34: =COUNTIFS(Tableau3[Statut actuel],'Analyses Vanessa'!A34,Tableau3[Mois],'Analyses Vanessa'!$L$7,Tableau3[Négo],paramètres!$B$5) -> 0 | M34: =COUNTIFS(Tableau3[Statut actuel],'Analyses Vanessa'!A34,Tableau3[Mois],'Analyses Vanessa'!$M$7,Tableau3[Négo],paramètres!$B$5) -> 0 | N34: 0
A35: =IF(ISBLANK(paramètres!C16),"",paramètres!C16) -> Mandat | B35: =COUNTIFS(Tableau3[Statut actuel],'Analyses Vanessa'!A35,Tableau3[Mois],'Analyses Vanessa'!$B$7,Tableau3[Négo],paramètres!$B$5) -> 0 | C35: =COUNTIFS(Tableau3[Statut actuel],'Analyses Vanessa'!A35,Tableau3[Mois],'Analyses Vanessa'!$C$7,Tableau3[Négo],paramètres!$B$5) -> 1 | D35: =COUNTIFS(Tableau3[Statut actuel],'Analyses Vanessa'!A35,Tableau3[Mois],'Analyses Vanessa'!$D$7,Tableau3[Négo],paramètres!$B$5) -> 0 | E35: =COUNTIFS(Tableau3[Statut actuel],'Analyses Vanessa'!A35,Tableau3[Mois],'Analyses Vanessa'!$E$7,Tableau3[Négo],paramètres!$B$5) -> 0 | F35: =COUNTIFS(Tableau3[Statut actuel],'Analyses Vanessa'!A35,Tableau3[Mois],'Analyses Vanessa'!$F$7,Tableau3[Négo],paramètres!$B$5) -> 0 | G35: =COUNTIFS(Tableau3[Statut actuel],'Analyses Vanessa'!A35,Tableau3[Mois],'Analyses Vanessa'!$G$7,Tableau3[Négo],paramètres!$B$5) -> 0 | H35: =COUNTIFS(Tableau3[Statut actuel],'Analyses Vanessa'!A35,Tableau3[Mois],'Analyses Vanessa'!$H$7,Tableau3[Négo],paramètres!$B$5) -> 0 | I35: =COUNTIFS(Tableau3[Statut actuel],'Analyses Vanessa'!A35,Tableau3[Mois],'Analyses Vanessa'!$I$7,Tableau3[Négo],paramètres!$B$5) -> 0 | J35: =COUNTIFS(Tableau3[Statut actuel],'Analyses Vanessa'!A35,Tableau3[Mois],'Analyses Vanessa'!$J$7,Tableau3[Négo],paramètres!$B$5) -> 0 | K35: =COUNTIFS(Tableau3[Statut actuel],'Analyses Vanessa'!A35,Tableau3[Mois],'Analyses Vanessa'!$K$7,Tableau3[Négo],paramètres!$B$5) -> 0 | L35: =COUNTIFS(Tableau3[Statut actuel],'Analyses Vanessa'!A35,Tableau3[Mois],'Analyses Vanessa'!$L$7,Tableau3[Négo],paramètres!$B$5) -> 0 | M35: =COUNTIFS(Tableau3[Statut actuel],'Analyses Vanessa'!A35,Tableau3[Mois],'Analyses Vanessa'!$M$7,Tableau3[Négo],paramètres!$B$5) -> 0 | N35: 1
A37: TOTAL | B37: =SUM(B24:B35) -> 0 | C37: =SUM(C24:C35) -> 2 | D37: 0 | E37: 0 | F37: 0 | G37: 0 | H37: 0 | I37: 0 | J37: 0 | K37: 0 | L37: 0 | M37: 2 | N37: =SUM(N24:N35) -> 4
A39: Chiffre d'affaires du commercial
B40: JANVIER | C40: FEVRIER | D40: MARS | E40: AVRIL | F40: MAI | G40: JUIN | H40: JUILLET | I40: AOÛT | J40: SEPTEMBRE | K40: OCTOBRE | L40: NOVEMBRE | M40: DÉCEMBRE | N40: TOTAL
A42: COMPROMIS EN COURS
A43: Montant
A44: ACTES
A45: Montant
A46: VENTES ANNULEES
A47: Montant annulé
A49: Somme CA
A50: Rappel sur objectif (mensualisé)
A52: Cumul CA
A53: Cumul objectif
B57: Rappel objectif annuel du commercial:
B59: Pourcentage de l'objectif:

Sheet Analyses Cléa (hidden)
A1: Analyses par commercial
F4: Sélectionnez nom du négociateur: | G4: Cléa
A6: Analyse de l'origine des prospects par commercial
A7: Origine | B7: JANVIER | C7: FÉVRIER | D7: MARS | E7: AVRIL | F7: MAI | G7: JUIN | H7: JUILLET | I7: AOÛT | J7: SEPTEMBRE | K7: OCTOBRE | L7: NOVEMBRE | M7: DÉCEMBRE | N7: TOTAL | O7: Pourcentage
A8: =IF(ISBLANK(paramètres!A5),"",paramètres!A5) -> Appel direct | B8: =COUNTIFS(Tableau3[Source du prospect],'Analyses Cléa'!A8,Tableau3[Mois],'Analyses Cléa'!$B$7,Tableau3[Négo],paramètres!$B$5) -> 0 | C8: =COUNTIFS(Tableau3[Source du prospect],'Analyses Cléa'!A8,Tableau3[Mois],'Analyses Cléa'!$C$7,Tableau3[Négo],paramètres!$B$5) -> 0 | D8: =COUNTIFS(Tableau3[Source du prospect],'Analyses Cléa'!A8,Tableau3[Mois],'Analyses Cléa'!$D$7,Tableau3[Négo],paramètres!$B$5) -> 0 | E8: =COUNTIFS(Tableau3[Source du prospect],'Analyses Cléa'!A8,Tableau3[Mois],'Analyses Cléa'!$E$7,Tableau3[Négo],paramètres!$B$5) -> 0 | F8: =COUNTIFS(Tableau3[Source du prospect],'Analyses Cléa'!A8,Tableau3[Mois],'Analyses Cléa'!$F$7,Tableau3[Négo],paramètres!$B$5) -> 0 | G8: =COUNTIFS(Tableau3[Source du prospect],'Analyses Cléa'!A8,Tableau3[Mois],'Analyses Cléa'!$G$7,Tableau3[Négo],paramètres!$B$5) -> 0 | H8: =COUNTIFS(Tableau3[Source du prospect],'Analyses Cléa'!A8,Tableau3[Mois],'Analyses Cléa'!$H$7,Tableau3[Négo],paramètres!$B$5) -> 0 | I8: =COUNTIFS(Tableau3[Source du prospect],'Analyses Cléa'!A8,Tableau3[Mois],'Analyses Cléa'!$I$7,Tableau3[Négo],paramètres!$B$5) -> 0 | J8: =COUNTIFS(Tableau3[Source du prospect],'Analyses Cléa'!A8,Tableau3[Mois],'Analyses Cléa'!$J$7,Tableau3[Négo],paramètres!$B$5) -> 0 | K8: =COUNTIFS(Tableau3[Source du prospect],'Analyses Cléa'!A8,Tableau3[Mois],'Analyses Cléa'!$K$7,Tableau3[Négo],paramètres!$B$5) -> 0 | L8: =COUNTIFS(Tableau3[Source du prospect],'Analyses Cléa'!A8,Tableau3[Mois],'Analyses Cléa'!$L$7,Tableau3[Négo],paramètres!$B$5) -> 0 | M8: =COUNTIFS(Tableau3[Source du prospect],'Analyses Cléa'!A8,Tableau3[Mois],'Analyses Cléa'!$M$7,Tableau3[Négo],paramètres!$B$5) -> 1 | N8: =SUM(B8:M8) -> 1
A9: =IF(ISBLANK(paramètres!A6),"",paramètres!A6) -> e-mail | B9: =COUNTIFS(Tableau3[Source du prospect],'Analyses Cléa'!A9,Tableau3[Mois],'Analyses Cléa'!$B$7,Tableau3[Négo],paramètres!$B$5) -> 0 | C9: =COUNTIFS(Tableau3[Source du prospect],'Analyses Cléa'!A9,Tableau3[Mois],'Analyses Cléa'!$C$7,Tableau3[Négo],paramètres!$B$5) -> 1 | D9: =COUNTIFS(Tableau3[Source du prospect],'Analyses Cléa'!A9,Tableau3[Mois],'Analyses Cléa'!$D$7,Tableau3[Négo],paramètres!$B$5) -> 0 | E9: =COUNTIFS(Tableau3[Source du prospect],'Analyses Cléa'!A9,Tableau3[Mois],'Analyses Cléa'!$E$7,Tableau3[Négo],paramètres!$B$5) -> 0 | F9: =COUNTIFS(Tableau3[Source du prospect],'Analyses Cléa'!A9,Tableau3[Mois],'Analyses Cléa'!$F$7,Tableau3[Négo],paramètres!$B$5) -> 0 | G9: =COUNTIFS(Tableau3[Source du prospect],'Analyses Cléa'!A9,Tableau3[Mois],'Analyses Cléa'!$G$7,Tableau3[Négo],paramètres!$B$5) -> 0 | H9: =COUNTIFS(Tableau3[Source du prospect],'Analyses Cléa'!A9,Tableau3[Mois],'Analyses Cléa'!$H$7,Tableau3[Négo],paramètres!$B$5) -> 0 | I9: =COUNTIFS(Tableau3[Source du prospect],'Analyses Cléa'!A9,Tableau3[Mois],'Analyses Cléa'!$I$7,Tableau3[Négo],paramètres!$B$5) -> 0 | J9: =COUNTIFS(Tableau3[Source du prospect],'Analyses Cléa'!A9,Tableau3[Mois],'Analyses Cléa'!$J$7,Tableau3[Négo],paramètres!$B$5) -> 0 | K9: =COUNTIFS(Tableau3[Source du prospect],'Analyses Cléa'!A9,Tableau3[Mois],'Analyses Cléa'!$K$7,Tableau3[Négo],paramètres!$B$5) -> 0 | L9: =COUNTIFS(Tableau3[Source du prospect],'Analyses Cléa'!A9,Tableau3[Mois],'Analyses Cléa'!$L$7,Tableau3[Négo],paramètres!$B$5) -> 0 | M9: =COUNTIFS(Tableau3[Source du prospect],'Analyses Cléa'!A9,Tableau3[Mois],'Analyses Cléa'!$M$7,Tableau3[Négo],paramètres!$B$5) -> 0 | N9: =SUM(B9:M9) -> 1
A10: =IF(ISBLANK(paramètres!A7),"",paramètres!A7) -> Prospection | B10: =COUNTIFS(Tableau3[Source du prospect],'Analyses Cléa'!A10,Tableau3[Mois],'Analyses Cléa'!$B$7,Tableau3[Négo],paramètres!$B$5) -> 0 | C10: =COUNTIFS(Tableau3[Source du prospect],'Analyses Cléa'!A10,Tableau3[Mois],'Analyses Cléa'!$C$7,Tableau3[Négo],paramètres!$B$5) -> 0 | D10: =COUNTIFS(Tableau3[Source du prospect],'Analyses Cléa'!A10,Tableau3[Mois],'Analyses Cléa'!$D$7,Tableau3[Négo],paramètres!$B$5) -> 0 | E10: =COUNTIFS(Tableau3[Source du prospect],'Analyses Cléa'!A10,Tableau3[Mois],'Analyses Cléa'!$E$7,Tableau3[Négo],paramètres!$B$5) -> 0 | F10: =COUNTIFS(Tableau3[Source du prospect],'Analyses Cléa'!A10,Tableau3[Mois],'Analyses Cléa'!$F$7,Tableau3[Négo],paramètres!$B$5) -> 0 | G10: =COUNTIFS(Tableau3[Source du prospect],'Analyses Cléa'!A10,Tableau3[Mois],'Analyses Cléa'!$G$7,Tableau3[Négo],paramètres!$B$5) -> 0 | H10: =COUNTIFS(Tableau3[Source du prospect],'Analyses Cléa'!A10,Tableau3[Mois],'Analyses Cléa'!$H$7,Tableau3[Négo],paramètres!$B$5) -> 0 | I10: =COUNTIFS(Tableau3[Source du prospect],'Analyses Cléa'!A10,Tableau3[Mois],'Analyses Cléa'!$I$7,Tableau3[Négo],paramètres!$B$5) -> 0 | J10: =COUNTIFS(Tableau3[Source du prospect],'Analyses Cléa'!A10,Tableau3[Mois],'Analyses Cléa'!$J$7,Tableau3[Négo],paramètres!$B$5) -> 0 | K10: =COUNTIFS(Tableau3[Source du prospect],'Analyses Cléa'!A10,Tableau3[Mois],'Analyses Cléa'!$K$7,Tableau3[Négo],paramètres!$B$5) -> 0 | L10: =COUNTIFS(Tableau3[Source du prospect],'Analyses Cléa'!A10,Tableau3[Mois],'Analyses Cléa'!$L$7,Tableau3[Négo],paramètres!$B$5) -> 0 | M10: =COUNTIFS(Tableau3[Source du prospect],'Analyses Cléa'!A10,Tableau3[Mois],'Analyses Cléa'!$M$7,Tableau3[Négo],paramètres!$B$5) -> 1 | N10: 1
A11: =IF(ISBLANK(paramètres!A8),"",paramètres!A8) -> Site Internet | B11: =COUNTIFS(Tableau3[Source du prospect],'Analyses Cléa'!A11,Tableau3[Mois],'Analyses Cléa'!$B$7,Tableau3[Négo],paramètres!$B$5) -> 0 | C11: =COUNTIFS(Tableau3[Source du prospect],'Analyses Cléa'!A11,Tableau3[Mois],'Analyses Cléa'!$C$7,Tableau3[Négo],paramètres!$B$5) -> 1 | D11: =COUNTIFS(Tableau3[Source du prospect],'Analyses Cléa'!A11,Tableau3[Mois],'Analyses Cléa'!$D$7,Tableau3[Négo],paramètres!$B$5) -> 0 | E11: =COUNTIFS(Tableau3[Source du prospect],'Analyses Cléa'!A11,Tableau3[Mois],'Analyses Cléa'!$E$7,Tableau3[Négo],paramètres!$B$5) -> 0 | F11: =COUNTIFS(Tableau3[Source du prospect],'Analyses Cléa'!A11,Tableau3[Mois],'Analyses Cléa'!$F$7,Tableau3[Négo],paramètres!$B$5) -> 0 | G11: =COUNTIFS(Tableau3[Source du prospect],'Analyses Cléa'!A11,Tableau3[Mois],'Analyses Cléa'!$G$7,Tableau3[Négo],paramètres!$B$5) -> 0 | H11: =COUNTIFS(Tableau3[Source du prospect],'Analyses Cléa'!A11,Tableau3[Mois],'Analyses Cléa'!$H$7,Tableau3[Négo],paramètres!$B$5) -> 0 | I11: =COUNTIFS(Tableau3[Source du prospect],'Analyses Cléa'!A11,Tableau3[Mois],'Analyses Cléa'!$I$7,Tableau3[Négo],paramètres!$B$5) -> 0 | J11: =COUNTIFS(Tableau3[Source du prospect],'Analyses Cléa'!A11,Tableau3[Mois],'Analyses Cléa'!$J$7,Tableau3[Négo],paramètres!$B$5) -> 0 | K11: =COUNTIFS(Tableau3[Source du prospect],'Analyses Cléa'!A11,Tableau3[Mois],'Analyses Cléa'!$K$7,Tableau3[Négo],paramètres!$B$5) -> 0 | L11: =COUNTIFS(Tableau3[Source du prospect],'Analyses Cléa'!A11,Tableau3[Mois],'Analyses Cléa'!$L$7,Tableau3[Négo],paramètres!$B$5) -> 0 | M11: =COUNTIFS(Tableau3[Source du prospect],'Analyses Cléa'!A11,Tableau3[Mois],'Analyses Cléa'!$M$7,Tableau3[Négo],paramètres!$B$5) -> 0 | N11: 1
A12: =IF(ISBLANK(paramètres!A9),"",paramètres!A9) -> Appel agence | B12: =COUNTIFS(Tableau3[Source du prospect],'Analyses Cléa'!A12,Tableau3[Mois],'Analyses Cléa'!$B$7,Tableau3[Négo],paramètres!$B$5) -> 0 | C12: =COUNTIFS(Tableau3[Source du prospect],'Analyses Cléa'!A12,Tableau3[Mois],'Analyses Cléa'!$C$7,Tableau3[Négo],paramètres!$B$5) -> 0 | D12: =COUNTIFS(Tableau3[Source du prospect],'Analyses Cléa'!A12,Tableau3[Mois],'Analyses Cléa'!$D$7,Tableau3[Négo],paramètres!$B$5) -> 0 | E12: =COUNTIFS(Tableau3[Source du prospect],'Analyses Cléa'!A12,Tableau3[Mois],'Analyses Cléa'!$E$7,Tableau3[Négo],paramètres!$B$5) -> 0 | F12: =COUNTIFS(Tableau3[Source du prospect],'Analyses Cléa'!A12,Tableau3[Mois],'Analyses Cléa'!$F$7,Tableau3[Négo],paramètres!$B$5) -> 0 | G12: =COUNTIFS(Tableau3[Source du prospect],'Analyses Cléa'!A12,Tableau3[Mois],'Analyses Cléa'!$G$7,Tableau3[Négo],paramètres!$B$5) -> 0 | H12: =COUNTIFS(Tableau3[Source du prospect],'Analyses Cléa'!A12,Tableau3[Mois],'Analyses Cléa'!$H$7,Tableau3[Négo],paramètres!$B$5) -> 0 | I12: =COUNTIFS(Tableau3[Source du prospect],'Analyses Cléa'!A12,Tableau3[Mois],'Analyses Cléa'!$I$7,Tableau3[Négo],paramètres!$B$5) -> 0 | J12: =COUNTIFS(Tableau3[Source du prospect],'Analyses Cléa'!A12,Tableau3[Mois],'Analyses Cléa'!$J$7,Tableau3[Négo],paramètres!$B$5) -> 0 | K12: =COUNTIFS(Tableau3[Source du prospect],'Analyses Cléa'!A12,Tableau3[Mois],'Analyses Cléa'!$K$7,Tableau3[Négo],paramètres!$B$5) -> 0 | L12: =COUNTIFS(Tableau3[Source du prospect],'Analyses Cléa'!A12,Tableau3[Mois],'Analyses Cléa'!$L$7,Tableau3[Négo],paramètres!$B$5) -> 0 | M12: =COUNTIFS(Tableau3[Source du prospect],'Analyses Cléa'!A12,Tableau3[Mois],'Analyses Cléa'!$M$7,Tableau3[Négo],paramètres!$B$5) -> 0 | N12: 0
A13: =IF(ISBLANK(paramètres!A10),"",paramètres!A10) ->  | N13: 0
A14: =IF(ISBLANK(paramètres!A11),"",paramètres!A11) ->  | N14: 0
A15: =IF(ISBLANK(paramètres!A12),"",paramètres!A12) ->  | N15: =SUM(B15:M15) -> 0
A16: =IF(ISBLANK(paramètres!A13),"",paramètres!A13) ->  | N16: 0
A17: =IF(ISBLANK(paramètres!A14),"",paramètres!A14) ->  | N17: 0
A18: =IF(ISBLANK(paramètres!A15),"",paramètres!A15) ->  | N18: 0
A19: =IF(ISBLANK(paramètres!A16),"",paramètres!A16) ->  | N19: 0
A20: TOTAL | B20: =SUM(B8:B19) -> 0 | C20: =SUM(C8:C19) -> 2 | D20: 0 | E20: 0 | F20: 0 | G20: 0 | H20: 0 | I20: 0 | J20: 0 | K20: 0 | L20: 0 | M20: 2 | N20: 4 | O20: 0
A22: Statut actuel des dossiers du négociateur
A23: Statut | B23: JANVIER | C23: FÉVRIER | D23: MARS | E23: AVRIL | F23: MAI | G23: JUIN | H23: JUILLET | I23: AOÛT | J23: SEPTEMBRE | K23: OCTOBRE | L23: NOVEMBRE | M23: DÉCEMBRE | N23: TOTAL | O23: Pourcentage
A24: =IF(ISBLANK(paramètres!C5),"",paramètres!C5) -> TEL, SMS | B24: =COUNTIFS(Tableau3[Statut actuel],'Analyses Cléa'!A24,Tableau3[Mois],'Analyses Cléa'!$B$7,Tableau3[Négo],paramètres!$B$5) -> 0 | C24: =COUNTIFS(Tableau3[Statut actuel],'Analyses Cléa'!A24,Tableau3[Mois],'Analyses Cléa'!$C$7,Tableau3[Négo],paramètres!$B$5) -> 0 | D24: =COUNTIFS(Tableau3[Statut actuel],'Analyses Cléa'!A24,Tableau3[Mois],'Analyses Cléa'!$D$7,Tableau3[Négo],paramètres!$B$5) -> 0 | E24: =COUNTIFS(Tableau3[Statut actuel],'Analyses Cléa'!A24,Tableau3[Mois],'Analyses Cléa'!$E$7,Tableau3[Négo],paramètres!$B$5) -> 0 | F24: =COUNTIFS(Tableau3[Statut actuel],'Analyses Cléa'!A24,Tableau3[Mois],'Analyses Cléa'!$F$7,Tableau3[Négo],paramètres!$B$5) -> 0 | G24: =COUNTIFS(Tableau3[Statut actuel],'Analyses Cléa'!A24,Tableau3[Mois],'Analyses Cléa'!$G$7,Tableau3[Négo],paramètres!$B$5) -> 0 | H24: =COUNTIFS(Tableau3[Statut actuel],'Analyses Cléa'!A24,Tableau3[Mois],'Analyses Cléa'!$H$7,Tableau3[Négo],paramètres!$B$5) -> 0 | I24: =COUNTIFS(Tableau3[Statut actuel],'Analyses Cléa'!A24,Tableau3[Mois],'Analyses Cléa'!$I$7,Tableau3[Négo],paramètres!$B$5) -> 0 | J24: =COUNTIFS(Tableau3[Statut actuel],'Analyses Cléa'!A24,Tableau3[Mois],'Analyses Cléa'!$J$7,Tableau3[Négo],paramètres!$B$5) -> 0 | K24: =COUNTIFS(Tableau3[Statut actuel],'Analyses Cléa'!A24,Tableau3[Mois],'Analyses Cléa'!$K$7,Tableau3[Négo],paramètres!$B$5) -> 0 | L24: =COUNTIFS(Tableau3[Statut actuel],'Analyses Cléa'!A24,Tableau3[Mois],'Analyses Cléa'!$L$7,Tableau3[Négo],paramètres!$B$5) -> 0 | M24: =COUNTIFS(Tableau3[Statut actuel],'Analyses Cléa'!A24,Tableau3[Mois],'Analyses Cléa'!$M$7,Tableau3[Négo],paramètres!$B$5) -> 0 | N24: =SUM(B24:M24) -> 0
A25: =IF(ISBLANK(paramètres!C6),"",paramètres!C6) -> Porte à porte | B25: =COUNTIFS(Tableau3[Statut actuel],'Analyses Cléa'!A25,Tableau3[Mois],'Analyses Cléa'!$B$7,Tableau3[Négo],paramètres!$B$5) -> 0 | C25: =COUNTIFS(Tableau3[Statut actuel],'Analyses Cléa'!A25,Tableau3[Mois],'Analyses Cléa'!$C$7,Tableau3[Négo],paramètres!$B$5) -> 0 | D25: =COUNTIFS(Tableau3[Statut actuel],'Analyses Cléa'!A25,Tableau3[Mois],'Analyses Cléa'!$D$7,Tableau3[Négo],paramètres!$B$5) -> 0 | E25: =COUNTIFS(Tableau3[Statut actuel],'Analyses Cléa'!A25,Tableau3[Mois],'Analyses Cléa'!$E$7,Tableau3[Négo],paramètres!$B$5) -> 0 | F25: =COUNTIFS(Tableau3[Statut actuel],'Analyses Cléa'!A25,Tableau3[Mois],'Analyses Cléa'!$F$7,Tableau3[Négo],paramètres!$B$5) -> 0 | G25: =COUNTIFS(Tableau3[Statut actuel],'Analyses Cléa'!A25,Tableau3[Mois],'Analyses Cléa'!$G$7,Tableau3[Négo],paramètres!$B$5) -> 0 | H25: =COUNTIFS(Tableau3[Statut actuel],'Analyses Cléa'!A25,Tableau3[Mois],'Analyses Cléa'!$H$7,Tableau3[Négo],paramètres!$B$5) -> 0 | I25: =COUNTIFS(Tableau3[Statut actuel],'Analyses Cléa'!A25,Tableau3[Mois],'Analyses Cléa'!$I$7,Tableau3[Négo],paramètres!$B$5) -> 0 | J25: =COUNTIFS(Tableau3[Statut actuel],'Analyses Cléa'!A25,Tableau3[Mois],'Analyses Cléa'!$J$7,Tableau3[Négo],paramètres!$B$5) -> 0 | K25: =COUNTIFS(Tableau3[Statut actuel],'Analyses Cléa'!A25,Tableau3[Mois],'Analyses Cléa'!$K$7,Tableau3[Négo],paramètres!$B$5) -> 0 | L25: =COUNTIFS(Tableau3[Statut actuel],'Analyses Cléa'!A25,Tableau3[Mois],'Analyses Cléa'!$L$7,Tableau3[Négo],paramètres!$B$5) -> 0 | M25: =COUNTIFS(Tableau3[Statut actuel],'Analyses Cléa'!A25,Tableau3[Mois],'Analyses Cléa'!$M$7,Tableau3[Négo],paramètres!$B$5) -> 0 | N25: =SUM(B25:M25) -> 0
A26: =IF(ISBLANK(paramètres!C7),"",paramètres!C7) -> R1 | B26: =COUNTIFS(Tableau3[Statut actuel],'Analyses Cléa'!A26,Tableau3[Mois],'Analyses Cléa'!$B$7,Tableau3[Négo],paramètres!$B$5) -> 0 | C26: =COUNTIFS(Tableau3[Statut actuel],'Analyses Cléa'!A26,Tableau3[Mois],'Analyses Cléa'!$C$7,Tableau3[Négo],paramètres!$B$5) -> 0 | D26: =COUNTIFS(Tableau3[Statut actuel],'Analyses Cléa'!A26,Tableau3[Mois],'Analyses Cléa'!$D$7,Tableau3[Négo],paramètres!$B$5) -> 0 | E26: =COUNTIFS(Tableau3[Statut actuel],'Analyses Cléa'!A26,Tableau3[Mois],'Analyses Cléa'!$E$7,Tableau3[Négo],paramètres!$B$5) -> 0 | F26: =COUNTIFS(Tableau3[Statut actuel],'Analyses Cléa'!A26,Tableau3[Mois],'Analyses Cléa'!$F$7,Tableau3[Négo],paramètres!$B$5) -> 0 | G26: =COUNTIFS(Tableau3[Statut actuel],'Analyses Cléa'!A26,Tableau3[Mois],'Analyses Cléa'!$G$7,Tableau3[Négo],paramètres!$B$5) -> 0 | H26: =COUNTIFS(Tableau3[Statut actuel],'Analyses Cléa'!A26,Tableau3[Mois],'Analyses Cléa'!$H$7,Tableau3[Négo],paramètres!$B$5) -> 0 | I26: =COUNTIFS(Tableau3[Statut actuel],'Analyses Cléa'!A26,Tableau3[Mois],'Analyses Cléa'!$I$7,Tableau3[Négo],paramètres!$B$5) -> 0 | J26: =COUNTIFS(Tableau3[Statut actuel],'Analyses Cléa'!A26,Tableau3[Mois],'Analyses Cléa'!$J$7,Tableau3[Négo],paramètres!$B$5) -> 0 | K26: =COUNTIFS(Tableau3[Statut actuel],'Analyses Cléa'!A26,Tableau3[Mois],'Analyses Cléa'!$K$7,Tableau3[Négo],paramètres!$B$5) -> 0 | L26: =COUNTIFS(Tableau3[Statut actuel],'Analyses Cléa'!A26,Tableau3[Mois],'Analyses Cléa'!$L$7,Tableau3[Négo],paramètres!$B$5) -> 0 | M26: =COUNTIFS(Tableau3[Statut actuel],'Analyses Cléa'!A26,Tableau3[Mois],'Analyses Cléa'!$M$7,Tableau3[Négo],paramètres!$B$5) -> 0 | N26: 0
A27: =IF(ISBLANK(paramètres!C8),"",paramètres!C8) -> R2 | B27: =COUNTIFS(Tableau3[Statut actuel],'Analyses Cléa'!A27,Tableau3[Mois],'Analyses Cléa'!$B$7,Tableau3[Négo],paramètres!$B$5) -> 0 | C27: =COUNTIFS(Tableau3[Statut actuel],'Analyses Cléa'!A27,Tableau3[Mois],'Analyses Cléa'!$C$7,Tableau3[Négo],paramètres!$B$5) -> 0 | D27: =COUNTIFS(Tableau3[Statut actuel],'Analyses Cléa'!A27,Tableau3[Mois],'Analyses Cléa'!$D$7,Tableau3[Négo],paramètres!$B$5) -> 0 | E27: =COUNTIFS(Tableau3[Statut actuel],'Analyses Cléa'!A27,Tableau3[Mois],'Analyses Cléa'!$E$7,Tableau3[Négo],paramètres!$B$5) -> 0 | F27: =COUNTIFS(Tableau3[Statut actuel],'Analyses Cléa'!A27,Tableau3[Mois],'Analyses Cléa'!$F$7,Tableau3[Négo],paramètres!$B$5) -> 0 | G27: =COUNTIFS(Tableau3[Statut actuel],'Analyses Cléa'!A27,Tableau3[Mois],'Analyses Cléa'!$G$7,Tableau3[Négo],paramètres!$B$5) -> 0 | H27: =COUNTIFS(Tableau3[Statut actuel],'Analyses Cléa'!A27,Tableau3[Mois],'Analyses Cléa'!$H$7,Tableau3[Négo],paramètres!$B$5) -> 0 | I27: =COUNTIFS(Tableau3[Statut actuel],'Analyses Cléa'!A27,Tableau3[Mois],'Analyses Cléa'!$I$7,Tableau3[Négo],paramètres!$B$5) -> 0 | J27: =COUNTIFS(Tableau3[Statut actuel],'Analyses Cléa'!A27,Tableau3[Mois],'Analyses Cléa'!$J$7,Tableau3[Négo],paramètres!$B$5) -> 0 | K27: =COUNTIFS(Tableau3[Statut actuel],'Analyses Cléa'!A27,Tableau3[Mois],'Analyses Cléa'!$K$7,Tableau3[Négo],paramètres!$B$5) -> 0 | L27: =COUNTIFS(Tableau3[Statut actuel],'Analyses Cléa'!A27,Tableau3[Mois],'Analyses Cléa'!$L$7,Tableau3[Négo],paramètres!$B$5) -> 0 | M27: =COUNTIFS(Tableau3[Statut actuel],'Analyses Cléa'!A27,Tableau3[Mois],'Analyses Cléa'!$M$7,Tableau3[Négo],paramètres!$B$5) -> 0 | N27: 0
A28: =IF(ISBLANK(paramètres!C9),"",paramètres!C9) -> Estimation faite | B28: =COUNTIFS(Tableau3[Statut actuel],'Analyses Cléa'!A28,Tableau3[Mois],'Analyses Cléa'!$B$7,Tableau3[Négo],paramètres!$B$5) -> 0 | C28: =COUNTIFS(Tableau3[Statut actuel],'Analyses Cléa'!A28,Tableau3[Mois],'Analyses Cléa'!$C$7,Tableau3[Négo],paramètres!$B$5) -> 0 | D28: =COUNTIFS(Tableau3[Statut actuel],'Analyses Cléa'!A28,Tableau3[Mois],'Analyses Cléa'!$D$7,Tableau3[Négo],paramètres!$B$5) -> 0 | E28: =COUNTIFS(Tableau3[Statut actuel],'Analyses Cléa'!A28,Tableau3[Mois],'Analyses Cléa'!$E$7,Tableau3[Négo],paramètres!$B$5) -> 0 | F28: =COUNTIFS(Tableau3[Statut actuel],'Analyses Cléa'!A28,Tableau3[Mois],'Analyses Cléa'!$F$7,Tableau3[Négo],paramètres!$B$5) -> 0 | G28: =COUNTIFS(Tableau3[Statut actuel],'Analyses Cléa'!A28,Tableau3[Mois],'Analyses Cléa'!$G$7,Tableau3[Négo],paramètres!$B$5) -> 0 | H28: =COUNTIFS(Tableau3[Statut actuel],'Analyses Cléa'!A28,Tableau3[Mois],'Analyses Cléa'!$H$7,Tableau3[Négo],paramètres!$B$5) -> 0 | I28: =COUNTIFS(Tableau3[Statut actuel],'Analyses Cléa'!A28,Tableau3[Mois],'Analyses Cléa'!$I$7,Tableau3[Négo],paramètres!$B$5) -> 0 | J28: =COUNTIFS(Tableau3[Statut actuel],'Analyses Cléa'!A28,Tableau3[Mois],'Analyses Cléa'!$J$7,Tableau3[Négo],paramètres!$B$5) -> 0 | K28: =COUNTIFS(Tableau3[Statut actuel],'Analyses Cléa'!A28,Tableau3[Mois],'Analyses Cléa'!$K$7,Tableau3[Négo],paramètres!$B$5) -> 0 | L28: =COUNTIFS(Tableau3[Statut actuel],'Analyses Cléa'!A28,Tableau3[Mois],'Analyses Cléa'!$L$7,Tableau3[Négo],paramètres!$B$5) -> 0 | M28: =COUNTIFS(Tableau3[Statut actuel],'Analyses Cléa'!A28,Tableau3[Mois],'Analyses Cléa'!$M$7,Tableau3[Négo],paramètres!$B$5) -> 0 | N28: 0
A29: =IF(ISBLANK(paramètres!C10),"",paramètres!C10) -> Sous compromis | B29: =COUNTIFS(Tableau3[Statut actuel],'Analyses Cléa'!A29,Tableau3[Mois],'Analyses Cléa'!$B$7,Tableau3[Négo],paramètres!$B$5) -> 0 | C29: =COUNTIFS(Tableau3[Statut actuel],'Analyses Cléa'!A29,Tableau3[Mois],'Analyses Cléa'!$C$7,Tableau3[Négo],paramètres!$B$5) -> 0 | D29: =COUNTIFS(Tableau3[Statut actuel],'Analyses Cléa'!A29,Tableau3[Mois],'Analyses Cléa'!$D$7,Tableau3[Négo],paramètres!$B$5) -> 0 | E29: =COUNTIFS(Tableau3[Statut actuel],'Analyses Cléa'!A29,Tableau3[Mois],'Analyses Cléa'!$E$7,Tableau3[Négo],paramètres!$B$5) -> 0 | F29: =COUNTIFS(Tableau3[Statut actuel],'Analyses Cléa'!A29,Tableau3[Mois],'Analyses Cléa'!$F$7,Tableau3[Négo],paramètres!$B$5) -> 0 | G29: =COUNTIFS(Tableau3[Statut actuel],'Analyses Cléa'!A29,Tableau3[Mois],'Analyses Cléa'!$G$7,Tableau3[Négo],paramètres!$B$5) -> 0 | H29: =COUNTIFS(Tableau3[Statut actuel],'Analyses Cléa'!A29,Tableau3[Mois],'Analyses Cléa'!$H$7,Tableau3[Négo],paramètres!$B$5) -> 0 | I29: =COUNTIFS(Tableau3[Statut actuel],'Analyses Cléa'!A29,Tableau3[Mois],'Analyses Cléa'!$I$7,Tableau3[Négo],paramètres!$B$5) -> 0 | J29: =COUNTIFS(Tableau3[Statut actuel],'Analyses Cléa'!A29,Tableau3[Mois],'Analyses Cléa'!$J$7,Tableau3[Négo],paramètres!$B$5) -> 0 | K29: =COUNTIFS(Tableau3[Statut actuel],'Analyses Cléa'!A29,Tableau3[Mois],'Analyses Cléa'!$K$7,Tableau3[Négo],paramètres!$B$5) -> 0 | L29: =COUNTIFS(Tableau3[Statut actuel],'Analyses Cléa'!A29,Tableau3[Mois],'Analyses Cléa'!$L$7,Tableau3[Négo],paramètres!$B$5) -> 0 | M29: =COUNTIFS(Tableau3[Statut actuel],'Analyses Cléa'!A29,Tableau3[Mois],'Analyses Cléa'!$M$7,Tableau3[Négo],paramètres!$B$5) -> 1 | N29: 1
A30: =IF(ISBLANK(paramètres!C11),"",paramètres!C11) -> Vendu | B30: =COUNTIFS(Tableau3[Statut actuel],'Analyses Cléa'!A30,Tableau3[Mois],'Analyses Cléa'!$B$7,Tableau3[Négo],paramètres!$B$5) -> 0 | C30: =COUNTIFS(Tableau3[Statut actuel],'Analyses Cléa'!A30,Tableau3[Mois],'Analyses Cléa'!$C$7,Tableau3[Négo],paramètres!$B$5) -> 0 | D30: =COUNTIFS(Tableau3[Statut actuel],'Analyses Cléa'!A30,Tableau3[Mois],'Analyses Cléa'!$D$7,Tableau3[Négo],paramètres!$B$5) -> 0 | E30: =COUNTIFS(Tableau3[Statut actuel],'Analyses Cléa'!A30,Tableau3[Mois],'Analyses Cléa'!$E$7,Tableau3[Négo],paramètres!$B$5) -> 0 | F30: =COUNTIFS(Tableau3[Statut actuel],'Analyses Cléa'!A30,Tableau3[Mois],'Analyses Cléa'!$F$7,Tableau3[Négo],paramètres!$B$5) -> 0 | G30: =COUNTIFS(Tableau3[Statut actuel],'Analyses Cléa'!A30,Tableau3[Mois],'Analyses Cléa'!$G$7,Tableau3[Négo],paramètres!$B$5) -> 0 | H30: =COUNTIFS(Tableau3[Statut actuel],'Analyses Cléa'!A30,Tableau3[Mois],'Analyses Cléa'!$H$7,Tableau3[Négo],paramètres!$B$5) -> 0 | I30: =COUNTIFS(Tableau3[Statut actuel],'Analyses Cléa'!A30,Tableau3[Mois],'Analyses Cléa'!$I$7,Tableau3[Négo],paramètres!$B$5) -> 0 | J30: =COUNTIFS(Tableau3[Statut actuel],'Analyses Cléa'!A30,Tableau3[Mois],'Analyses Cléa'!$J$7,Tableau3[Négo],paramètres!$B$5) -> 0 | K30: =COUNTIFS(Tableau3[Statut actuel],'Analyses Cléa'!A30,Tableau3[Mois],'Analyses Cléa'!$K$7,Tableau3[Négo],paramètres!$B$5) -> 0 | L30: =COUNTIFS(Tableau3[Statut actuel],'Analyses Cléa'!A30,Tableau3[Mois],'Analyses Cléa'!$L$7,Tableau3[Négo],paramètres!$B$5) -> 0 | M30: =COUNTIFS(Tableau3[Statut actuel],'Analyses Cléa'!A30,Tableau3[Mois],'Analyses Cléa'!$M$7,Tableau3[Négo],paramètres!$B$5) -> 0 | N30: 0
A31: =IF(ISBLANK(paramètres!C12),"",paramètres!C12) -> Vente annulée | B31: =COUNTIFS(Tableau3[Statut actuel],'Analyses Cléa'!A31,Tableau3[Mois],'Analyses Cléa'!$B$7,Tableau3[Négo],paramètres!$B$5) -> 0 | C31: =COUNTIFS(Tableau3[Statut actuel],'Analyses Cléa'!A31,Tableau3[Mois],'Analyses Cléa'!$C$7,Tableau3[Négo],paramètres!$B$5) -> 0 | D31: =COUNTIFS(Tableau3[Statut actuel],'Analyses Cléa'!A31,Tableau3[Mois],'Analyses Cléa'!$D$7,Tableau3[Négo],paramètres!$B$5) -> 0 | E31: =COUNTIFS(Tableau3[Statut actuel],'Analyses Cléa'!A31,Tableau3[Mois],'Analyses Cléa'!$E$7,Tableau3[Négo],paramètres!$B$5) -> 0 | F31: =COUNTIFS(Tableau3[Statut actuel],'Analyses Cléa'!A31,Tableau3[Mois],'Analyses Cléa'!$F$7,Tableau3[Négo],paramètres!$B$5) -> 0 | G31: =COUNTIFS(Tableau3[Statut actuel],'Analyses Cléa'!A31,Tableau3[Mois],'Analyses Cléa'!$G$7,Tableau3[Négo],paramètres!$B$5) -> 0 | H31: =COUNTIFS(Tableau3[Statut actuel],'Analyses Cléa'!A31,Tableau3[Mois],'Analyses Cléa'!$H$7,Tableau3[Négo],paramètres!$B$5) -> 0 | I31: =COUNTIFS(Tableau3[Statut actuel],'Analyses Cléa'!A31,Tableau3[Mois],'Analyses Cléa'!$I$7,Tableau3[Négo],paramètres!$B$5) -> 0 | J31: =COUNTIFS(Tableau3[Statut actuel],'Analyses Cléa'!A31,Tableau3[Mois],'Analyses Cléa'!$J$7,Tableau3[Négo],paramètres!$B$5) -> 0 | K31: =COUNTIFS(Tableau3[Statut actuel],'Analyses Cléa'!A31,Tableau3[Mois],'Analyses Cléa'!$K$7,Tableau3[Négo],paramètres!$B$5) -> 0 | L31: =COUNTIFS(Tableau3[Statut actuel],'Analyses Cléa'!A31,Tableau3[Mois],'Analyses Cléa'!$L$7,Tableau3[Négo],paramètres!$B$5) -> 0 | M31: =COUNTIFS(Tableau3[Statut actuel],'Analyses Cléa'!A31,Tableau3[Mois],'Analyses Cléa'!$M$7,Tableau3[Négo],paramètres!$B$5) -> 1 | N31: 1
A32: =IF(ISBLANK(paramètres!C13),"",paramètres!C13) -> Abandonné | B32: =COUNTIFS(Tableau3[Statut actuel],'Analyses Cléa'!A32,Tableau3[Mois],'Analyses Cléa'!$B$7,Tableau3[Négo],paramètres!$B$5) -> 0 | C32: =COUNTIFS(Tableau3[Statut actuel],'Analyses Cléa'!A32,Tableau3[Mois],'Analyses Cléa'!$C$7,Tableau3[Négo],paramètres!$B$5) -> 1 | D32: =COUNTIFS(Tableau3[Statut actuel],'Analyses Cléa'!A32,Tableau3[Mois],'Analyses Cléa'!$D$7,Tableau3[Négo],paramètres!$B$5) -> 0 | E32: =COUNTIFS(Tableau3[Statut actuel],'Analyses Cléa'!A32,Tableau3[Mois],'Analyses Cléa'!$E$7,Tableau3[Négo],paramètres!$B$5) -> 0 | F32: =COUNTIFS(Tableau3[Statut actuel],'Analyses Cléa'!A32,Tableau3[Mois],'Analyses Cléa'!$F$7,Tableau3[Négo],paramètres!$B$5) -> 0 | G32: =COUNTIFS(Tableau3[Statut actuel],'Analyses Cléa'!A32,Tableau3[Mois],'Analyses Cléa'!$G$7,Tableau3[Négo],paramètres!$B$5) -> 0 | H32: =COUNTIFS(Tableau3[Statut actuel],'Analyses Cléa'!A32,Tableau3[Mois],'Analyses Cléa'!$H$7,Tableau3[Négo],paramètres!$B$5) -> 0 | I32: =COUNTIFS(Tableau3[Statut actuel],'Analyses Cléa'!A32,Tableau3[Mois],'Analyses Cléa'!$I$7,Tableau3[Négo],paramètres!$B$5) -> 0 | J32: =COUNTIFS(Tableau3[Statut actuel],'Analyses Cléa'!A32,Tableau3[Mois],'Analyses Cléa'!$J$7,Tableau3[Négo],paramètres!$B$5) -> 0 | K32: =COUNTIFS(Tableau3[Statut actuel],'Analyses Cléa'!A32,Tableau3[Mois],'Analyses Cléa'!$K$7,Tableau3[Négo],paramètres!$B$5) -> 0 | L32: =COUNTIFS(Tableau3[Statut actuel],'Analyses Cléa'!A32,Tableau3[Mois],'Analyses Cléa'!$L$7,Tableau3[Négo],paramètres!$B$5) -> 0 | M32: =COUNTIFS(Tableau3[Statut actuel],'Analyses Cléa'!A32,Tableau3[Mois],'Analyses Cléa'!$M$7,Tableau3[Négo],paramètres!$B$5) -> 0 | N32: 1
A33: =IF(ISBLANK(paramètres!C14),"",paramètres!C14) -> Stand-by | B33: =COUNTIFS(Tableau3[Statut actuel],'Analyses Cléa'!A33,Tableau3[Mois],'Analyses Cléa'!$B$7,Tableau3[Négo],paramètres!$B$5) -> 0 | C33: =COUNTIFS(Tableau3[Statut actuel],'Analyses Cléa'!A33,Tableau3[Mois],'Analyses Cléa'!$C$7,Tableau3[Négo],paramètres!$B$5) -> 0 | D33: =COUNTIFS(Tableau3[Statut actuel],'Analyses Cléa'!A33,Tableau3[Mois],'Analyses Cléa'!$D$7,Tableau3[Négo],paramètres!$B$5) -> 0 | E33: =COUNTIFS(Tableau3[Statut actuel],'Analyses Cléa'!A33,Tableau3[Mois],'Analyses Cléa'!$E$7,Tableau3[Négo],paramètres!$B$5) -> 0 | F33: =COUNTIFS(Tableau3[Statut actuel],'Analyses Cléa'!A33,Tableau3[Mois],'Analyses Cléa'!$F$7,Tableau3[Négo],paramètres!$B$5) -> 0 | G33: =COUNTIFS(Tableau3[Statut actuel],'Analyses Cléa'!A33,Tableau3[Mois],'Analyses Cléa'!$G$7,Tableau3[Négo],paramètres!$B$5) -> 0 | H33: =COUNTIFS(Tableau3[Statut actuel],'Analyses Cléa'!A33,Tableau3[Mois],'Analyses Cléa'!$H$7,Tableau3[Négo],paramètres!$B$5) -> 0 | I33: =COUNTIFS(Tableau3[Statut actuel],'Analyses Cléa'!A33,Tableau3[Mois],'Analyses Cléa'!$I$7,Tableau3[Négo],paramètres!$B$5) -> 0 | J33: =COUNTIFS(Tableau3[Statut actuel],'Analyses Cléa'!A33,Tableau3[Mois],'Analyses Cléa'!$J$7,Tableau3[Négo],paramètres!$B$5) -> 0 | K33: =COUNTIFS(Tableau3[Statut actuel],'Analyses Cléa'!A33,Tableau3[Mois],'Analyses Cléa'!$K$7,Tableau3[Négo],paramètres!$B$5) -> 0 | L33: =COUNTIFS(Tableau3[Statut actuel],'Analyses Cléa'!A33,Tableau3[Mois],'Analyses Cléa'!$L$7,Tableau3[Négo],paramètres!$B$5) -> 0 | M33: =COUNTIFS(Tableau3[Statut actuel],'Analyses Cléa'!A33,Tableau3[Mois],'Analyses Cléa'!$M$7,Tableau3[Négo],paramètres!$B$5) -> 0 | N33: 0
A34: =IF(ISBLANK(paramètres!C15),"",paramètres!C15) -> Sans Suite | B34: =COUNTIFS(Tableau3[Statut actuel],'Analyses Cléa'!A34,Tableau3[Mois],'Analyses Cléa'!$B$7,Tableau3[Négo],paramètres!$B$5) -> 0 | C34: =COUNTIFS(Tableau3[Statut actuel],'Analyses Cléa'!A34,Tableau3[Mois],'Analyses Cléa'!$C$7,Tableau3[Négo],paramètres!$B$5) -> 0 | D34: =COUNTIFS(Tableau3[Statut actuel],'Analyses Cléa'!A34,Tableau3[Mois],'Analyses Cléa'!$D$7,Tableau3[Négo],paramètres!$B$5) -> 0 | E34: =COUNTIFS(Tableau3[Statut actuel],'Analyses Cléa'!A34,Tableau3[Mois],'Analyses Cléa'!$E$7,Tableau3[Négo],paramètres!$B$5) -> 0 | F34: =COUNTIFS(Tableau3[Statut actuel],'Analyses Cléa'!A34,Tableau3[Mois],'Analyses Cléa'!$F$7,Tableau3[Négo],paramètres!$B$5) -> 0 | G34: =COUNTIFS(Tableau3[Statut actuel],'Analyses Cléa'!A34,Tableau3[Mois],'Analyses Cléa'!$G$7,Tableau3[Négo],paramètres!$B$5) -> 0 | H34: =COUNTIFS(Tableau3[Statut actuel],'Analyses Cléa'!A34,Tableau3[Mois],'Analyses Cléa'!$H$7,Tableau3[Négo],paramètres!$B$5) -> 0 | I34: =COUNTIFS(Tableau3[Statut actuel],'Analyses Cléa'!A34,Tableau3[Mois],'Analyses Cléa'!$I$7,Tableau3[Négo],paramètres!$B$5) -> 0 | J34: =COUNTIFS(Tableau3[Statut actuel],'Analyses Cléa'!A34,Tableau3[Mois],'Analyses Cléa'!$J$7,Tableau3[Négo],paramètres!$B$5) -> 0 | K34: =COUNTIFS(Tableau3[Statut actuel],'Analyses Cléa'!A34,Tableau3[Mois],'Analyses Cléa'!$K$7,Tableau3[Négo],paramètres!$B$5) -> 0 | L34: =COUNTIFS(Tableau3[Statut actuel],'Analyses Cléa'!A34,Tableau3[Mois],'Analyses Cléa'!$L$7,Tableau3[Négo],paramètres!$B$5) -> 0 | M34: =COUNTIFS(Tableau3[Statut actuel],'Analyses Cléa'!A34,Tableau3[Mois],'Analyses Cléa'!$M$7,Tableau3[Négo],paramètres!$B$5) -> 0 | N34: 0
A35: =IF(ISBLANK(paramètres!C16),"",paramètres!C16) -> Mandat | B35: =COUNTIFS(Tableau3[Statut actuel],'Analyses Cléa'!A35,Tableau3[Mois],'Analyses Cléa'!$B$7,Tableau3[Négo],paramètres!$B$5) -> 0 | C35: =COUNTIFS(Tableau3[Statut actuel],'Analyses Cléa'!A35,Tableau3[Mois],'Analyses Cléa'!$C$7,Tableau3[Négo],paramètres!$B$5) -> 1 | D35: =COUNTIFS(Tableau3[Statut actuel],'Analyses Cléa'!A35,Tableau3[Mois],'Analyses Cléa'!$D$7,Tableau3[Négo],paramètres!$B$5) -> 0 | E35: =COUNTIFS(Tableau3[Statut actuel],'Analyses Cléa'!A35,Tableau3[Mois],'Analyses Cléa'!$E$7,Tableau3[Négo],paramètres!$B$5) -> 0 | F35: =COUNTIFS(Tableau3[Statut actuel],'Analyses Cléa'!A35,Tableau3[Mois],'Analyses Cléa'!$F$7,Tableau3[Négo],paramètres!$B$5) -> 0 | G35: =COUNTIFS(Tableau3[Statut actuel],'Analyses Cléa'!A35,Tableau3[Mois],'Analyses Cléa'!$G$7,Tableau3[Négo],paramètres!$B$5) -> 0 | H35: =COUNTIFS(Tableau3[Statut actuel],'Analyses Cléa'!A35,Tableau3[Mois],'Analyses Cléa'!$H$7,Tableau3[Négo],paramètres!$B$5) -> 0 | I35: =COUNTIFS(Tableau3[Statut actuel],'Analyses Cléa'!A35,Tableau3[Mois],'Analyses Cléa'!$I$7,Tableau3[Négo],paramètres!$B$5) -> 0 | J35: =COUNTIFS(Tableau3[Statut actuel],'Analyses Cléa'!A35,Tableau3[Mois],'Analyses Cléa'!$J$7,Tableau3[Négo],paramètres!$B$5) -> 0 | K35: =COUNTIFS(Tableau3[Statut actuel],'Analyses Cléa'!A35,Tableau3[Mois],'Analyses Cléa'!$K$7,Tableau3[Négo],paramètres!$B$5) -> 0 | L35: =COUNTIFS(Tableau3[Statut actuel],'Analyses Cléa'!A35,Tableau3[Mois],'Analyses Cléa'!$L$7,Tableau3[Négo],paramètres!$B$5) -> 0 | M35: =COUNTIFS(Tableau3[Statut actuel],'Analyses Cléa'!A35,Tableau3[Mois],'Analyses Cléa'!$M$7,Tableau3[Négo],paramètres!$B$5) -> 0 | N35: 1
A37: TOTAL | B37: =SUM(B24:B35) -> 0 | C37: =SUM(C24:C35) -> 2 | D37: 0 | E37: 0 | F37: 0 | G37: 0 | H37: 0 | I37: 0 | J37: 0 | K37: 0 | L37: 0 | M37: 2 | N37: =SUM(N24:N35) -> 4
A39: Chiffre d'affaires du commercial
B40: JANVIER | C40: FEVRIER | D40: MARS | E40: AVRIL | F40: MAI | G40: JUIN | H40: JUILLET | I40: AOÛT | J40: SEPTEMBRE | K40: OCTOBRE | L40: NOVEMBRE | M40: DÉCEMBRE | N40: TOTAL
A42: COMPROMIS EN COURS
A43: Montant
A44: ACTES
A45: Montant
A46: VENTES ANNULEES
A47: Montant annulé
A49: Somme CA
A50: Rappel sur objectif (mensualisé)
A52: Cumul CA
A53: Cumul objectif
B57: Rappel objectif annuel du commercial:
B59: Pourcentage de l'objectif:

Sheet Analyses Marc
A1: Analyses par commercial
F4: Sélectionnez nom du négociateur: | G4: Marc
A6: Analyse de l'origine des prospects par commercial
A7: Origine | B7: JANVIER | C7: FÉVRIER | D7: MARS | E7: AVRIL | F7: MAI | G7: JUIN | H7: JUILLET | I7: AOÛT | J7: SEPTEMBRE | K7: OCTOBRE | L7: NOVEMBRE | M7: DÉCEMBRE | N7: TOTAL | O7: Pourcentage
A8: =IF(ISBLANK(paramètres!A5),"",paramètres!A5) -> Appel direct | B8: =COUNTIFS(Tableau3[Source du prospect],'Analyses Marc'!A8,Tableau3[Mois],'Analyses Marc'!$B$7,Tableau3[Négo],paramètres!$B$5) -> 0 | C8: =COUNTIFS(Tableau3[Source du prospect],'Analyses Marc'!A8,Tableau3[Mois],'Analyses Marc'!$C$7,Tableau3[Négo],paramètres!$B$5) -> 0 | D8: =COUNTIFS(Tableau3[Source du prospect],'Analyses Marc'!A8,Tableau3[Mois],'Analyses Marc'!$D$7,Tableau3[Négo],paramètres!$B$5) -> 0 | E8: =COUNTIFS(Tableau3[Source du prospect],'Analyses Marc'!A8,Tableau3[Mois],'Analyses Marc'!$E$7,Tableau3[Négo],paramètres!$B$5) -> 0 | F8: =COUNTIFS(Tableau3[Source du prospect],'Analyses Marc'!A8,Tableau3[Mois],'Analyses Marc'!$F$7,Tableau3[Négo],paramètres!$B$5) -> 0 | G8: =COUNTIFS(Tableau3[Source du prospect],'Analyses Marc'!A8,Tableau3[Mois],'Analyses Marc'!$G$7,Tableau3[Négo],paramètres!$B$5) -> 0 | H8: =COUNTIFS(Tableau3[Source du prospect],'Analyses Marc'!A8,Tableau3[Mois],'Analyses Marc'!$H$7,Tableau3[Négo],paramètres!$B$5) -> 0 | I8: =COUNTIFS(Tableau3[Source du prospect],'Analyses Marc'!A8,Tableau3[Mois],'Analyses Marc'!$I$7,Tableau3[Négo],paramètres!$B$5) -> 0 | J8: =COUNTIFS(Tableau3[Source du prospect],'Analyses Marc'!A8,Tableau3[Mois],'Analyses Marc'!$J$7,Tableau3[Négo],paramètres!$B$5) -> 0 | K8: =COUNTIFS(Tableau3[Source du prospect],'Analyses Marc'!A8,Tableau3[Mois],'Analyses Marc'!$K$7,Tableau3[Négo],paramètres!$B$5) -> 0 | L8: =COUNTIFS(Tableau3[Source du prospect],'Analyses Marc'!A8,Tableau3[Mois],'Analyses Marc'!$L$7,Tableau3[Négo],paramètres!$B$5) -> 0 | M8: =COUNTIFS(Tableau3[Source du prospect],'Analyses Marc'!A8,Tableau3[Mois],'Analyses Marc'!$M$7,Tableau3[Négo],paramètres!$B$5) -> 1 | N8: =SUM(B8:M8) -> 1
A9: =IF(ISBLANK(paramètres!A6),"",paramètres!A6) -> e-mail | B9: =COUNTIFS(Tableau3[Source du prospect],'Analyses Marc'!A9,Tableau3[Mois],'Analyses Marc'!$B$7,Tableau3[Négo],paramètres!$B$5) -> 0 | C9: =COUNTIFS(Tableau3[Source du prospect],'Analyses Marc'!A9,Tableau3[Mois],'Analyses Marc'!$C$7,Tableau3[Négo],paramètres!$B$5) -> 1 | D9: =COUNTIFS(Tableau3[Source du prospect],'Analyses Marc'!A9,Tableau3[Mois],'Analyses Marc'!$D$7,Tableau3[Négo],paramètres!$B$5) -> 0 | E9: =COUNTIFS(Tableau3[Source du prospect],'Analyses Marc'!A9,Tableau3[Mois],'Analyses Marc'!$E$7,Tableau3[Négo],paramètres!$B$5) -> 0 | F9: =COUNTIFS(Tableau3[Source du prospect],'Analyses Marc'!A9,Tableau3[Mois],'Analyses Marc'!$F$7,Tableau3[Négo],paramètres!$B$5) -> 0 | G9: =COUNTIFS(Tableau3[Source du prospect],'Analyses Marc'!A9,Tableau3[Mois],'Analyses Marc'!$G$7,Tableau3[Négo],paramètres!$B$5) -> 0 | H9: =COUNTIFS(Tableau3[Source du prospect],'Analyses Marc'!A9,Tableau3[Mois],'Analyses Marc'!$H$7,Tableau3[Négo],paramètres!$B$5) -> 0 | I9: =COUNTIFS(Tableau3[Source du prospect],'Analyses Marc'!A9,Tableau3[Mois],'Analyses Marc'!$I$7,Tableau3[Négo],paramètres!$B$5) -> 0 | J9: =COUNTIFS(Tableau3[Source du prospect],'Analyses Marc'!A9,Tableau3[Mois],'Analyses Marc'!$J$7,Tableau3[Négo],paramètres!$B$5) -> 0 | K9: =COUNTIFS(Tableau3[Source du prospect],'Analyses Marc'!A9,Tableau3[Mois],'Analyses Marc'!$K$7,Tableau3[Négo],paramètres!$B$5) -> 0 | L9: =COUNTIFS(Tableau3[Source du prospect],'Analyses Marc'!A9,Tableau3[Mois],'Analyses Marc'!$L$7,Tableau3[Négo],paramètres!$B$5) -> 0 | M9: =COUNTIFS(Tableau3[Source du prospect],'Analyses Marc'!A9,Tableau3[Mois],'Analyses Marc'!$M$7,Tableau3[Négo],paramètres!$B$5) -> 0 | N9: =SUM(B9:M9) -> 1
A10: =IF(ISBLANK(paramètres!A7),"",paramètres!A7) -> Prospection | B10: =COUNTIFS(Tableau3[Source du prospect],'Analyses Marc'!A10,Tableau3[Mois],'Analyses Marc'!$B$7,Tableau3[Négo],paramètres!$B$5) -> 0 | C10: =COUNTIFS(Tableau3[Source du prospect],'Analyses Marc'!A10,Tableau3[Mois],'Analyses Marc'!$C$7,Tableau3[Négo],paramètres!$B$5) -> 0 | D10: =COUNTIFS(Tableau3[Source du prospect],'Analyses Marc'!A10,Tableau3[Mois],'Analyses Marc'!$D$7,Tableau3[Négo],paramètres!$B$5) -> 0 | E10: =COUNTIFS(Tableau3[Source du prospect],'Analyses Marc'!A10,Tableau3[Mois],'Analyses Marc'!$E$7,Tableau3[Négo],paramètres!$B$5) -> 0 | F10: =COUNTIFS(Tableau3[Source du prospect],'Analyses Marc'!A10,Tableau3[Mois],'Analyses Marc'!$F$7,Tableau3[Négo],paramètres!$B$5) -> 0 | G10: =COUNTIFS(Tableau3[Source du prospect],'Analyses Marc'!A10,Tableau3[Mois],'Analyses Marc'!$G$7,Tableau3[Négo],paramètres!$B$5) -> 0 | H10: =COUNTIFS(Tableau3[Source du prospect],'Analyses Marc'!A10,Tableau3[Mois],'Analyses Marc'!$H$7,Tableau3[Négo],paramètres!$B$5) -> 0 | I10: =COUNTIFS(Tableau3[Source du prospect],'Analyses Marc'!A10,Tableau3[Mois],'Analyses Marc'!$I$7,Tableau3[Négo],paramètres!$B$5) -> 0 | J10: =COUNTIFS(Tableau3[Source du prospect],'Analyses Marc'!A10,Tableau3[Mois],'Analyses Marc'!$J$7,Tableau3[Négo],paramètres!$B$5) -> 0 | K10: =COUNTIFS(Tableau3[Source du prospect],'Analyses Marc'!A10,Tableau3[Mois],'Analyses Marc'!$K$7,Tableau3[Négo],paramètres!$B$5) -> 0 | L10: =COUNTIFS(Tableau3[Source du prospect],'Analyses Marc'!A10,Tableau3[Mois],'Analyses Marc'!$L$7,Tableau3[Négo],paramètres!$B$5) -> 0 | M10: =COUNTIFS(Tableau3[Source du prospect],'Analyses Marc'!A10,Tableau3[Mois],'Analyses Marc'!$M$7,Tableau3[Négo],paramètres!$B$5) -> 1 | N10: 1
A11: =IF(ISBLANK(paramètres!A8),"",paramètres!A8) -> Site Internet | B11: =COUNTIFS(Tableau3[Source du prospect],'Analyses Marc'!A11,Tableau3[Mois],'Analyses Marc'!$B$7,Tableau3[Négo],paramètres!$B$5) -> 0 | C11: =COUNTIFS(Tableau3[Source du prospect],'Analyses Marc'!A11,Tableau3[Mois],'Analyses Marc'!$C$7,Tableau3[Négo],paramètres!$B$5) -> 1 | D11: =COUNTIFS(Tableau3[Source du prospect],'Analyses Marc'!A11,Tableau3[Mois],'Analyses Marc'!$D$7,Tableau3[Négo],paramètres!$B$5) -> 0 | E11: =COUNTIFS(Tableau3[Source du prospect],'Analyses Marc'!A11,Tableau3[Mois],'Analyses Marc'!$E$7,Tableau3[Négo],paramètres!$B$5) -> 0 | F11: =COUNTIFS(Tableau3[Source du prospect],'Analyses Marc'!A11,Tableau3[Mois],'Analyses Marc'!$F$7,Tableau3[Négo],paramètres!$B$5) -> 0 | G11: =COUNTIFS(Tableau3[Source du prospect],'Analyses Marc'!A11,Tableau3[Mois],'Analyses Marc'!$G$7,Tableau3[Négo],paramètres!$B$5) -> 0 | H11: =COUNTIFS(Tableau3[Source du prospect],'Analyses Marc'!A11,Tableau3[Mois],'Analyses Marc'!$H$7,Tableau3[Négo],paramètres!$B$5) -> 0 | I11: =COUNTIFS(Tableau3[Source du prospect],'Analyses Marc'!A11,Tableau3[Mois],'Analyses Marc'!$I$7,Tableau3[Négo],paramètres!$B$5) -> 0 | J11: =COUNTIFS(Tableau3[Source du prospect],'Analyses Marc'!A11,Tableau3[Mois],'Analyses Marc'!$J$7,Tableau3[Négo],paramètres!$B$5) -> 0 | K11: =COUNTIFS(Tableau3[Source du prospect],'Analyses Marc'!A11,Tableau3[Mois],'Analyses Marc'!$K$7,Tableau3[Négo],paramètres!$B$5) -> 0 | L11: =COUNTIFS(Tableau3[Source du prospect],'Analyses Marc'!A11,Tableau3[Mois],'Analyses Marc'!$L$7,Tableau3[Négo],paramètres!$B$5) -> 0 | M11: =COUNTIFS(Tableau3[Source du prospect],'Analyses Marc'!A11,Tableau3[Mois],'Analyses Marc'!$M$7,Tableau3[Négo],paramètres!$B$5) -> 0 | N11: 1
A12: =IF(ISBLANK(paramètres!A9),"",paramètres!A9) -> Appel agence | B12: =COUNTIFS(Tableau3[Source du prospect],'Analyses Marc'!A12,Tableau3[Mois],'Analyses Marc'!$B$7,Tableau3[Négo],paramètres!$B$5) -> 0 | C12: =COUNTIFS(Tableau3[Source du prospect],'Analyses Marc'!A12,Tableau3[Mois],'Analyses Marc'!$C$7,Tableau3[Négo],paramètres!$B$5) -> 0 | D12: =COUNTIFS(Tableau3[Source du prospect],'Analyses Marc'!A12,Tableau3[Mois],'Analyses Marc'!$D$7,Tableau3[Négo],paramètres!$B$5) -> 0 | E12: =COUNTIFS(Tableau3[Source du prospect],'Analyses Marc'!A12,Tableau3[Mois],'Analyses Marc'!$E$7,Tableau3[Négo],paramètres!$B$5) -> 0 | F12: =COUNTIFS(Tableau3[Source du prospect],'Analyses Marc'!A12,Tableau3[Mois],'Analyses Marc'!$F$7,Tableau3[Négo],paramètres!$B$5) -> 0 | G12: =COUNTIFS(Tableau3[Source du prospect],'Analyses Marc'!A12,Tableau3[Mois],'Analyses Marc'!$G$7,Tableau3[Négo],paramètres!$B$5) -> 0 | H12: =COUNTIFS(Tableau3[Source du prospect],'Analyses Marc'!A12,Tableau3[Mois],'Analyses Marc'!$H$7,Tableau3[Négo],paramètres!$B$5) -> 0 | I12: =COUNTIFS(Tableau3[Source du prospect],'Analyses Marc'!A12,Tableau3[Mois],'Analyses Marc'!$I$7,Tableau3[Négo],paramètres!$B$5) -> 0 | J12: =COUNTIFS(Tableau3[Source du prospect],'Analyses Marc'!A12,Tableau3[Mois],'Analyses Marc'!$J$7,Tableau3[Négo],paramètres!$B$5) -> 0 | K12: =COUNTIFS(Tableau3[Source du prospect],'Analyses Marc'!A12,Tableau3[Mois],'Analyses Marc'!$K$7,Tableau3[Négo],paramètres!$B$5) -> 0 | L12: =COUNTIFS(Tableau3[Source du prospect],'Analyses Marc'!A12,Tableau3[Mois],'Analyses Marc'!$L$7,Tableau3[Négo],paramètres!$B$5) -> 0 | M12: =COUNTIFS(Tableau3[Source du prospect],'Analyses Marc'!A12,Tableau3[Mois],'Analyses Marc'!$M$7,Tableau3[Négo],paramètres!$B$5) -> 0 | N12: 0
A13: =IF(ISBLANK(paramètres!A10),"",paramètres!A10) ->  | N13: 0
A14: =IF(ISBLANK(paramètres!A11),"",paramètres!A11) ->  | N14: 0
A15: =IF(ISBLANK(paramètres!A12),"",paramètres!A12) ->  | N15: =SUM(B15:M15) -> 0
A16: =IF(ISBLANK(paramètres!A13),"",paramètres!A13) ->  | N16: 0
A17: =IF(ISBLANK(paramètres!A14),"",paramètres!A14) ->  | N17: 0
A18: =IF(ISBLANK(paramètres!A15),"",paramètres!A15) ->  | N18: 0
A19: =IF(ISBLANK(paramètres!A16),"",paramètres!A16) ->  | N19: 0
A20: TOTAL | B20: =SUM(B8:B19) -> 0 | C20: =SUM(C8:C19) -> 2 | D20: 0 | E20: 0 | F20: 0 | G20: 0 | H20: 0 | I20: 0 | J20: 0 | K20: 0 | L20: 0 | M20: 2 | N20: 4 | O20: 0
A22: Statut actuel des dossiers du négociateur
A23: Statut | B23: JANVIER | C23: FÉVRIER | D23: MARS | E23: AVRIL | F23: MAI | G23: JUIN | H23: JUILLET | I23: AOÛT | J23: SEPTEMBRE | K23: OCTOBRE | L23: NOVEMBRE | M23: DÉCEMBRE | N23: TOTAL | O23: Pourcentage
A24: =IF(ISBLANK(paramètres!C5),"",paramètres!C5) -> TEL, SMS | B24: =COUNTIFS(Tableau3[Statut actuel],'Analyses Marc'!A24,Tableau3[Mois],'Analyses Marc'!$B$7,Tableau3[Négo],paramètres!$B$5) -> 0 | C24: =COUNTIFS(Tableau3[Statut actuel],'Analyses Marc'!A24,Tableau3[Mois],'Analyses Marc'!$C$7,Tableau3[Négo],paramètres!$B$5) -> 0 | D24: =COUNTIFS(Tableau3[Statut actuel],'Analyses Marc'!A24,Tableau3[Mois],'Analyses Marc'!$D$7,Tableau3[Négo],paramètres!$B$5) -> 0 | E24: =COUNTIFS(Tableau3[Statut actuel],'Analyses Marc'!A24,Tableau3[Mois],'Analyses Marc'!$E$7,Tableau3[Négo],paramètres!$B$5) -> 0 | F24: =COUNTIFS(Tableau3[Statut actuel],'Analyses Marc'!A24,Tableau3[Mois],'Analyses Marc'!$F$7,Tableau3[Négo],paramètres!$B$5) -> 0 | G24: =COUNTIFS(Tableau3[Statut actuel],'Analyses Marc'!A24,Tableau3[Mois],'Analyses Marc'!$G$7,Tableau3[Négo],paramètres!$B$5) -> 0 | H24: =COUNTIFS(Tableau3[Statut actuel],'Analyses Marc'!A24,Tableau3[Mois],'Analyses Marc'!$H$7,Tableau3[Négo],paramètres!$B$5) -> 0 | I24: =COUNTIFS(Tableau3[Statut actuel],'Analyses Marc'!A24,Tableau3[Mois],'Analyses Marc'!$I$7,Tableau3[Négo],paramètres!$B$5) -> 0 | J24: =COUNTIFS(Tableau3[Statut actuel],'Analyses Marc'!A24,Tableau3[Mois],'Analyses Marc'!$J$7,Tableau3[Négo],paramètres!$B$5) -> 0 | K24: =COUNTIFS(Tableau3[Statut actuel],'Analyses Marc'!A24,Tableau3[Mois],'Analyses Marc'!$K$7,Tableau3[Négo],paramètres!$B$5) -> 0 | L24: =COUNTIFS(Tableau3[Statut actuel],'Analyses Marc'!A24,Tableau3[Mois],'Analyses Marc'!$L$7,Tableau3[Négo],paramètres!$B$5) -> 0 | M24: =COUNTIFS(Tableau3[Statut actuel],'Analyses Marc'!A24,Tableau3[Mois],'Analyses Marc'!$M$7,Tableau3[Négo],paramètres!$B$5) -> 0 | N24: =SUM(B24:M24) -> 0
A25: =IF(ISBLANK(paramètres!C6),"",paramètres!C6) -> Porte à porte | B25: =COUNTIFS(Tableau3[Statut actuel],'Analyses Marc'!A25,Tableau3[Mois],'Analyses Marc'!$B$7,Tableau3[Négo],paramètres!$B$5) -> 0 | C25: =COUNTIFS(Tableau3[Statut actuel],'Analyses Marc'!A25,Tableau3[Mois],'Analyses Marc'!$C$7,Tableau3[Négo],paramètres!$B$5) -> 0 | D25: =COUNTIFS(Tableau3[Statut actuel],'Analyses Marc'!A25,Tableau3[Mois],'Analyses Marc'!$D$7,Tableau3[Négo],paramètres!$B$5) -> 0 | E25: =COUNTIFS(Tableau3[Statut actuel],'Analyses Marc'!A25,Tableau3[Mois],'Analyses Marc'!$E$7,Tableau3[Négo],paramètres!$B$5) -> 0 | F25: =COUNTIFS(Tableau3[Statut actuel],'Analyses Marc'!A25,Tableau3[Mois],'Analyses Marc'!$F$7,Tableau3[Négo],paramètres!$B$5) -> 0 | G25: =COUNTIFS(Tableau3[Statut actuel],'Analyses Marc'!A25,Tableau3[Mois],'Analyses Marc'!$G$7,Tableau3[Négo],paramètres!$B$5) -> 0 | H25: =COUNTIFS(Tableau3[Statut actuel],'Analyses Marc'!A25,Tableau3[Mois],'Analyses Marc'!$H$7,Tableau3[Négo],paramètres!$B$5) -> 0 | I25: =COUNTIFS(Tableau3[Statut actuel],'Analyses Marc'!A25,Tableau3[Mois],'Analyses Marc'!$I$7,Tableau3[Négo],paramètres!$B$5) -> 0 | J25: =COUNTIFS(Tableau3[Statut actuel],'Analyses Marc'!A25,Tableau3[Mois],'Analyses Marc'!$J$7,Tableau3[Négo],paramètres!$B$5) -> 0 | K25: =COUNTIFS(Tableau3[Statut actuel],'Analyses Marc'!A25,Tableau3[Mois],'Analyses Marc'!$K$7,Tableau3[Négo],paramètres!$B$5) -> 0 | L25: =COUNTIFS(Tableau3[Statut actuel],'Analyses Marc'!A25,Tableau3[Mois],'Analyses Marc'!$L$7,Tableau3[Négo],paramètres!$B$5) -> 0 | M25: =COUNTIFS(Tableau3[Statut actuel],'Analyses Marc'!A25,Tableau3[Mois],'Analyses Marc'!$M$7,Tableau3[Négo],paramètres!$B$5) -> 0 | N25: =SUM(B25:M25) -> 0
A26: =IF(ISBLANK(paramètres!C7),"",paramètres!C7) -> R1 | B26: =COUNTIFS(Tableau3[Statut actuel],'Analyses Marc'!A26,Tableau3[Mois],'Analyses Marc'!$B$7,Tableau3[Négo],paramètres!$B$5) -> 0 | C26: =COUNTIFS(Tableau3[Statut actuel],'Analyses Marc'!A26,Tableau3[Mois],'Analyses Marc'!$C$7,Tableau3[Négo],paramètres!$B$5) -> 0 | D26: =COUNTIFS(Tableau3[Statut actuel],'Analyses Marc'!A26,Tableau3[Mois],'Analyses Marc'!$D$7,Tableau3[Négo],paramètres!$B$5) -> 0 | E26: =COUNTIFS(Tableau3[Statut actuel],'Analyses Marc'!A26,Tableau3[Mois],'Analyses Marc'!$E$7,Tableau3[Négo],paramètres!$B$5) -> 0 | F26: =COUNTIFS(Tableau3[Statut actuel],'Analyses Marc'!A26,Tableau3[Mois],'Analyses Marc'!$F$7,Tableau3[Négo],paramètres!$B$5) -> 0 | G26: =COUNTIFS(Tableau3[Statut actuel],'Analyses Marc'!A26,Tableau3[Mois],'Analyses Marc'!$G$7,Tableau3[Négo],paramètres!$B$5) -> 0 | H26: =COUNTIFS(Tableau3[Statut actuel],'Analyses Marc'!A26,Tableau3[Mois],'Analyses Marc'!$H$7,Tableau3[Négo],paramètres!$B$5) -> 0 | I26: =COUNTIFS(Tableau3[Statut actuel],'Analyses Marc'!A26,Tableau3[Mois],'Analyses Marc'!$I$7,Tableau3[Négo],paramètres!$B$5) -> 0 | J26: =COUNTIFS(Tableau3[Statut actuel],'Analyses Marc'!A26,Tableau3[Mois],'Analyses Marc'!$J$7,Tableau3[Négo],paramètres!$B$5) -> 0 | K26: =COUNTIFS(Tableau3[Statut actuel],'Analyses Marc'!A26,Tableau3[Mois],'Analyses Marc'!$K$7,Tableau3[Négo],paramètres!$B$5) -> 0 | L26: =COUNTIFS(Tableau3[Statut actuel],'Analyses Marc'!A26,Tableau3[Mois],'Analyses Marc'!$L$7,Tableau3[Négo],paramètres!$B$5) -> 0 | M26: =COUNTIFS(Tableau3[Statut actuel],'Analyses Marc'!A26,Tableau3[Mois],'Analyses Marc'!$M$7,Tableau3[Négo],paramètres!$B$5) -> 0 | N26: 0
A27: =IF(ISBLANK(paramètres!C8),"",paramètres!C8) -> R2 | B27: =COUNTIFS(Tableau3[Statut actuel],'Analyses Marc'!A27,Tableau3[Mois],'Analyses Marc'!$B$7,Tableau3[Négo],paramètres!$B$5) -> 0 | C27: =COUNTIFS(Tableau3[Statut actuel],'Analyses Marc'!A27,Tableau3[Mois],'Analyses Marc'!$C$7,Tableau3[Négo],paramètres!$B$5) -> 0 | D27: =COUNTIFS(Tableau3[Statut actuel],'Analyses Marc'!A27,Tableau3[Mois],'Analyses Marc'!$D$7,Tableau3[Négo],paramètres!$B$5) -> 0 | E27: =COUNTIFS(Tableau3[Statut actuel],'Analyses Marc'!A27,Tableau3[Mois],'Analyses Marc'!$E$7,Tableau3[Négo],paramètres!$B$5) -> 0 | F27: =COUNTIFS(Tableau3[Statut actuel],'Analyses Marc'!A27,Tableau3[Mois],'Analyses Marc'!$F$7,Tableau3[Négo],paramètres!$B$5) -> 0 | G27: =COUNTIFS(Tableau3[Statut actuel],'Analyses Marc'!A27,Tableau3[Mois],'Analyses Marc'!$G$7,Tableau3[Négo],paramètres!$B$5) -> 0 | H27: =COUNTIFS(Tableau3[Statut actuel],'Analyses Marc'!A27,Tableau3[Mois],'Analyses Marc'!$H$7,Tableau3[Négo],paramètres!$B$5) -> 0 | I27: =COUNTIFS(Tableau3[Statut actuel],'Analyses Marc'!A27,Tableau3[Mois],'Analyses Marc'!$I$7,Tableau3[Négo],paramètres!$B$5) -> 0 | J27: =COUNTIFS(Tableau3[Statut actuel],'Analyses Marc'!A27,Tableau3[Mois],'Analyses Marc'!$J$7,Tableau3[Négo],paramètres!$B$5) -> 0 | K27: =COUNTIFS(Tableau3[Statut actuel],'Analyses Marc'!A27,Tableau3[Mois],'Analyses Marc'!$K$7,Tableau3[Négo],paramètres!$B$5) -> 0 | L27: =COUNTIFS(Tableau3[Statut actuel],'Analyses Marc'!A27,Tableau3[Mois],'Analyses Marc'!$L$7,Tableau3[Négo],paramètres!$B$5) -> 0 | M27: =COUNTIFS(Tableau3[Statut actuel],'Analyses Marc'!A27,Tableau3[Mois],'Analyses Marc'!$M$7,Tableau3[Négo],paramètres!$B$5) -> 0 | N27: 0
A28: =IF(ISBLANK(paramètres!C9),"",paramètres!C9) -> Estimation faite | B28: =COUNTIFS(Tableau3[Statut actuel],'Analyses Marc'!A28,Tableau3[Mois],'Analyses Marc'!$B$7,Tableau3[Négo],paramètres!$B$5) -> 0 | C28: =COUNTIFS(Tableau3[Statut actuel],'Analyses Marc'!A28,Tableau3[Mois],'Analyses Marc'!$C$7,Tableau3[Négo],paramètres!$B$5) -> 0 | D28: =COUNTIFS(Tableau3[Statut actuel],'Analyses Marc'!A28,Tableau3[Mois],'Analyses Marc'!$D$7,Tableau3[Négo],paramètres!$B$5) -> 0 | E28: =COUNTIFS(Tableau3[Statut actuel],'Analyses Marc'!A28,Tableau3[Mois],'Analyses Marc'!$E$7,Tableau3[Négo],paramètres!$B$5) -> 0 | F28: =COUNTIFS(Tableau3[Statut actuel],'Analyses Marc'!A28,Tableau3[Mois],'Analyses Marc'!$F$7,Tableau3[Négo],paramètres!$B$5) -> 0 | G28: =COUNTIFS(Tableau3[Statut actuel],'Analyses Marc'!A28,Tableau3[Mois],'Analyses Marc'!$G$7,Tableau3[Négo],paramètres!$B$5) -> 0 | H28: =COUNTIFS(Tableau3[Statut actuel],'Analyses Marc'!A28,Tableau3[Mois],'Analyses Marc'!$H$7,Tableau3[Négo],paramètres!$B$5) -> 0 | I28: =COUNTIFS(Tableau3[Statut actuel],'Analyses Marc'!A28,Tableau3[Mois],'Analyses Marc'!$I$7,Tableau3[Négo],paramètres!$B$5) -> 0 | J28: =COUNTIFS(Tableau3[Statut actuel],'Analyses Marc'!A28,Tableau3[Mois],'Analyses Marc'!$J$7,Tableau3[Négo],paramètres!$B$5) -> 0 | K28: =COUNTIFS(Tableau3[Statut actuel],'Analyses Marc'!A28,Tableau3[Mois],'Analyses Marc'!$K$7,Tableau3[Négo],paramètres!$B$5) -> 0 | L28: =COUNTIFS(Tableau3[Statut actuel],'Analyses Marc'!A28,Tableau3[Mois],'Analyses Marc'!$L$7,Tableau3[Négo],paramètres!$B$5) -> 0 | M28: =COUNTIFS(Tableau3[Statut actuel],'Analyses Marc'!A28,Tableau3[Mois],'Analyses Marc'!$M$7,Tableau3[Négo],paramètres!$B$5) -> 0 | N28: 0
A29: =IF(ISBLANK(paramètres!C10),"",paramètres!C10) -> Sous compromis | B29: =COUNTIFS(Tableau3[Statut actuel],'Analyses Marc'!A29,Tableau3[Mois],'Analyses Marc'!$B$7,Tableau3[Négo],paramètres!$B$5) -> 0 | C29: =COUNTIFS(Tableau3[Statut actuel],'Analyses Marc'!A29,Tableau3[Mois],'Analyses Marc'!$C$7,Tableau3[Négo],paramètres!$B$5) -> 0 | D29: =COUNTIFS(Tableau3[Statut actuel],'Analyses Marc'!A29,Tableau3[Mois],'Analyses Marc'!$D$7,Tableau3[Négo],paramètres!$B$5) -> 0 | E29: =COUNTIFS(Tableau3[Statut actuel],'Analyses Marc'!A29,Tableau3[Mois],'Analyses Marc'!$E$7,Tableau3[Négo],paramètres!$B$5) -> 0 | F29: =COUNTIFS(Tableau3[Statut actuel],'Analyses Marc'!A29,Tableau3[Mois],'Analyses Marc'!$F$7,Tableau3[Négo],paramètres!$B$5) -> 0 | G29: =COUNTIFS(Tableau3[Statut actuel],'Analyses Marc'!A29,Tableau3[Mois],'Analyses Marc'!$G$7,Tableau3[Négo],paramètres!$B$5) -> 0 | H29: =COUNTIFS(Tableau3[Statut actuel],'Analyses Marc'!A29,Tableau3[Mois],'Analyses Marc'!$H$7,Tableau3[Négo],paramètres!$B$5) -> 0 | I29: =COUNTIFS(Tableau3[Statut actuel],'Analyses Marc'!A29,Tableau3[Mois],'Analyses Marc'!$I$7,Tableau3[Négo],paramètres!$B$5) -> 0 | J29: =COUNTIFS(Tableau3[Statut actuel],'Analyses Marc'!A29,Tableau3[Mois],'Analyses Marc'!$J$7,Tableau3[Négo],paramètres!$B$5) -> 0 | K29: =COUNTIFS(Tableau3[Statut actuel],'Analyses Marc'!A29,Tableau3[Mois],'Analyses Marc'!$K$7,Tableau3[Négo],paramètres!$B$5) -> 0 | L29: =COUNTIFS(Tableau3[Statut actuel],'Analyses Marc'!A29,Tableau3[Mois],'Analyses Marc'!$L$7,Tableau3[Négo],paramètres!$B$5) -> 0 | M29: =COUNTIFS(Tableau3[Statut actuel],'Analyses Marc'!A29,Tableau3[Mois],'Analyses Marc'!$M$7,Tableau3[Négo],paramètres!$B$5) -> 1 | N29: 1
A30: =IF(ISBLANK(paramètres!C11),"",paramètres!C11) -> Vendu | B30: =COUNTIFS(Tableau3[Statut actuel],'Analyses Marc'!A30,Tableau3[Mois],'Analyses Marc'!$B$7,Tableau3[Négo],paramètres!$B$5) -> 0 | C30: =COUNTIFS(Tableau3[Statut actuel],'Analyses Marc'!A30,Tableau3[Mois],'Analyses Marc'!$C$7,Tableau3[Négo],paramètres!$B$5) -> 0 | D30: =COUNTIFS(Tableau3[Statut actuel],'Analyses Marc'!A30,Tableau3[Mois],'Analyses Marc'!$D$7,Tableau3[Négo],paramètres!$B$5) -> 0 | E30: =COUNTIFS(Tableau3[Statut actuel],'Analyses Marc'!A30,Tableau3[Mois],'Analyses Marc'!$E$7,Tableau3[Négo],paramètres!$B$5) -> 0 | F30: =COUNTIFS(Tableau3[Statut actuel],'Analyses Marc'!A30,Tableau3[Mois],'Analyses Marc'!$F$7,Tableau3[Négo],paramètres!$B$5) -> 0 | G30: =COUNTIFS(Tableau3[Statut actuel],'Analyses Marc'!A30,Tableau3[Mois],'Analyses Marc'!$G$7,Tableau3[Négo],paramètres!$B$5) -> 0 | H30: =COUNTIFS(Tableau3[Statut actuel],'Analyses Marc'!A30,Tableau3[Mois],'Analyses Marc'!$H$7,Tableau3[Négo],paramètres!$B$5) -> 0 | I30: =COUNTIFS(Tableau3[Statut actuel],'Analyses Marc'!A30,Tableau3[Mois],'Analyses Marc'!$I$7,Tableau3[Négo],paramètres!$B$5) -> 0 | J30: =COUNTIFS(Tableau3[Statut actuel],'Analyses Marc'!A30,Tableau3[Mois],'Analyses Marc'!$J$7,Tableau3[Négo],paramètres!$B$5) -> 0 | K30: =COUNTIFS(Tableau3[Statut actuel],'Analyses Marc'!A30,Tableau3[Mois],'Analyses Marc'!$K$7,Tableau3[Négo],paramètres!$B$5) -> 0 | L30: =COUNTIFS(Tableau3[Statut actuel],'Analyses Marc'!A30,Tableau3[Mois],'Analyses Marc'!$L$7,Tableau3[Négo],paramètres!$B$5) -> 0 | M30: =COUNTIFS(Tableau3[Statut actuel],'Analyses Marc'!A30,Tableau3[Mois],'Analyses Marc'!$M$7,Tableau3[Négo],paramètres!$B$5) -> 0 | N30: 0
A31: =IF(ISBLANK(paramètres!C12),"",paramètres!C12) -> Vente annulée | B31: =COUNTIFS(Tableau3[Statut actuel],'Analyses Marc'!A31,Tableau3[Mois],'Analyses Marc'!$B$7,Tableau3[Négo],paramètres!$B$5) -> 0 | C31: =COUNTIFS(Tableau3[Statut actuel],'Analyses Marc'!A31,Tableau3[Mois],'Analyses Marc'!$C$7,Tableau3[Négo],paramètres!$B$5) -> 0 | D31: =COUNTIFS(Tableau3[Statut actuel],'Analyses Marc'!A31,Tableau3[Mois],'Analyses Marc'!$D$7,Tableau3[Négo],paramètres!$B$5) -> 0 | E31: =COUNTIFS(Tableau3[Statut actuel],'Analyses Marc'!A31,Tableau3[Mois],'Analyses Marc'!$E$7,Tableau3[Négo],paramètres!$B$5) -> 0 | F31: =COUNTIFS(Tableau3[Statut actuel],'Analyses Marc'!A31,Tableau3[Mois],'Analyses Marc'!$F$7,Tableau3[Négo],paramètres!$B$5) -> 0 | G31: =COUNTIFS(Tableau3[Statut actuel],'Analyses Marc'!A31,Tableau3[Mois],'Analyses Marc'!$G$7,Tableau3[Négo],paramètres!$B$5) -> 0 | H31: =COUNTIFS(Tableau3[Statut actuel],'Analyses Marc'!A31,Tableau3[Mois],'Analyses Marc'!$H$7,Tableau3[Négo],paramètres!$B$5) -> 0 | I31: =COUNTIFS(Tableau3[Statut actuel],'Analyses Marc'!A31,Tableau3[Mois],'Analyses Marc'!$I$7,Tableau3[Négo],paramètres!$B$5) -> 0 | J31: =COUNTIFS(Tableau3[Statut actuel],'Analyses Marc'!A31,Tableau3[Mois],'Analyses Marc'!$J$7,Tableau3[Négo],paramètres!$B$5) -> 0 | K31: =COUNTIFS(Tableau3[Statut actuel],'Analyses Marc'!A31,Tableau3[Mois],'Analyses Marc'!$K$7,Tableau3[Négo],paramètres!$B$5) -> 0 | L31: =COUNTIFS(Tableau3[Statut actuel],'Analyses Marc'!A31,Tableau3[Mois],'Analyses Marc'!$L$7,Tableau3[Négo],paramètres!$B$5) -> 0 | M31: =COUNTIFS(Tableau3[Statut actuel],'Analyses Marc'!A31,Tableau3[Mois],'Analyses Marc'!$M$7,Tableau3[Négo],paramètres!$B$5) -> 1 | N31: 1
A32: =IF(ISBLANK(paramètres!C13),"",paramètres!C13) -> Abandonné | B32: =COUNTIFS(Tableau3[Statut actuel],'Analyses Marc'!A32,Tableau3[Mois],'Analyses Marc'!$B$7,Tableau3[Négo],paramètres!$B$5) -> 0 | C32: =COUNTIFS(Tableau3[Statut actuel],'Analyses Marc'!A32,Tableau3[Mois],'Analyses Marc'!$C$7,Tableau3[Négo],paramètres!$B$5) -> 1 | D32: =COUNTIFS(Tableau3[Statut actuel],'Analyses Marc'!A32,Tableau3[Mois],'Analyses Marc'!$D$7,Tableau3[Négo],paramètres!$B$5) -> 0 | E32: =COUNTIFS(Tableau3[Statut actuel],'Analyses Marc'!A32,Tableau3[Mois],'Analyses Marc'!$E$7,Tableau3[Négo],paramètres!$B$5) -> 0 | F32: =COUNTIFS(Tableau3[Statut actuel],'Analyses Marc'!A32,Tableau3[Mois],'Analyses Marc'!$F$7,Tableau3[Négo],paramètres!$B$5) -> 0 | G32: =COUNTIFS(Tableau3[Statut actuel],'Analyses Marc'!A32,Tableau3[Mois],'Analyses Marc'!$G$7,Tableau3[Négo],paramètres!$B$5) -> 0 | H32: =COUNTIFS(Tableau3[Statut actuel],'Analyses Marc'!A32,Tableau3[Mois],'Analyses Marc'!$H$7,Tableau3[Négo],paramètres!$B$5) -> 0 | I32: =COUNTIFS(Tableau3[Statut actuel],'Analyses Marc'!A32,Tableau3[Mois],'Analyses Marc'!$I$7,Tableau3[Négo],paramètres!$B$5) -> 0 | J32: =COUNTIFS(Tableau3[Statut actuel],'Analyses Marc'!A32,Tableau3[Mois],'Analyses Marc'!$J$7,Tableau3[Négo],paramètres!$B$5) -> 0 | K32: =COUNTIFS(Tableau3[Statut actuel],'Analyses Marc'!A32,Tableau3[Mois],'Analyses Marc'!$K$7,Tableau3[Négo],paramètres!$B$5) -> 0 | L32: =COUNTIFS(Tableau3[Statut actuel],'Analyses Marc'!A32,Tableau3[Mois],'Analyses Marc'!$L$7,Tableau3[Négo],paramètres!$B$5) -> 0 | M32: =COUNTIFS(Tableau3[Statut actuel],'Analyses Marc'!A32,Tableau3[Mois],'Analyses Marc'!$M$7,Tableau3[Négo],paramètres!$B$5) -> 0 | N32: 1
A33: =IF(ISBLANK(paramètres!C14),"",paramètres!C14) -> Stand-by | B33: =COUNTIFS(Tableau3[Statut actuel],'Analyses Marc'!A33,Tableau3[Mois],'Analyses Marc'!$B$7,Tableau3[Négo],paramètres!$B$5) -> 0 | C33: =COUNTIFS(Tableau3[Statut actuel],'Analyses Marc'!A33,Tableau3[Mois],'Analyses Marc'!$C$7,Tableau3[Négo],paramètres!$B$5) -> 0 | D33: =COUNTIFS(Tableau3[Statut actuel],'Analyses Marc'!A33,Tableau3[Mois],'Analyses Marc'!$D$7,Tableau3[Négo],paramètres!$B$5) -> 0 | E33: =COUNTIFS(Tableau3[Statut actuel],'Analyses Marc'!A33,Tableau3[Mois],'Analyses Marc'!$E$7,Tableau3[Négo],paramètres!$B$5) -> 0 | F33: =COUNTIFS(Tableau3[Statut actuel],'Analyses Marc'!A33,Tableau3[Mois],'Analyses Marc'!$F$7,Tableau3[Négo],paramètres!$B$5) -> 0 | G33: =COUNTIFS(Tableau3[Statut actuel],'Analyses Marc'!A33,Tableau3[Mois],'Analyses Marc'!$G$7,Tableau3[Négo],paramètres!$B$5) -> 0 | H33: =COUNTIFS(Tableau3[Statut actuel],'Analyses Marc'!A33,Tableau3[Mois],'Analyses Marc'!$H$7,Tableau3[Négo],paramètres!$B$5) -> 0 | I33: =COUNTIFS(Tableau3[Statut actuel],'Analyses Marc'!A33,Tableau3[Mois],'Analyses Marc'!$I$7,Tableau3[Négo],paramètres!$B$5) -> 0 | J33: =COUNTIFS(Tableau3[Statut actuel],'Analyses Marc'!A33,Tableau3[Mois],'Analyses Marc'!$J$7,Tableau3[Négo],paramètres!$B$5) -> 0 | K33: =COUNTIFS(Tableau3[Statut actuel],'Analyses Marc'!A33,Tableau3[Mois],'Analyses Marc'!$K$7,Tableau3[Négo],paramètres!$B$5) -> 0 | L33: =COUNTIFS(Tableau3[Statut actuel],'Analyses Marc'!A33,Tableau3[Mois],'Analyses Marc'!$L$7,Tableau3[Négo],paramètres!$B$5) -> 0 | M33: =COUNTIFS(Tableau3[Statut actuel],'Analyses Marc'!A33,Tableau3[Mois],'Analyses Marc'!$M$7,Tableau3[Négo],paramètres!$B$5) -> 0 | N33: 0
A34: =IF(ISBLANK(paramètres!C15),"",paramètres!C15) -> Sans Suite | B34: =COUNTIFS(Tableau3[Statut actuel],'Analyses Marc'!A34,Tableau3[Mois],'Analyses Marc'!$B$7,Tableau3[Négo],paramètres!$B$5) -> 0 | C34: =COUNTIFS(Tableau3[Statut actuel],'Analyses Marc'!A34,Tableau3[Mois],'Analyses Marc'!$C$7,Tableau3[Négo],paramètres!$B$5) -> 0 | D34: =COUNTIFS(Tableau3[Statut actuel],'Analyses Marc'!A34,Tableau3[Mois],'Analyses Marc'!$D$7,Tableau3[Négo],paramètres!$B$5) -> 0 | E34: =COUNTIFS(Tableau3[Statut actuel],'Analyses Marc'!A34,Tableau3[Mois],'Analyses Marc'!$E$7,Tableau3[Négo],paramètres!$B$5) -> 0 | F34: =COUNTIFS(Tableau3[Statut actuel],'Analyses Marc'!A34,Tableau3[Mois],'Analyses Marc'!$F$7,Tableau3[Négo],paramètres!$B$5) -> 0 | G34: =COUNTIFS(Tableau3[Statut actuel],'Analyses Marc'!A34,Tableau3[Mois],'Analyses Marc'!$G$7,Tableau3[Négo],paramètres!$B$5) -> 0 | H34: =COUNTIFS(Tableau3[Statut actuel],'Analyses Marc'!A34,Tableau3[Mois],'Analyses Marc'!$H$7,Tableau3[Négo],paramètres!$B$5) -> 0 | I34: =COUNTIFS(Tableau3[Statut actuel],'Analyses Marc'!A34,Tableau3[Mois],'Analyses Marc'!$I$7,Tableau3[Négo],paramètres!$B$5) -> 0 | J34: =COUNTIFS(Tableau3[Statut actuel],'Analyses Marc'!A34,Tableau3[Mois],'Analyses Marc'!$J$7,Tableau3[Négo],paramètres!$B$5) -> 0 | K34: =COUNTIFS(Tableau3[Statut actuel],'Analyses Marc'!A34,Tableau3[Mois],'Analyses Marc'!$K$7,Tableau3[Négo],paramètres!$B$5) -> 0 | L34: =COUNTIFS(Tableau3[Statut actuel],'Analyses Marc'!A34,Tableau3[Mois],'Analyses Marc'!$L$7,Tableau3[Négo],paramètres!$B$5) -> 0 | M34: =COUNTIFS(Tableau3[Statut actuel],'Analyses Marc'!A34,Tableau3[Mois],'Analyses Marc'!$M$7,Tableau3[Négo],paramètres!$B$5) -> 0 | N34: 0
A35: =IF(ISBLANK(paramètres!C16),"",paramètres!C16) -> Mandat | B35: =COUNTIFS(Tableau3[Statut actuel],'Analyses Marc'!A35,Tableau3[Mois],'Analyses Marc'!$B$7,Tableau3[Négo],paramètres!$B$5) -> 0 | C35: =COUNTIFS(Tableau3[Statut actuel],'Analyses Marc'!A35,Tableau3[Mois],'Analyses Marc'!$C$7,Tableau3[Négo],paramètres!$B$5) -> 1 | D35: =COUNTIFS(Tableau3[Statut actuel],'Analyses Marc'!A35,Tableau3[Mois],'Analyses Marc'!$D$7,Tableau3[Négo],paramètres!$B$5) -> 0 | E35: =COUNTIFS(Tableau3[Statut actuel],'Analyses Marc'!A35,Tableau3[Mois],'Analyses Marc'!$E$7,Tableau3[Négo],paramètres!$B$5) -> 0 | F35: =COUNTIFS(Tableau3[Statut actuel],'Analyses Marc'!A35,Tableau3[Mois],'Analyses Marc'!$F$7,Tableau3[Négo],paramètres!$B$5) -> 0 | G35: =COUNTIFS(Tableau3[Statut actuel],'Analyses Marc'!A35,Tableau3[Mois],'Analyses Marc'!$G$7,Tableau3[Négo],paramètres!$B$5) -> 0 | H35: =COUNTIFS(Tableau3[Statut actuel],'Analyses Marc'!A35,Tableau3[Mois],'Analyses Marc'!$H$7,Tableau3[Négo],paramètres!$B$5) -> 0 | I35: =COUNTIFS(Tableau3[Statut actuel],'Analyses Marc'!A35,Tableau3[Mois],'Analyses Marc'!$I$7,Tableau3[Négo],paramètres!$B$5) -> 0 | J35: =COUNTIFS(Tableau3[Statut actuel],'Analyses Marc'!A35,Tableau3[Mois],'Analyses Marc'!$J$7,Tableau3[Négo],paramètres!$B$5) -> 0 | K35: =COUNTIFS(Tableau3[Statut actuel],'Analyses Marc'!A35,Tableau3[Mois],'Analyses Marc'!$K$7,Tableau3[Négo],paramètres!$B$5) -> 0 | L35: =COUNTIFS(Tableau3[Statut actuel],'Analyses Marc'!A35,Tableau3[Mois],'Analyses Marc'!$L$7,Tableau3[Négo],paramètres!$B$5) -> 0 | M35: =COUNTIFS(Tableau3[Statut actuel],'Analyses Marc'!A35,Tableau3[Mois],'Analyses Marc'!$M$7,Tableau3[Négo],paramètres!$B$5) -> 0 | N35: 1
A37: TOTAL | B37: =SUM(B24:B35) -> 0 | C37: =SUM(C24:C35) -> 2 | D37: 0 | E37: 0 | F37: 0 | G37: 0 | H37: 0 | I37: 0 | J37: 0 | K37: 0 | L37: 0 | M37: 2 | N37: =SUM(N24:N35) -> 4
A39: Chiffre d'affaires du commercial
B40: JANVIER | C40: FEVRIER | D40: MARS | E40: AVRIL | F40: MAI | G40: JUIN | H40: JUILLET | I40: AOÛT | J40: SEPTEMBRE | K40: OCTOBRE | L40: NOVEMBRE | M40: DÉCEMBRE | N40: TOTAL
A42: COMPROMIS EN COURS
A43: Montant
A44: ACTES
A45: Montant
A46: VENTES ANNULEES
A47: Montant annulé
A49: Somme CA
A50: Rappel sur objectif (mensualisé)
A52: Cumul CA
A53: Cumul objectif
B57: Rappel objectif annuel du commercial:
B59: Pourcentage de l'objectif:

Sheet Analyses Team Duo de Choc (hidden)
A1: Analyses par commercial
F4: Sélectionnez nom du négociateur: | G4: Team Duo de Choc
A6: Analyse de l'origine des prospects par commercial
A7: Origine | B7: JANVIER | C7: FÉVRIER | D7: MARS | E7: AVRIL | F7: MAI | G7: JUIN | H7: JUILLET | I7: AOÛT | J7: SEPTEMBRE | K7: OCTOBRE | L7: NOVEMBRE | M7: DÉCEMBRE | N7: TOTAL | O7: Pourcentage
A8: =IF(ISBLANK(paramètres!A5),"",paramètres!A5) -> Appel direct | B8: =COUNTIFS(Tableau3[Source du prospect],'Analyses Team Duo de Choc'!A8,Tableau3[Mois],'Analyses Team Duo de Choc'!$B$7,Tableau3[Négo],paramètres!$B$5) -> 0 | C8: =COUNTIFS(Tableau3[Source du prospect],'Analyses Team Duo de Choc'!A8,Tableau3[Mois],'Analyses Team Duo de Choc'!$C$7,Tableau3[Négo],paramètres!$B$5) -> 0 | D8: =COUNTIFS(Tableau3[Source du prospect],'Analyses Team Duo de Choc'!A8,Tableau3[Mois],'Analyses Team Duo de Choc'!$D$7,Tableau3[Négo],paramètres!$B$5) -> 0 | E8: =COUNTIFS(Tableau3[Source du prospect],'Analyses Team Duo de Choc'!A8,Tableau3[Mois],'Analyses Team Duo de Choc'!$E$7,Tableau3[Négo],paramètres!$B$5) -> 0 | F8: =COUNTIFS(Tableau3[Source du prospect],'Analyses Team Duo de Choc'!A8,Tableau3[Mois],'Analyses Team Duo de Choc'!$F$7,Tableau3[Négo],paramètres!$B$5) -> 0 | G8: =COUNTIFS(Tableau3[Source du prospect],'Analyses Team Duo de Choc'!A8,Tableau3[Mois],'Analyses Team Duo de Choc'!$G$7,Tableau3[Négo],paramètres!$B$5) -> 0 | H8: =COUNTIFS(Tableau3[Source du prospect],'Analyses Team Duo de Choc'!A8,Tableau3[Mois],'Analyses Team Duo de Choc'!$H$7,Tableau3[Négo],paramètres!$B$5) -> 0 | I8: =COUNTIFS(Tableau3[Source du prospect],'Analyses Team Duo de Choc'!A8,Tableau3[Mois],'Analyses Team Duo de Choc'!$I$7,Tableau3[Négo],paramètres!$B$5) -> 0 | J8: =COUNTIFS(Tableau3[Source du prospect],'Analyses Team Duo de Choc'!A8,Tableau3[Mois],'Analyses Team Duo de Choc'!$J$7,Tableau3[Négo],paramètres!$B$5) -> 0 | K8: =COUNTIFS(Tableau3[Source du prospect],'Analyses Team Duo de Choc'!A8,Tableau3[Mois],'Analyses Team Duo de Choc'!$K$7,Tableau3[Négo],paramètres!$B$5) -> 0 | L8: =COUNTIFS(Tableau3[Source du prospect],'Analyses Team Duo de Choc'!A8,Tableau3[Mois],'Analyses Team Duo de Choc'!$L$7,Tableau3[Négo],paramètres!$B$5) -> 0 | M8: =COUNTIFS(Tableau3[Source du prospect],'Analyses Team Duo de Choc'!A8,Tableau3[Mois],'Analyses Team Duo de Choc'!$M$7,Tableau3[Négo],paramètres!$B$5) -> 1 | N8: =SUM(B8:M8) -> 1
A9: =IF(ISBLANK(paramètres!A6),"",paramètres!A6) -> e-mail | B9: =COUNTIFS(Tableau3[Source du prospect],'Analyses Team Duo de Choc'!A9,Tableau3[Mois],'Analyses Team Duo de Choc'!$B$7,Tableau3[Négo],paramètres!$B$5) -> 0 | C9: =COUNTIFS(Tableau3[Source du prospect],'Analyses Team Duo de Choc'!A9,Tableau3[Mois],'Analyses Team Duo de Choc'!$C$7,Tableau3[Négo],paramètres!$B$5) -> 1 | D9: =COUNTIFS(Tableau3[Source du prospect],'Analyses Team Duo de Choc'!A9,Tableau3[Mois],'Analyses Team Duo de Choc'!$D$7,Tableau3[Négo],paramètres!$B$5) -> 0 | E9: =COUNTIFS(Tableau3[Source du prospect],'Analyses Team Duo de Choc'!A9,Tableau3[Mois],'Analyses Team Duo de Choc'!$E$7,Tableau3[Négo],paramètres!$B$5) -> 0 | F9: =COUNTIFS(Tableau3[Source du prospect],'Analyses Team Duo de Choc'!A9,Tableau3[Mois],'Analyses Team Duo de Choc'!$F$7,Tableau3[Négo],paramètres!$B$5) -> 0 | G9: =COUNTIFS(Tableau3[Source du prospect],'Analyses Team Duo de Choc'!A9,Tableau3[Mois],'Analyses Team Duo de Choc'!$G$7,Tableau3[Négo],paramètres!$B$5) -> 0 | H9: =COUNTIFS(Tableau3[Source du prospect],'Analyses Team Duo de Choc'!A9,Tableau3[Mois],'Analyses Team Duo de Choc'!$H$7,Tableau3[Négo],paramètres!$B$5) -> 0 | I9: =COUNTIFS(Tableau3[Source du prospect],'Analyses Team Duo de Choc'!A9,Tableau3[Mois],'Analyses Team Duo de Choc'!$I$7,Tableau3[Négo],paramètres!$B$5) -> 0 | J9: =COUNTIFS(Tableau3[Source du prospect],'Analyses Team Duo de Choc'!A9,Tableau3[Mois],'Analyses Team Duo de Choc'!$J$7,Tableau3[Négo],paramètres!$B$5) -> 0 | K9: =COUNTIFS(Tableau3[Source du prospect],'Analyses Team Duo de Choc'!A9,Tableau3[Mois],'Analyses Team Duo de Choc'!$K$7,Tableau3[Négo],paramètres!$B$5) -> 0 | L9: =COUNTIFS(Tableau3[Source du prospect],'Analyses Team Duo de Choc'!A9,Tableau3[Mois],'Analyses Team Duo de Choc'!$L$7,Tableau3[Négo],paramètres!$B$5) -> 0 | M9: =COUNTIFS(Tableau3[Source du prospect],'Analyses Team Duo de Choc'!A9,Tableau3[Mois],'Analyses Team Duo de Choc'!$M$7,Tableau3[Négo],paramètres!$B$5) -> 0 | N9: =SUM(B9:M9) -> 1
A10: =IF(ISBLANK(paramètres!A7),"",paramètres!A7) -> Prospection | B10: =COUNTIFS(Tableau3[Source du prospect],'Analyses Team Duo de Choc'!A10,Tableau3[Mois],'Analyses Team Duo de Choc'!$B$7,Tableau3[Négo],paramètres!$B$5) -> 0 | C10: =COUNTIFS(Tableau3[Source du prospect],'Analyses Team Duo de Choc'!A10,Tableau3[Mois],'Analyses Team Duo de Choc'!$C$7,Tableau3[Négo],paramètres!$B$5) -> 0 | D10: =COUNTIFS(Tableau3[Source du prospect],'Analyses Team Duo de Choc'!A10,Tableau3[Mois],'Analyses Team Duo de Choc'!$D$7,Tableau3[Négo],paramètres!$B$5) -> 0 | E10: =COUNTIFS(Tableau3[Source du prospect],'Analyses Team Duo de Choc'!A10,Tableau3[Mois],'Analyses Team Duo de Choc'!$E$7,Tableau3[Négo],paramètres!$B$5) -> 0 | F10: =COUNTIFS(Tableau3[Source du prospect],'Analyses Team Duo de Choc'!A10,Tableau3[Mois],'Analyses Team Duo de Choc'!$F$7,Tableau3[Négo],paramètres!$B$5) -> 0 | G10: =COUNTIFS(Tableau3[Source du prospect],'Analyses Team Duo de Choc'!A10,Tableau3[Mois],'Analyses Team Duo de Choc'!$G$7,Tableau3[Négo],paramètres!$B$5) -> 0 | H10: =COUNTIFS(Tableau3[Source du prospect],'Analyses Team Duo de Choc'!A10,Tableau3[Mois],'Analyses Team Duo de Choc'!$H$7,Tableau3[Négo],paramètres!$B$5) -> 0 | I10: =COUNTIFS(Tableau3[Source du prospect],'Analyses Team Duo de Choc'!A10,Tableau3[Mois],'Analyses Team Duo de Choc'!$I$7,Tableau3[Négo],paramètres!$B$5) -> 0 | J10: =COUNTIFS(Tableau3[Source du prospect],'Analyses Team Duo de Choc'!A10,Tableau3[Mois],'Analyses Team Duo de Choc'!$J$7,Tableau3[Négo],paramètres!$B$5) -> 0 | K10: =COUNTIFS(Tableau3[Source du prospect],'Analyses Team Duo de Choc'!A10,Tableau3[Mois],'Analyses Team Duo de Choc'!$K$7,Tableau3[Négo],paramètres!$B$5) -> 0 | L10: =COUNTIFS(Tableau3[Source du prospect],'Analyses Team Duo de Choc'!A10,Tableau3[Mois],'Analyses Team Duo de Choc'!$L$7,Tableau3[Négo],paramètres!$B$5) -> 0 | M10: =COUNTIFS(Tableau3[Source du prospect],'Analyses Team Duo de Choc'!A10,Tableau3[Mois],'Analyses Team Duo de Choc'!$M$7,Tableau3[Négo],paramètres!$B$5) -> 1 | N10: 1
A11: =IF(ISBLANK(paramètres!A8),"",paramètres!A8) -> Site Internet | B11: =COUNTIFS(Tableau3[Source du prospect],'Analyses Team Duo de Choc'!A11,Tableau3[Mois],'Analyses Team Duo de Choc'!$B$7,Tableau3[Négo],paramètres!$B$5) -> 0 | C11: =COUNTIFS(Tableau3[Source du prospect],'Analyses Team Duo de Choc'!A11,Tableau3[Mois],'Analyses Team Duo de Choc'!$C$7,Tableau3[Négo],paramètres!$B$5) -> 1 | D11: =COUNTIFS(Tableau3[Source du prospect],'Analyses Team Duo de Choc'!A11,Tableau3[Mois],'Analyses Team Duo de Choc'!$D$7,Tableau3[Négo],paramètres!$B$5) -> 0 | E11: =COUNTIFS(Tableau3[Source du prospect],'Analyses Team Duo de Choc'!A11,Tableau3[Mois],'Analyses Team Duo de Choc'!$E$7,Tableau3[Négo],paramètres!$B$5) -> 0 | F11: =COUNTIFS(Tableau3[Source du prospect],'Analyses Team Duo de Choc'!A11,Tableau3[Mois],'Analyses Team Duo de Choc'!$F$7,Tableau3[Négo],paramètres!$B$5) -> 0 | G11: =COUNTIFS(Tableau3[Source du prospect],'Analyses Team Duo de Choc'!A11,Tableau3[Mois],'Analyses Team Duo de Choc'!$G$7,Tableau3[Négo],paramètres!$B$5) -> 0 | H11: =COUNTIFS(Tableau3[Source du prospect],'Analyses Team Duo de Choc'!A11,Tableau3[Mois],'Analyses Team Duo de Choc'!$H$7,Tableau3[Négo],paramètres!$B$5) -> 0 | I11: =COUNTIFS(Tableau3[Source du prospect],'Analyses Team Duo de Choc'!A11,Tableau3[Mois],'Analyses Team Duo de Choc'!$I$7,Tableau3[Négo],paramètres!$B$5) -> 0 | J11: =COUNTIFS(Tableau3[Source du prospect],'Analyses Team Duo de Choc'!A11,Tableau3[Mois],'Analyses Team Duo de Choc'!$J$7,Tableau3[Négo],paramètres!$B$5) -> 0 | K11: =COUNTIFS(Tableau3[Source du prospect],'Analyses Team Duo de Choc'!A11,Tableau3[Mois],'Analyses Team Duo de Choc'!$K$7,Tableau3[Négo],paramètres!$B$5) -> 0 | L11: =COUNTIFS(Tableau3[Source du prospect],'Analyses Team Duo de Choc'!A11,Tableau3[Mois],'Analyses Team Duo de Choc'!$L$7,Tableau3[Négo],paramètres!$B$5) -> 0 | M11: =COUNTIFS(Tableau3[Source du prospect],'Analyses Team Duo de Choc'!A11,Tableau3[Mois],'Analyses Team Duo de Choc'!$M$7,Tableau3[Négo],paramètres!$B$5) -> 0 | N11: 1
A12: =IF(ISBLANK(paramètres!A9),"",paramètres!A9) -> Appel agence | B12: =COUNTIFS(Tableau3[Source du prospect],'Analyses Team Duo de Choc'!A12,Tableau3[Mois],'Analyses Team Duo de Choc'!$B$7,Tableau3[Négo],paramètres!$B$5) -> 0 | C12: =COUNTIFS(Tableau3[Source du prospect],'Analyses Team Duo de Choc'!A12,Tableau3[Mois],'Analyses Team Duo de Choc'!$C$7,Tableau3[Négo],paramètres!$B$5) -> 0 | D12: =COUNTIFS(Tableau3[Source du prospect],'Analyses Team Duo de Choc'!A12,Tableau3[Mois],'Analyses Team Duo de Choc'!$D$7,Tableau3[Négo],paramètres!$B$5) -> 0 | E12: =COUNTIFS(Tableau3[Source du prospect],'Analyses Team Duo de Choc'!A12,Tableau3[Mois],'Analyses Team Duo de Choc'!$E$7,Tableau3[Négo],paramètres!$B$5) -> 0 | F12: =COUNTIFS(Tableau3[Source du prospect],'Analyses Team Duo de Choc'!A12,Tableau3[Mois],'Analyses Team Duo de Choc'!$F$7,Tableau3[Négo],paramètres!$B$5) -> 0 | G12: =COUNTIFS(Tableau3[Source du prospect],'Analyses Team Duo de Choc'!A12,Tableau3[Mois],'Analyses Team Duo de Choc'!$G$7,Tableau3[Négo],paramètres!$B$5) -> 0 | H12: =COUNTIFS(Tableau3[Source du prospect],'Analyses Team Duo de Choc'!A12,Tableau3[Mois],'Analyses Team Duo de Choc'!$H$7,Tableau3[Négo],paramètres!$B$5) -> 0 | I12: =COUNTIFS(Tableau3[Source du prospect],'Analyses Team Duo de Choc'!A12,Tableau3[Mois],'Analyses Team Duo de Choc'!$I$7,Tableau3[Négo],paramètres!$B$5) -> 0 | J12: =COUNTIFS(Tableau3[Source du prospect],'Analyses Team Duo de Choc'!A12,Tableau3[Mois],'Analyses Team Duo de Choc'!$J$7,Tableau3[Négo],paramètres!$B$5) -> 0 | K12: =COUNTIFS(Tableau3[Source du prospect],'Analyses Team Duo de Choc'!A12,Tableau3[Mois],'Analyses Team Duo de Choc'!$K$7,Tableau3[Négo],paramètres!$B$5) -> 0 | L12: =COUNTIFS(Tableau3[Source du prospect],'Analyses Team Duo de Choc'!A12,Tableau3[Mois],'Analyses Team Duo de Choc'!$L$7,Tableau3[Négo],paramètres!$B$5) -> 0 | M12: =COUNTIFS(Tableau3[Source du prospect],'Analyses Team Duo de Choc'!A12,Tableau3[Mois],'Analyses Team Duo de Choc'!$M$7,Tableau3[Négo],paramètres!$B$5) -> 0 | N12: 0
A13: =IF(ISBLANK(paramètres!A10),"",paramètres!A10) ->  | N13: 0
A14: =IF(ISBLANK(paramètres!A11),"",paramètres!A11) ->  | N14: 0
A15: =IF(ISBLANK(paramètres!A12),"",paramètres!A12) ->  | N15: =SUM(B15:M15) -> 0
A16: =IF(ISBLANK(paramètres!A13),"",paramètres!A13) ->  | N16: 0
A17: =IF(ISBLANK(paramètres!A14),"",paramètres!A14) ->  | N17: 0
A18: =IF(ISBLANK(paramètres!A15),"",paramètres!A15) ->  | N18: 0
A19: =IF(ISBLANK(paramètres!A16),"",paramètres!A16) ->  | N19: 0
A20: TOTAL | B20: =SUM(B8:B19) -> 0 | C20: =SUM(C8:C19) -> 2 | D20: 0 | E20: 0 | F20: 0 | G20: 0 | H20: 0 | I20: 0 | J20: 0 | K20: 0 | L20: 0 | M20: 2 | N20: 4 | O20: 0
A22: Statut actuel des dossiers du négociateur
A23: Statut | B23: JANVIER | C23: FÉVRIER | D23: MARS | E23: AVRIL | F23: MAI | G23: JUIN | H23: JUILLET | I23: AOÛT | J23: SEPTEMBRE | K23: OCTOBRE | L23: NOVEMBRE | M23: DÉCEMBRE | N23: TOTAL | O23: Pourcentage
A24: =IF(ISBLANK(paramètres!C5),"",paramètres!C5) -> TEL, SMS | B24: =COUNTIFS(Tableau3[Statut actuel],'Analyses Team Duo de Choc'!A24,Tableau3[Mois],'Analyses Team Duo de Choc'!$B$7,Tableau3[Négo],paramètres!$B$5) -> 0 | C24: =COUNTIFS(Tableau3[Statut actuel],'Analyses Team Duo de Choc'!A24,Tableau3[Mois],'Analyses Team Duo de Choc'!$C$7,Tableau3[Négo],paramètres!$B$5) -> 0 | D24: =COUNTIFS(Tableau3[Statut actuel],'Analyses Team Duo de Choc'!A24,Tableau3[Mois],'Analyses Team Duo de Choc'!$D$7,Tableau3[Négo],paramètres!$B$5) -> 0 | E24: =COUNTIFS(Tableau3[Statut actuel],'Analyses Team Duo de Choc'!A24,Tableau3[Mois],'Analyses Team Duo de Choc'!$E$7,Tableau3[Négo],paramètres!$B$5) -> 0 | F24: =COUNTIFS(Tableau3[Statut actuel],'Analyses Team Duo de Choc'!A24,Tableau3[Mois],'Analyses Team Duo de Choc'!$F$7,Tableau3[Négo],paramètres!$B$5) -> 0 | G24: =COUNTIFS(Tableau3[Statut actuel],'Analyses Team Duo de Choc'!A24,Tableau3[Mois],'Analyses Team Duo de Choc'!$G$7,Tableau3[Négo],paramètres!$B$5) -> 0 | H24: =COUNTIFS(Tableau3[Statut actuel],'Analyses Team Duo de Choc'!A24,Tableau3[Mois],'Analyses Team Duo de Choc'!$H$7,Tableau3[Négo],paramètres!$B$5) -> 0 | I24: =COUNTIFS(Tableau3[Statut actuel],'Analyses Team Duo de Choc'!A24,Tableau3[Mois],'Analyses Team Duo de Choc'!$I$7,Tableau3[Négo],paramètres!$B$5) -> 0 | J24: =COUNTIFS(Tableau3[Statut actuel],'Analyses Team Duo de Choc'!A24,Tableau3[Mois],'Analyses Team Duo de Choc'!$J$7,Tableau3[Négo],paramètres!$B$5) -> 0 | K24: =COUNTIFS(Tableau3[Statut actuel],'Analyses Team Duo de Choc'!A24,Tableau3[Mois],'Analyses Team Duo de Choc'!$K$7,Tableau3[Négo],paramètres!$B$5) -> 0 | L24: =COUNTIFS(Tableau3[Statut actuel],'Analyses Team Duo de Choc'!A24,Tableau3[Mois],'Analyses Team Duo de Choc'!$L$7,Tableau3[Négo],paramètres!$B$5) -> 0 | M24: =COUNTIFS(Tableau3[Statut actuel],'Analyses Team Duo de Choc'!A24,Tableau3[Mois],'Analyses Team Duo de Choc'!$M$7,Tableau3[Négo],paramètres!$B$5) -> 0 | N24: =SUM(B24:M24) -> 0
A25: =IF(ISBLANK(paramètres!C6),"",paramètres!C6) -> Porte à porte | B25: =COUNTIFS(Tableau3[Statut actuel],'Analyses Team Duo de Choc'!A25,Tableau3[Mois],'Analyses Team Duo de Choc'!$B$7,Tableau3[Négo],paramètres!$B$5) -> 0 | C25: =COUNTIFS(Tableau3[Statut actuel],'Analyses Team Duo de Choc'!A25,Tableau3[Mois],'Analyses Team Duo de Choc'!$C$7,Tableau3[Négo],paramètres!$B$5) -> 0 | D25: =COUNTIFS(Tableau3[Statut actuel],'Analyses Team Duo de Choc'!A25,Tableau3[Mois],'Analyses Team Duo de Choc'!$D$7,Tableau3[Négo],paramètres!$B$5) -> 0 | E25: =COUNTIFS(Tableau3[Statut actuel],'Analyses Team Duo de Choc'!A25,Tableau3[Mois],'Analyses Team Duo de Choc'!$E$7,Tableau3[Négo],paramètres!$B$5) -> 0 | F25: =COUNTIFS(Tableau3[Statut actuel],'Analyses Team Duo de Choc'!A25,Tableau3[Mois],'Analyses Team Duo de Choc'!$F$7,Tableau3[Négo],paramètres!$B$5) -> 0 | G25: =COUNTIFS(Tableau3[Statut actuel],'Analyses Team Duo de Choc'!A25,Tableau3[Mois],'Analyses Team Duo de Choc'!$G$7,Tableau3[Négo],paramètres!$B$5) -> 0 | H25: =COUNTIFS(Tableau3[Statut actuel],'Analyses Team Duo de Choc'!A25,Tableau3[Mois],'Analyses Team Duo de Choc'!$H$7,Tableau3[Négo],paramètres!$B$5) -> 0 | I25: =COUNTIFS(Tableau3[Statut actuel],'Analyses Team Duo de Choc'!A25,Tableau3[Mois],'Analyses Team Duo de Choc'!$I$7,Tableau3[Négo],paramètres!$B$5) -> 0 | J25: =COUNTIFS(Tableau3[Statut actuel],'Analyses Team Duo de Choc'!A25,Tableau3[Mois],'Analyses Team Duo de Choc'!$J$7,Tableau3[Négo],paramètres!$B$5) -> 0 | K25: =COUNTIFS(Tableau3[Statut actuel],'Analyses Team Duo de Choc'!A25,Tableau3[Mois],'Analyses Team Duo de Choc'!$K$7,Tableau3[Négo],paramètres!$B$5) -> 0 | L25: =COUNTIFS(Tableau3[Statut actuel],'Analyses Team Duo de Choc'!A25,Tableau3[Mois],'Analyses Team Duo de Choc'!$L$7,Tableau3[Négo],paramètres!$B$5) -> 0 | M25: =COUNTIFS(Tableau3[Statut actuel],'Analyses Team Duo de Choc'!A25,Tableau3[Mois],'Analyses Team Duo de Choc'!$M$7,Tableau3[Négo],paramètres!$B$5) -> 0 | N25: =SUM(B25:M25) -> 0
A26: =IF(ISBLANK(paramètres!C7),"",paramètres!C7) -> R1 | B26: =COUNTIFS(Tableau3[Statut actuel],'Analyses Team Duo de Choc'!A26,Tableau3[Mois],'Analyses Team Duo de Choc'!$B$7,Tableau3[Négo],paramètres!$B$5) -> 0 | C26: =COUNTIFS(Tableau3[Statut actuel],'Analyses Team Duo de Choc'!A26,Tableau3[Mois],'Analyses Team Duo de Choc'!$C$7,Tableau3[Négo],paramètres!$B$5) -> 0 | D26: =COUNTIFS(Tableau3[Statut actuel],'Analyses Team Duo de Choc'!A26,Tableau3[Mois],'Analyses Team Duo de Choc'!$D$7,Tableau3[Négo],paramètres!$B$5) -> 0 | E26: =COUNTIFS(Tableau3[Statut actuel],'Analyses Team Duo de Choc'!A26,Tableau3[Mois],'Analyses Team Duo de Choc'!$E$7,Tableau3[Négo],paramètres!$B$5) -> 0 | F26: =COUNTIFS(Tableau3[Statut actuel],'Analyses Team Duo de Choc'!A26,Tableau3[Mois],'Analyses Team Duo de Choc'!$F$7,Tableau3[Négo],paramètres!$B$5) -> 0 | G26: =COUNTIFS(Tableau3[Statut actuel],'Analyses Team Duo de Choc'!A26,Tableau3[Mois],'Analyses Team Duo de Choc'!$G$7,Tableau3[Négo],paramètres!$B$5) -> 0 | H26: =COUNTIFS(Tableau3[Statut actuel],'Analyses Team Duo de Choc'!A26,Tableau3[Mois],'Analyses Team Duo de Choc'!$H$7,Tableau3[Négo],paramètres!$B$5) -> 0 | I26: =COUNTIFS(Tableau3[Statut actuel],'Analyses Team Duo de Choc'!A26,Tableau3[Mois],'Analyses Team Duo de Choc'!$I$7,Tableau3[Négo],paramètres!$B$5) -> 0 | J26: =COUNTIFS(Tableau3[Statut actuel],'Analyses Team Duo de Choc'!A26,Tableau3[Mois],'Analyses Team Duo de Choc'!$J$7,Tableau3[Négo],paramètres!$B$5) -> 0 | K26: =COUNTIFS(Tableau3[Statut actuel],'Analyses Team Duo de Choc'!A26,Tableau3[Mois],'Analyses Team Duo de Choc'!$K$7,Tableau3[Négo],paramètres!$B$5) -> 0 | L26: =COUNTIFS(Tableau3[Statut actuel],'Analyses Team Duo de Choc'!A26,Tableau3[Mois],'Analyses Team Duo de Choc'!$L$7,Tableau3[Négo],paramètres!$B$5) -> 0 | M26: =COUNTIFS(Tableau3[Statut actuel],'Analyses Team Duo de Choc'!A26,Tableau3[Mois],'Analyses Team Duo de Choc'!$M$7,Tableau3[Négo],paramètres!$B$5) -> 0 | N26: 0
A27: =IF(ISBLANK(paramètres!C8),"",paramètres!C8) -> R2 | B27: =COUNTIFS(Tableau3[Statut actuel],'Analyses Team Duo de Choc'!A27,Tableau3[Mois],'Analyses Team Duo de Choc'!$B$7,Tableau3[Négo],paramètres!$B$5) -> 0 | C27: =COUNTIFS(Tableau3[Statut actuel],'Analyses Team Duo de Choc'!A27,Tableau3[Mois],'Analyses Team Duo de Choc'!$C$7,Tableau3[Négo],paramètres!$B$5) -> 0 | D27: =COUNTIFS(Tableau3[Statut actuel],'Analyses Team Duo de Choc'!A27,Tableau3[Mois],'Analyses Team Duo de Choc'!$D$7,Tableau3[Négo],paramètres!$B$5) -> 0 | E27: =COUNTIFS(Tableau3[Statut actuel],'Analyses Team Duo de Choc'!A27,Tableau3[Mois],'Analyses Team Duo de Choc'!$E$7,Tableau3[Négo],paramètres!$B$5) -> 0 | F27: =COUNTIFS(Tableau3[Statut actuel],'Analyses Team Duo de Choc'!A27,Tableau3[Mois],'Analyses Team Duo de Choc'!$F$7,Tableau3[Négo],paramètres!$B$5) -> 0 | G27: =COUNTIFS(Tableau3[Statut actuel],'Analyses Team Duo de Choc'!A27,Tableau3[Mois],'Analyses Team Duo de Choc'!$G$7,Tableau3[Négo],paramètres!$B$5) -> 0 | H27: =COUNTIFS(Tableau3[Statut actuel],'Analyses Team Duo de Choc'!A27,Tableau3[Mois],'Analyses Team Duo de Choc'!$H$7,Tableau3[Négo],paramètres!$B$5) -> 0 | I27: =COUNTIFS(Tableau3[Statut actuel],'Analyses Team Duo de Choc'!A27,Tableau3[Mois],'Analyses Team Duo de Choc'!$I$7,Tableau3[Négo],paramètres!$B$5) -> 0 | J27: =COUNTIFS(Tableau3[Statut actuel],'Analyses Team Duo de Choc'!A27,Tableau3[Mois],'Analyses Team Duo de Choc'!$J$7,Tableau3[Négo],paramètres!$B$5) -> 0 | K27: =COUNTIFS(Tableau3[Statut actuel],'Analyses Team Duo de Choc'!A27,Tableau3[Mois],'Analyses Team Duo de Choc'!$K$7,Tableau3[Négo],paramètres!$B$5) -> 0 | L27: =COUNTIFS(Tableau3[Statut actuel],'Analyses Team Duo de Choc'!A27,Tableau3[Mois],'Analyses Team Duo de Choc'!$L$7,Tableau3[Négo],paramètres!$B$5) -> 0 | M27: =COUNTIFS(Tableau3[Statut actuel],'Analyses Team Duo de Choc'!A27,Tableau3[Mois],'Analyses Team Duo de Choc'!$M$7,Tableau3[Négo],paramètres!$B$5) -> 0 | N27: 0
A28: =IF(ISBLANK(paramètres!C9),"",paramètres!C9) -> Estimation faite | B28: =COUNTIFS(Tableau3[Statut actuel],'Analyses Team Duo de Choc'!A28,Tableau3[Mois],'Analyses Team Duo de Choc'!$B$7,Tableau3[Négo],paramètres!$B$5) -> 0 | C28: =COUNTIFS(Tableau3[Statut actuel],'Analyses Team Duo de Choc'!A28,Tableau3[Mois],'Analyses Team Duo de Choc'!$C$7,Tableau3[Négo],paramètres!$B$5) -> 0 | D28: =COUNTIFS(Tableau3[Statut actuel],'Analyses Team Duo de Choc'!A28,Tableau3[Mois],'Analyses Team Duo de Choc'!$D$7,Tableau3[Négo],paramètres!$B$5) -> 0 | E28: =COUNTIFS(Tableau3[Statut actuel],'Analyses Team Duo de Choc'!A28,Tableau3[Mois],'Analyses Team Duo de Choc'!$E$7,Tableau3[Négo],paramètres!$B$5) -> 0 | F28: =COUNTIFS(Tableau3[Statut actuel],'Analyses Team Duo de Choc'!A28,Tableau3[Mois],'Analyses Team Duo de Choc'!$F$7,Tableau3[Négo],paramètres!$B$5) -> 0 | G28: =COUNTIFS(Tableau3[Statut actuel],'Analyses Team Duo de Choc'!A28,Tableau3[Mois],'Analyses Team Duo de Choc'!$G$7,Tableau3[Négo],paramètres!$B$5) -> 0 | H28: =COUNTIFS(Tableau3[Statut actuel],'Analyses Team Duo de Choc'!A28,Tableau3[Mois],'Analyses Team Duo de Choc'!$H$7,Tableau3[Négo],paramètres!$B$5) -> 0 | I28: =COUNTIFS(Tableau3[Statut actuel],'Analyses Team Duo de Choc'!A28,Tableau3[Mois],'Analyses Team Duo de Choc'!$I$7,Tableau3[Négo],paramètres!$B$5) -> 0 | J28: =COUNTIFS(Tableau3[Statut actuel],'Analyses Team Duo de Choc'!A28,Tableau3[Mois],'Analyses Team Duo de Choc'!$J$7,Tableau3[Négo],paramètres!$B$5) -> 0 | K28: =COUNTIFS(Tableau3[Statut actuel],'Analyses Team Duo de Choc'!A28,Tableau3[Mois],'Analyses Team Duo de Choc'!$K$7,Tableau3[Négo],paramètres!$B$5) -> 0 | L28: =COUNTIFS(Tableau3[Statut actuel],'Analyses Team Duo de Choc'!A28,Tableau3[Mois],'Analyses Team Duo de Choc'!$L$7,Tableau3[Négo],paramètres!$B$5) -> 0 | M28: =COUNTIFS(Tableau3[Statut actuel],'Analyses Team Duo de Choc'!A28,Tableau3[Mois],'Analyses Team Duo de Choc'!$M$7,Tableau3[Négo],paramètres!$B$5) -> 0 | N28: 0
A29: =IF(ISBLANK(paramètres!C10),"",paramètres!C10) -> Sous compromis | B29: =COUNTIFS(Tableau3[Statut actuel],'Analyses Team Duo de Choc'!A29,Tableau3[Mois],'Analyses Team Duo de Choc'!$B$7,Tableau3[Négo],paramètres!$B$5) -> 0 | C29: =COUNTIFS(Tableau3[Statut actuel],'Analyses Team Duo de Choc'!A29,Tableau3[Mois],'Analyses Team Duo de Choc'!$C$7,Tableau3[Négo],paramètres!$B$5) -> 0 | D29: =COUNTIFS(Tableau3[Statut actuel],'Analyses Team Duo de Choc'!A29,Tableau3[Mois],'Analyses Team Duo de Choc'!$D$7,Tableau3[Négo],paramètres!$B$5) -> 0 | E29: =COUNTIFS(Tableau3[Statut actuel],'Analyses Team Duo de Choc'!A29,Tableau3[Mois],'Analyses Team Duo de Choc'!$E$7,Tableau3[Négo],paramètres!$B$5) -> 0 | F29: =COUNTIFS(Tableau3[Statut actuel],'Analyses Team Duo de Choc'!A29,Tableau3[Mois],'Analyses Team Duo de Choc'!$F$7,Tableau3[Négo],paramètres!$B$5) -> 0 | G29: =COUNTIFS(Tableau3[Statut actuel],'Analyses Team Duo de Choc'!A29,Tableau3[Mois],'Analyses Team Duo de Choc'!$G$7,Tableau3[Négo],paramètres!$B$5) -> 0 | H29: =COUNTIFS(Tableau3[Statut actuel],'Analyses Team Duo de Choc'!A29,Tableau3[Mois],'Analyses Team Duo de Choc'!$H$7,Tableau3[Négo],paramètres!$B$5) -> 0 | I29: =COUNTIFS(Tableau3[Statut actuel],'Analyses Team Duo de Choc'!A29,Tableau3[Mois],'Analyses Team Duo de Choc'!$I$7,Tableau3[Négo],paramètres!$B$5) -> 0 | J29: =COUNTIFS(Tableau3[Statut actuel],'Analyses Team Duo de Choc'!A29,Tableau3[Mois],'Analyses Team Duo de Choc'!$J$7,Tableau3[Négo],paramètres!$B$5) -> 0 | K29: =COUNTIFS(Tableau3[Statut actuel],'Analyses Team Duo de Choc'!A29,Tableau3[Mois],'Analyses Team Duo de Choc'!$K$7,Tableau3[Négo],paramètres!$B$5) -> 0 | L29: =COUNTIFS(Tableau3[Statut actuel],'Analyses Team Duo de Choc'!A29,Tableau3[Mois],'Analyses Team Duo de Choc'!$L$7,Tableau3[Négo],paramètres!$B$5) -> 0 | M29: =COUNTIFS(Tableau3[Statut actuel],'Analyses Team Duo de Choc'!A29,Tableau3[Mois],'Analyses Team Duo de Choc'!$M$7,Tableau3[Négo],paramètres!$B$5) -> 1 | N29: 1
A30: =IF(ISBLANK(paramètres!C11),"",paramètres!C11) -> Vendu | B30: =COUNTIFS(Tableau3[Statut actuel],'Analyses Team Duo de Choc'!A30,Tableau3[Mois],'Analyses Team Duo de Choc'!$B$7,Tableau3[Négo],paramètres!$B$5) -> 0 | C30: =COUNTIFS(Tableau3[Statut actuel],'Analyses Team Duo de Choc'!A30,Tableau3[Mois],'Analyses Team Duo de Choc'!$C$7,Tableau3[Négo],paramètres!$B$5) -> 0 | D30: =COUNTIFS(Tableau3[Statut actuel],'Analyses Team Duo de Choc'!A30,Tableau3[Mois],'Analyses Team Duo de Choc'!$D$7,Tableau3[Négo],paramètres!$B$5) -> 0 | E30: =COUNTIFS(Tableau3[Statut actuel],'Analyses Team Duo de Choc'!A30,Tableau3[Mois],'Analyses Team Duo de Choc'!$E$7,Tableau3[Négo],paramètres!$B$5) -> 0 | F30: =COUNTIFS(Tableau3[Statut actuel],'Analyses Team Duo de Choc'!A30,Tableau3[Mois],'Analyses Team Duo de Choc'!$F$7,Tableau3[Négo],paramètres!$B$5) -> 0 | G30: =COUNTIFS(Tableau3[Statut actuel],'Analyses Team Duo de Choc'!A30,Tableau3[Mois],'Analyses Team Duo de Choc'!$G$7,Tableau3[Négo],paramètres!$B$5) -> 0 | H30: =COUNTIFS(Tableau3[Statut actuel],'Analyses Team Duo de Choc'!A30,Tableau3[Mois],'Analyses Team Duo de Choc'!$H$7,Tableau3[Négo],paramètres!$B$5) -> 0 | I30: =COUNTIFS(Tableau3[Statut actuel],'Analyses Team Duo de Choc'!A30,Tableau3[Mois],'Analyses Team Duo de Choc'!$I$7,Tableau3[Négo],paramètres!$B$5) -> 0 | J30: =COUNTIFS(Tableau3[Statut actuel],'Analyses Team Duo de Choc'!A30,Tableau3[Mois],'Analyses Team Duo de Choc'!$J$7,Tableau3[Négo],paramètres!$B$5) -> 0 | K30: =COUNTIFS(Tableau3[Statut actuel],'Analyses Team Duo de Choc'!A30,Tableau3[Mois],'Analyses Team Duo de Choc'!$K$7,Tableau3[Négo],paramètres!$B$5) -> 0 | L30: =COUNTIFS(Tableau3[Statut actuel],'Analyses Team Duo de Choc'!A30,Tableau3[Mois],'Analyses Team Duo de Choc'!$L$7,Tableau3[Négo],paramètres!$B$5) -> 0 | M30: =COUNTIFS(Tableau3[Statut actuel],'Analyses Team Duo de Choc'!A30,Tableau3[Mois],'Analyses Team Duo de Choc'!$M$7,Tableau3[Négo],paramètres!$B$5) -> 0 | N30: 0
A31: =IF(ISBLANK(paramètres!C12),"",paramètres!C12) -> Vente annulée | B31: =COUNTIFS(Tableau3[Statut actuel],'Analyses Team Duo de Choc'!A31,Tableau3[Mois],'Analyses Team Duo de Choc'!$B$7,Tableau3[Négo],paramètres!$B$5) -> 0 | C31: =COUNTIFS(Tableau3[Statut actuel],'Analyses Team Duo de Choc'!A31,Tableau3[Mois],'Analyses Team Duo de Choc'!$C$7,Tableau3[Négo],paramètres!$B$5) -> 0 | D31: =COUNTIFS(Tableau3[Statut actuel],'Analyses Team Duo de Choc'!A31,Tableau3[Mois],'Analyses Team Duo de Choc'!$D$7,Tableau3[Négo],paramètres!$B$5) -> 0 | E31: =COUNTIFS(Tableau3[Statut actuel],'Analyses Team Duo de Choc'!A31,Tableau3[Mois],'Analyses Team Duo de Choc'!$E$7,Tableau3[Négo],paramètres!$B$5) -> 0 | F31: =COUNTIFS(Tableau3[Statut actuel],'Analyses Team Duo de Choc'!A31,Tableau3[Mois],'Analyses Team Duo de Choc'!$F$7,Tableau3[Négo],paramètres!$B$5) -> 0 | G31: =COUNTIFS(Tableau3[Statut actuel],'Analyses Team Duo de Choc'!A31,Tableau3[Mois],'Analyses Team Duo de Choc'!$G$7,Tableau3[Négo],paramètres!$B$5) -> 0 | H31: =COUNTIFS(Tableau3[Statut actuel],'Analyses Team Duo de Choc'!A31,Tableau3[Mois],'Analyses Team Duo de Choc'!$H$7,Tableau3[Négo],paramètres!$B$5) -> 0 | I31: =COUNTIFS(Tableau3[Statut actuel],'Analyses Team Duo de Choc'!A31,Tableau3[Mois],'Analyses Team Duo de Choc'!$I$7,Tableau3[Négo],paramètres!$B$5) -> 0 | J31: =COUNTIFS(Tableau3[Statut actuel],'Analyses Team Duo de Choc'!A31,Tableau3[Mois],'Analyses Team Duo de Choc'!$J$7,Tableau3[Négo],paramètres!$B$5) -> 0 | K31: =COUNTIFS(Tableau3[Statut actuel],'Analyses Team Duo de Choc'!A31,Tableau3[Mois],'Analyses Team Duo de Choc'!$K$7,Tableau3[Négo],paramètres!$B$5) -> 0 | L31: =COUNTIFS(Tableau3[Statut actuel],'Analyses Team Duo de Choc'!A31,Tableau3[Mois],'Analyses Team Duo de Choc'!$L$7,Tableau3[Négo],paramètres!$B$5) -> 0 | M31: =COUNTIFS(Tableau3[Statut actuel],'Analyses Team Duo de Choc'!A31,Tableau3[Mois],'Analyses Team Duo de Choc'!$M$7,Tableau3[Négo],paramètres!$B$5) -> 1 | N31: 1
A32: =IF(ISBLANK(paramètres!C13),"",paramètres!C13) -> Abandonné | B32: =COUNTIFS(Tableau3[Statut actuel],'Analyses Team Duo de Choc'!A32,Tableau3[Mois],'Analyses Team Duo de Choc'!$B$7,Tableau3[Négo],paramètres!$B$5) -> 0 | C32: =COUNTIFS(Tableau3[Statut actuel],'Analyses Team Duo de Choc'!A32,Tableau3[Mois],'Analyses Team Duo de Choc'!$C$7,Tableau3[Négo],paramètres!$B$5) -> 1 | D32: =COUNTIFS(Tableau3[Statut actuel],'Analyses Team Duo de Choc'!A32,Tableau3[Mois],'Analyses Team Duo de Choc'!$D$7,Tableau3[Négo],paramètres!$B$5) -> 0 | E32: =COUNTIFS(Tableau3[Statut actuel],'Analyses Team Duo de Choc'!A32,Tableau3[Mois],'Analyses Team Duo de Choc'!$E$7,Tableau3[Négo],paramètres!$B$5) -> 0 | F32: =COUNTIFS(Tableau3[Statut actuel],'Analyses Team Duo de Choc'!A32,Tableau3[Mois],'Analyses Team Duo de Choc'!$F$7,Tableau3[Négo],paramètres!$B$5) -> 0 | G32: =COUNTIFS(Tableau3[Statut actuel],'Analyses Team Duo de Choc'!A32,Tableau3[Mois],'Analyses Team Duo de Choc'!$G$7,Tableau3[Négo],paramètres!$B$5) -> 0 | H32: =COUNTIFS(Tableau3[Statut actuel],'Analyses Team Duo de Choc'!A32,Tableau3[Mois],'Analyses Team Duo de Choc'!$H$7,Tableau3[Négo],paramètres!$B$5) -> 0 | I32: =COUNTIFS(Tableau3[Statut actuel],'Analyses Team Duo de Choc'!A32,Tableau3[Mois],'Analyses Team Duo de Choc'!$I$7,Tableau3[Négo],paramètres!$B$5) -> 0 | J32: =COUNTIFS(Tableau3[Statut actuel],'Analyses Team Duo de Choc'!A32,Tableau3[Mois],'Analyses Team Duo de Choc'!$J$7,Tableau3[Négo],paramètres!$B$5) -> 0 | K32: =COUNTIFS(Tableau3[Statut actuel],'Analyses Team Duo de Choc'!A32,Tableau3[Mois],'Analyses Team Duo de Choc'!$K$7,Tableau3[Négo],paramètres!$B$5) -> 0 | L32: =COUNTIFS(Tableau3[Statut actuel],'Analyses Team Duo de Choc'!A32,Tableau3[Mois],'Analyses Team Duo de Choc'!$L$7,Tableau3[Négo],paramètres!$B$5) -> 0 | M32: =COUNTIFS(Tableau3[Statut actuel],'Analyses Team Duo de Choc'!A32,Tableau3[Mois],'Analyses Team Duo de Choc'!$M$7,Tableau3[Négo],paramètres!$B$5) -> 0 | N32: 1
A33: =IF(ISBLANK(paramètres!C14),"",paramètres!C14) -> Stand-by | B33: =COUNTIFS(Tableau3[Statut actuel],'Analyses Team Duo de Choc'!A33,Tableau3[Mois],'Analyses Team Duo de Choc'!$B$7,Tableau3[Négo],paramètres!$B$5) -> 0 | C33: =COUNTIFS(Tableau3[Statut actuel],'Analyses Team Duo de Choc'!A33,Tableau3[Mois],'Analyses Team Duo de Choc'!$C$7,Tableau3[Négo],paramètres!$B$5) -> 0 | D33: =COUNTIFS(Tableau3[Statut actuel],'Analyses Team Duo de Choc'!A33,Tableau3[Mois],'Analyses Team Duo de Choc'!$D$7,Tableau3[Négo],paramètres!$B$5) -> 0 | E33: =COUNTIFS(Tableau3[Statut actuel],'Analyses Team Duo de Choc'!A33,Tableau3[Mois],'Analyses Team Duo de Choc'!$E$7,Tableau3[Négo],paramètres!$B$5) -> 0 | F33: =COUNTIFS(Tableau3[Statut actuel],'Analyses Team Duo de Choc'!A33,Tableau3[Mois],'Analyses Team Duo de Choc'!$F$7,Tableau3[Négo],paramètres!$B$5) -> 0 | G33: =COUNTIFS(Tableau3[Statut actuel],'Analyses Team Duo de Choc'!A33,Tableau3[Mois],'Analyses Team Duo de Choc'!$G$7,Tableau3[Négo],paramètres!$B$5) -> 0 | H33: =COUNTIFS(Tableau3[Statut actuel],'Analyses Team Duo de Choc'!A33,Tableau3[Mois],'Analyses Team Duo de Choc'!$H$7,Tableau3[Négo],paramètres!$B$5) -> 0 | I33: =COUNTIFS(Tableau3[Statut actuel],'Analyses Team Duo de Choc'!A33,Tableau3[Mois],'Analyses Team Duo de Choc'!$I$7,Tableau3[Négo],paramètres!$B$5) -> 0 | J33: =COUNTIFS(Tableau3[Statut actuel],'Analyses Team Duo de Choc'!A33,Tableau3[Mois],'Analyses Team Duo de Choc'!$J$7,Tableau3[Négo],paramètres!$B$5) -> 0 | K33: =COUNTIFS(Tableau3[Statut actuel],'Analyses Team Duo de Choc'!A33,Tableau3[Mois],'Analyses Team Duo de Choc'!$K$7,Tableau3[Négo],paramètres!$B$5) -> 0 | L33: =COUNTIFS(Tableau3[Statut actuel],'Analyses Team Duo de Choc'!A33,Tableau3[Mois],'Analyses Team Duo de Choc'!$L$7,Tableau3[Négo],paramètres!$B$5) -> 0 | M33: =COUNTIFS(Tableau3[Statut actuel],'Analyses Team Duo de Choc'!A33,Tableau3[Mois],'Analyses Team Duo de Choc'!$M$7,Tableau3[Négo],paramètres!$B$5) -> 0 | N33: 0
A34: =IF(ISBLANK(paramètres!C15),"",paramètres!C15) -> Sans Suite | B34: =COUNTIFS(Tableau3[Statut actuel],'Analyses Team Duo de Choc'!A34,Tableau3[Mois],'Analyses Team Duo de Choc'!$B$7,Tableau3[Négo],paramètres!$B$5) -> 0 | C34: =COUNTIFS(Tableau3[Statut actuel],'Analyses Team Duo de Choc'!A34,Tableau3[Mois],'Analyses Team Duo de Choc'!$C$7,Tableau3[Négo],paramètres!$B$5) -> 0 | D34: =COUNTIFS(Tableau3[Statut actuel],'Analyses Team Duo de Choc'!A34,Tableau3[Mois],'Analyses Team Duo de Choc'!$D$7,Tableau3[Négo],paramètres!$B$5) -> 0 | E34: =COUNTIFS(Tableau3[Statut actuel],'Analyses Team Duo de Choc'!A34,Tableau3[Mois],'Analyses Team Duo de Choc'!$E$7,Tableau3[Négo],paramètres!$B$5) -> 0 | F34: =COUNTIFS(Tableau3[Statut actuel],'Analyses Team Duo de Choc'!A34,Tableau3[Mois],'Analyses Team Duo de Choc'!$F$7,Tableau3[Négo],paramètres!$B$5) -> 0 | G34: =COUNTIFS(Tableau3[Statut actuel],'Analyses Team Duo de Choc'!A34,Tableau3[Mois],'Analyses Team Duo de Choc'!$G$7,Tableau3[Négo],paramètres!$B$5) -> 0 | H34: =COUNTIFS(Tableau3[Statut actuel],'Analyses Team Duo de Choc'!A34,Tableau3[Mois],'Analyses Team Duo de Choc'!$H$7,Tableau3[Négo],paramètres!$B$5) -> 0 | I34: =COUNTIFS(Tableau3[Statut actuel],'Analyses Team Duo de Choc'!A34,Tableau3[Mois],'Analyses Team Duo de Choc'!$I$7,Tableau3[Négo],paramètres!$B$5) -> 0 | J34: =COUNTIFS(Tableau3[Statut actuel],'Analyses Team Duo de Choc'!A34,Tableau3[Mois],'Analyses Team Duo de Choc'!$J$7,Tableau3[Négo],paramètres!$B$5) -> 0 | K34: =COUNTIFS(Tableau3[Statut actuel],'Analyses Team Duo de Choc'!A34,Tableau3[Mois],'Analyses Team Duo de Choc'!$K$7,Tableau3[Négo],paramètres!$B$5) -> 0 | L34: =COUNTIFS(Tableau3[Statut actuel],'Analyses Team Duo de Choc'!A34,Tableau3[Mois],'Analyses Team Duo de Choc'!$L$7,Tableau3[Négo],paramètres!$B$5) -> 0 | M34: =COUNTIFS(Tableau3[Statut actuel],'Analyses Team Duo de Choc'!A34,Tableau3[Mois],'Analyses Team Duo de Choc'!$M$7,Tableau3[Négo],paramètres!$B$5) -> 0 | N34: 0
A35: =IF(ISBLANK(paramètres!C16),"",paramètres!C16) -> Mandat | B35: =COUNTIFS(Tableau3[Statut actuel],'Analyses Team Duo de Choc'!A35,Tableau3[Mois],'Analyses Team Duo de Choc'!$B$7,Tableau3[Négo],paramètres!$B$5) -> 0 | C35: =COUNTIFS(Tableau3[Statut actuel],'Analyses Team Duo de Choc'!A35,Tableau3[Mois],'Analyses Team Duo de Choc'!$C$7,Tableau3[Négo],paramètres!$B$5) -> 1 | D35: =COUNTIFS(Tableau3[Statut actuel],'Analyses Team Duo de Choc'!A35,Tableau3[Mois],'Analyses Team Duo de Choc'!$D$7,Tableau3[Négo],paramètres!$B$5) -> 0 | E35: =COUNTIFS(Tableau3[Statut actuel],'Analyses Team Duo de Choc'!A35,Tableau3[Mois],'Analyses Team Duo de Choc'!$E$7,Tableau3[Négo],paramètres!$B$5) -> 0 | F35: =COUNTIFS(Tableau3[Statut actuel],'Analyses Team Duo de Choc'!A35,Tableau3[Mois],'Analyses Team Duo de Choc'!$F$7,Tableau3[Négo],paramètres!$B$5) -> 0 | G35: =COUNTIFS(Tableau3[Statut actuel],'Analyses Team Duo de Choc'!A35,Tableau3[Mois],'Analyses Team Duo de Choc'!$G$7,Tableau3[Négo],paramètres!$B$5) -> 0 | H35: =COUNTIFS(Tableau3[Statut actuel],'Analyses Team Duo de Choc'!A35,Tableau3[Mois],'Analyses Team Duo de Choc'!$H$7,Tableau3[Négo],paramètres!$B$5) -> 0 | I35: =COUNTIFS(Tableau3[Statut actuel],'Analyses Team Duo de Choc'!A35,Tableau3[Mois],'Analyses Team Duo de Choc'!$I$7,Tableau3[Négo],paramètres!$B$5) -> 0 | J35: =COUNTIFS(Tableau3[Statut actuel],'Analyses Team Duo de Choc'!A35,Tableau3[Mois],'Analyses Team Duo de Choc'!$J$7,Tableau3[Négo],paramètres!$B$5) -> 0 | K35: =COUNTIFS(Tableau3[Statut actuel],'Analyses Team Duo de Choc'!A35,Tableau3[Mois],'Analyses Team Duo de Choc'!$K$7,Tableau3[Négo],paramètres!$B$5) -> 0 | L35: =COUNTIFS(Tableau3[Statut actuel],'Analyses Team Duo de Choc'!A35,Tableau3[Mois],'Analyses Team Duo de Choc'!$L$7,Tableau3[Négo],paramètres!$B$5) -> 0 | M35: =COUNTIFS(Tableau3[Statut actuel],'Analyses Team Duo de Choc'!A35,Tableau3[Mois],'Analyses Team Duo de Choc'!$M$7,Tableau3[Négo],paramètres!$B$5) -> 0 | N35: 1
A37: TOTAL | B37: =SUM(B24:B35) -> 0 | C37: =SUM(C24:C35) -> 2 | D37: 0 | E37: 0 | F37: 0 | G37: 0 | H37: 0 | I37: 0 | J37: 0 | K37: 0 | L37: 0 | M37: 2 | N37: =SUM(N24:N35) -> 4
A39: Chiffre d'affaires du commercial
B40: JANVIER | C40: FEVRIER | D40: MARS | E40: AVRIL | F40: MAI | G40: JUIN | H40: JUILLET | I40: AOÛT | J40: SEPTEMBRE | K40: OCTOBRE | L40: NOVEMBRE | M40: DÉCEMBRE | N40: TOTAL
A42: COMPROMIS EN COURS
A43: Montant
A44: ACTES
A45: Montant
A46: VENTES ANNULEES
A47: Montant annulé
A49: Somme CA
A50: Rappel sur objectif (mensualisé)
A52: Cumul CA
A53: Cumul objectif
B57: Rappel objectif annuel du commercial:
B59: Pourcentage de l'objectif:

Sheet paramètres (hidden)
J1: 1 | R1: MdP
A2: A | B2: B | C2: C | D2: D | E2: E | F2: F | G2: G | H2: H | I2: I | J2: 2 | R2: LENOIL
J3: 3 | R3: ENIAHPIT
A4: Sources | B4: Commerciaux | C4: Statut | D4: Mois | E4: Mois | F4: Année | G4: Choix | J4: 4 | R4: ASSENAV
A5: Appel direct | B5: Lionel | C5: TEL, SMS | D5: 1 | E5: JANVIER | F5: 2023 | G5: Oui | J5: 5 | R5: AELC
A6: e-mail | B6: Tiphaine | C6: Porte à porte | D6: 2 | E6: FÉVRIER | F6: 2024 | G6: Non | J6: 6 | R6: CRAM
A7: Prospection | B7: Vanessa | C7: R1 | D7: 3 | E7: MARS | F7: 2025 | J7: 7 | R7: MAET
A8: Site Internet | B8: Cléa | C8: R2 | D8: 4 | E8: AVRIL | J8: 8 | R8: ADMIN
A9: Appel agence | B9: Marc | C9: Estimation faite | D9: 5 | E9: MAI | J9: 9
B10: Team Duo de Choc | C10: Sous compromis | D10: 6 | E10: JUIN | J10: 10
C11: Vendu | D11: 7 | E11: JUILLET | J11: 11
C12: Vente annulée | D12: 8 | E12: AOÛT | J12: 12
C13: Abandonné | D13: 9 | E13: SEPTEMBRE | J13: 13
C14: Stand-by | D14: 10 | E14: OCTOBRE | J14: 14
C15: Sans Suite | D15: 11 | E15: NOVEMBRE | J15: 15
C16: Mandat | D16: 12 | E16: DÉCEMBRE | J16: 16
J17: 17
